Transaction_ID,Transaction_Date,Department,Beneficiary,Net_Transaction_Amount,Summary_of_Purpose,MCC,Merchant_Description
CCC_10002699_1,05/07/2023,Leisure & Heritage Services,BAR JAK RADSTOCK,198.99,New Equipment,5399,GENERAL MERCHANDISE OR CONVENIENCE FOOD STORES
CCC_10002411_5,02/06/2023,South Essex Parking Partnership,SHINY CAR WASH BASILDON,12.5,General Expense,7542,CAR WASHES
CCC_10003023_3,26/10/2023,Public Health & Protection Services,AMZNMKTPLACE AMAZON.CO.UK,4.57,Printing & Stationary,5999,MISCELLANEOUS & SPECIALTY STORES
CCC_10003096_3,04/10/2023,"Museums, Theatres & Cultural Services",AMZNMKTPLACE AMAZON.CO.UK,53.09,General Expense,5999,MISCELLANEOUS & SPECIALTY STORES
CCC_10002284_3,08/05/2023,"Museums, Theatres & Cultural Services",BP CHELMSFORD S/STN CHELMSFORD ES,6.5,Museum Exhibits,5541,GAS/SERVICE STATIONS WITH/WITHOUT ANCILLARY SERVICES
CCC_10003257_2,10/11/2023,"Museums, Theatres & Cultural Services",PAYPAL  BRITISHHARL 35314369001,25.2,General Expense,1799,SPECIAL TRADE CONTRACTORS
CCC_10002174_1,20/04/2023,Parking & Highways Operations,AMZNMKTPLACE AMAZON.CO.UK,25.38,General Expense,5999,MISCELLANEOUS & SPECIALTY STORES
CCC_10003362_1,10/01/2024,"Museums, Theatres & Cultural Services",GREATER ANGLIA RAIL LONDON,30.9,Public Transport,4112,PASSENGER RAILWAYS
CCC_10003023_9,17/10/2023,Public Health & Protection Services,AMZNMKTPLACE AMAZON.CO.UK,46.57,New Equipment,5999,MISCELLANEOUS & SPECIALTY STORES
CCC_10003244_3,30/11/2023,Human Resources,AMZNMKTPLACE AMAZON.CO.UK,12.62,Printing & Stationary,5999,MISCELLANEOUS & SPECIALTY STORES
CCC_10002705_4,01/08/2023,"Museums, Theatres & Cultural Services",ONLINE FABRICS UK LTD COVENTRY,3.7,General Expense,5399,GENERAL MERCHANDISE OR CONVENIENCE FOOD STORES
CCC_10002367_4,24/05/2023,Leisure & Heritage Services,PRINT MARKETPLACE 40 2802345,37.94,Printing & Stationary,7338," PRINT SHOPS, QUICK COPY SERVICES OR REPRODUCTION SERVICES "
CCC_10002241_1,28/04/2023,Operational Services,10TO8.COM CAMBRIDGE,59,General Expense,5817,DIGITAL GOODS: APPLICATIONS (EXCLUDES GAMES)
CCC_10003332_7,08/12/2023,"Museums, Theatres & Cultural Services",WICKES CHELMSFORD CHELMSFORD,19.38,General Expense,5211,LUMBER AND BUILDING MATERIALS STORES
CCC_10003177_3,29/11/2023,Parks & Green Spaces,HIGH SPEED TRAINING ILKLEY,150,Grounds Maintenance Materials,8299,SCHOOLS AND EDUCATIONAL SERVICES (NEC)
CCC_10002884_4,07/09/2023,South Essex Parking Partnership,SUMUP   BRITISH LEGEND SOUTHEND,66,Vehicle Repairs,8999,PROFESSIONAL SERVICES (NEC)
CCC_10002754_3,07/08/2023,Parks & Green Spaces,TESCO STORES 2330 CHELMSFORD 2,53.33,Grounds Maintenance Materials,5411,GROCERY STORES OR SUPERMARKETS
CCC_10003617_4,15/02/2024,Parks & Green Spaces,WWW.SCREWFIX.COM YEOVIL,92.47,Grounds Maintenance Materials,5211,LUMBER AND BUILDING MATERIALS STORES
CCC_10002765_1,26/06/2023,Leisure & Heritage Services,WWW.INSTANTPRINT.C 01709 382202,34.75,Printing & Stationary,7338," PRINT SHOPS, QUICK COPY SERVICES OR REPRODUCTION SERVICES "
CCC_10003042_17,17/10/2023,Leisure & Heritage Services,TESCO STORES 2172 BRAINTREE,59.5,General Expense,5411,GROCERY STORES OR SUPERMARKETS
CCC_10002549_1,12/07/2023,Digital Services,AMZNMKTPLACE AMAZON.CO AMAZON.CO.UK,111.75,New Equipment,5999,MISCELLANEOUS & SPECIALTY STORES
CCC_10003353_15,29/01/2024,Digital Services,GREATER ANGLIA RAIL LONDON,30.35,Public Transport,4112,PASSENGER RAILWAYS
CCC_10002474_8,21/05/2023,"Museums, Theatres & Cultural Services",AMZNMKTPLACE AMAZON.CO.UK,19.7,New Equipment,5999,MISCELLANEOUS & SPECIALTY STORES
CCC_10002851_1,07/09/2023,Leisure & Heritage Services,SHARKNINJA EUROPE LEEDS,58.32,New Equipment,5719,HOME FURNISHING SPECIALTY STORES -- MISCELLANEOUS
CCC_10002244_6,06/04/2023,Parks & Green Spaces,D. BYFORD & SONS COLCHESTER CO,33.5,Grounds Maintenance Materials,5193," FLORIST SUPPLIES, NURSERY STOCK AND FLOWERS "
CCC_10002510_26,18/06/2023,Parks & Green Spaces,AMAZON.CO.UK Y19O499J5 AMAZON.CO.UK,13.74,Vehicle Repairs,5969,DIRECT MARKETERS (NEC)
CCC_10002248_1,04/05/2023,Parks & Green Spaces,AMZNMKTPLACE AMAZON.CO.UK,56.5,New Equipment,5999,MISCELLANEOUS & SPECIALTY STORES
CCC_10002420_1,07/06/2023,Leisure & Heritage Services,AMZNMKTPLACE AMAZON.CO.UK,14.57,Printing & Stationary,5999,MISCELLANEOUS & SPECIALTY STORES
CCC_10003406_3,17/01/2024,Parks & Green Spaces,MOLES SEEDS (UK) LIMIT COLCHESTER,45.44,Grounds Maintenance Materials,5193," FLORIST SUPPLIES, NURSERY STOCK AND FLOWERS "
CCC_10003290_1,25/10/2023,Leisure & Heritage Services,INT'L AUDIO GRP HUNTINGDON,68,New Equipment,5722,APPLIANCE STORES (NEC) OR HOUSEHOLD APPLIANCE STORES
CCC_10002646_1,11/07/2023,Leisure & Heritage Services,AMZNMKTPLACE AMAZON.CO.UK,19.89,New Equipment,5999,MISCELLANEOUS & SPECIALTY STORES
CCC_10003601_1,08/02/2024,Leisure & Heritage Services,AMAZON  206-4811001-06 LONDON,10.37,General Expense,5399,GENERAL MERCHANDISE OR CONVENIENCE FOOD STORES
CCC_10002584_2,25/06/2023,Marketing & Communications Team,GOOGLE ADS8874237245 DUBLIN,50,Advertising,7311,ADVERTISING SERVICES
CCC_10002764_1,27/06/2023,Leisure & Heritage Services,TIMPSON LTD CHELMSFORD 2,13.5,New Equipment,5999,MISCELLANEOUS & SPECIALTY STORES
CCC_10002182_1,20/04/2023,Leisure & Heritage Services,AMZNMKTPLACE AMAZON.CO AMAZON.CO.UK,47.49,New Equipment,5999,MISCELLANEOUS & SPECIALTY STORES
CCC_10003514_1,04/12/2023,Parks & Green Spaces,TESCO STORES 2330 CHELMSFORD 2,34.17,Grounds Maintenance Materials,5411,GROCERY STORES OR SUPERMARKETS
CCC_10003341_79,23/12/2023,"Museums, Theatres & Cultural Services",TESCO STORES 5408 CHELMSFORD,6.4,General Expense,5411,GROCERY STORES OR SUPERMARKETS
CCC_10002287_3,01/05/2023,Human Resources,GOOGLE ADS2733035999 DUBLIN,48.28,General Expense,7311,ADVERTISING SERVICES
CCC_10002601_8,07/06/2023,Parks & Green Spaces,AMZNMKTPLACE AMAZON.CO.UK,102.31,Grounds Maintenance Materials,5999,MISCELLANEOUS & SPECIALTY STORES
CCC_10002255_8,25/04/2023,South Essex Parking Partnership,AMZNMKTPLACE AMAZON.CO.UK,159.14,New Equipment,5999,MISCELLANEOUS & SPECIALTY STORES
CCC_10002417_4,17/05/2023,Public Health & Protection Services,AMZNMKTPLACE AMAZON.CO.UK,49.79,New Equipment,5999,MISCELLANEOUS & SPECIALTY STORES
CCC_10003424_2,15/01/2024,Leisure & Heritage Services,AMZNMKTPLACE LONDON,18.79,Printing & Stationary,5999,MISCELLANEOUS & SPECIALTY STORES
CCC_10002539_1,28/06/2023,"Museums, Theatres & Cultural Services",TESCO STORES 2330 CHELMSFORD 2,5,Training Expenses,5411,GROCERY STORES OR SUPERMARKETS
CCC_10003455_7,20/10/2023,Leisure & Heritage Services,AMZNMKTPLACE AMAZON.CO.UK,2.99,Printing & Stationary,5999,MISCELLANEOUS & SPECIALTY STORES
CCC_10003536_21,11/01/2024,Housing Services,TRAVELODG TRAVELODGE G THAME,307.42,General Expense,3615,TRAVELODGE
CCC_10002857_2,25/09/2023,Leisure & Heritage Services,WWW.SCREWFIX.COM YEOVIL,46.64,Clothing & Uniforms,5211,LUMBER AND BUILDING MATERIALS STORES
CCC_10002847_1,25/08/2023,Leisure & Heritage Services,AMZNMKTPLACE AMAZON.CO.UK,8.95,New Equipment,5999,MISCELLANEOUS & SPECIALTY STORES
CCC_10003286_43,30/10/2023,"Museums, Theatres & Cultural Services",TESCO STORES 5408 CHELMSFORD,10.05,General Expense,5411,GROCERY STORES OR SUPERMARKETS
CCC_10002622_12,27/06/2023,"Museums, Theatres & Cultural Services",WILKO RETAIL LIMITED CHELMSFORD,4.12,General Expense,5399,GENERAL MERCHANDISE OR CONVENIENCE FOOD STORES
CCC_10003122_2,27/09/2023,Development Management,GREATER ANGLIA 4278,46,Public Transport,4112,PASSENGER RAILWAYS
CCC_10002619_7,28/06/2023,Leisure & Heritage Services,AMZNMKTPLACE AMAZON.CO.UK,16.35,Printing & Stationary,5999,MISCELLANEOUS & SPECIALTY STORES
CCC_10003381_1,15/01/2024,Leisure & Heritage Services,AMZNMKTPLACE AMAZON.CO.UK,15.03,General Expense,5999,MISCELLANEOUS & SPECIALTY STORES
CCC_10002614_3,13/07/2023,"Museums, Theatres & Cultural Services",AMZNMKTPLACE AMAZON.CO AMAZON.CO.UK,17.74,New Equipment,5999,MISCELLANEOUS & SPECIALTY STORES
CCC_10002425_3,05/06/2023,Parks & Green Spaces,LOOKERS NEWCASTLE,230.32,Grounds Maintenance Materials,7538,AUTOMOTIVE SERVICE SHOPS (NON-DEALER)
CCC_10003288_24,07/11/2023,"Museums, Theatres & Cultural Services",TESCO STORES 5408 CHELMSFORD,4.8,General Expense,5411,GROCERY STORES OR SUPERMARKETS
CCC_10003048_17,16/10/2023,Parks & Green Spaces,WWW.SCREWFIX.COM YEOVIL,67,Grounds Maintenance Materials,5211,LUMBER AND BUILDING MATERIALS STORES
CCC_10003034_5,11/10/2023,Leisure & Heritage Services,TESCO STORES 2882 MALDON,9.9,General Expense,5411,GROCERY STORES OR SUPERMARKETS
CCC_10003119_5,10/11/2023,"Museums, Theatres & Cultural Services",AMZNMKTPLACE AMAZON.CO.UK,3.84,New Equipment,5999,MISCELLANEOUS & SPECIALTY STORES
CCC_10003123_1,01/11/2023,Leisure & Heritage Services,AMZNMKTPLACE AMAZON.CO.UK,44.14,New Equipment,5999,MISCELLANEOUS & SPECIALTY STORES
CCC_10002530_3,23/06/2023,Leisure & Heritage Services,TOOLSTATION LTD CHELMSFORD,11.24,General Expense,5211,LUMBER AND BUILDING MATERIALS STORES
CCC_10002729_2,10/08/2023,"Museums, Theatres & Cultural Services",WILKO RETAIL LIMITED CHELMSFORD,13.54,General Expense,5399,GENERAL MERCHANDISE OR CONVENIENCE FOOD STORES
CCC_10002548_7,19/06/2023,Parks & Green Spaces,TESCO-STORES 6724 CHELMSFORD,3,General Expense,5411,GROCERY STORES OR SUPERMARKETS
CCC_10002671_5,25/07/2023,Leisure & Heritage Services,AMAZON.CO.UK HW4YY22B5 AMAZON.CO.UK,31.35,General Expense,5969,DIRECT MARKETERS (NEC)
CCC_10002723_10,16/07/2023,Leisure & Heritage Services,TESCO STORES 2330 CHELMSFORD 2,4.5,General Expense,5411,GROCERY STORES OR SUPERMARKETS
CCC_10003452_6,21/01/2024,Parks & Green Spaces,AMZNMKTPLACE LONDON,24.92,Grounds Maintenance Materials,5999,MISCELLANEOUS & SPECIALTY STORES
CCC_10002948_1,12/09/2023,"Museums, Theatres & Cultural Services",TIMPSON LTD CHELMSFORD,38.33,Grounds Maintenance Materials,5999,MISCELLANEOUS & SPECIALTY STORES
CCC_10003567_4,14/02/2024,"Museums, Theatres & Cultural Services",AMAZON  202-4359685-02 LONDON,17.19,New Equipment,5399,GENERAL MERCHANDISE OR CONVENIENCE FOOD STORES
CCC_10002548_10,12/06/2023,Parks & Green Spaces,B & Q 1188 CHELMSFORD,87.74,General Expense,5200,HOME SUPPLY WAREHOUSE STORES
CCC_10002749_6,04/05/2023,Parks & Green Spaces,UK ELECTRICAL WHOLESAL CHELMSFORD,5.6,Grounds Maintenance Materials,5065,ELECTRICAL PARTS AND EQUIPMENT
CCC_10002632_4,18/07/2023,Leisure & Heritage Services,BOOKER LTD - 38548144 WELLINGBOROUG,76.95,General Expense,5411,GROCERY STORES OR SUPERMARKETS
CCC_10003068_1,09/11/2023,Public Health & Protection Services,AMZNMKTPLACE LONDON,8.16,General Expense,5999,MISCELLANEOUS & SPECIALTY STORES
CCC_10003117_3,08/10/2023,"Museums, Theatres & Cultural Services",AMZNMKTPLACE LONDON,17.48,General Expense,5999,MISCELLANEOUS & SPECIALTY STORES
CCC_10002621_13,30/06/2023,"Museums, Theatres & Cultural Services",VIKING OFFICE UK LIMIT LEICESTER,61.98,General Expense,5111," STATIONERY, OFFICE SUPPLIES, PRINTING AND WRITING PAPER "
CCC_10003281_1,18/09/2023,"Museums, Theatres & Cultural Services",PRINT MARKETPLACE 40 2802345,40.41,General Expense,7338," PRINT SHOPS, QUICK COPY SERVICES OR REPRODUCTION SERVICES "
CCC_10003341_14,06/12/2023,"Museums, Theatres & Cultural Services",TESCO STORES 5408 CHELMSFORD,12.4,General Expense,5411,GROCERY STORES OR SUPERMARKETS
CCC_10002960_21,20/09/2023,"Museums, Theatres & Cultural Services",TESCO STORES 5408 CHELMSFORD,2.4,General Expense,5411,GROCERY STORES OR SUPERMARKETS
CCC_10003405_12,26/01/2024,Operational Services,AMAZON  204-7118651-02 LONDON,65.47,New Equipment,5399,GENERAL MERCHANDISE OR CONVENIENCE FOOD STORES
CCC_10003288_59,30/11/2023,"Museums, Theatres & Cultural Services",TESCO STORES 5408 CHELMSFORD,5.2,General Expense,5411,GROCERY STORES OR SUPERMARKETS
CCC_10002890_2,17/09/2023,Parking & Highways Operations,AMZNMKTPLACE AMAZON.CO.UK,10.57,Car Parking,5999,MISCELLANEOUS & SPECIALTY STORES
CCC_10003282_15,22/11/2023,"Museums, Theatres & Cultural Services",AMZNMKTPLACE AMAZON.CO.UK,63.25,General Expense,5999,MISCELLANEOUS & SPECIALTY STORES
CCC_10002670_24,21/06/2023,South Essex Parking Partnership,TESCO STORES 5408 CHELMSFORD,9.17,General Expense,5411,GROCERY STORES OR SUPERMARKETS
CCC_10002923_2,06/10/2023,"Museums, Theatres & Cultural Services",AMZNMKTPLACE LONDON,18.75,General Expense,5999,MISCELLANEOUS & SPECIALTY STORES
CCC_10003174_2,13/11/2023,Marketing & Communications Team,TRAINLINE LONDON,36.37,Public Transport,4112,PASSENGER RAILWAYS
CCC_10003343_6,10/10/2023,Parks & Green Spaces,AMZNMKTPLACE AMAZON.CO.UK,11.23,General Expense,5999,MISCELLANEOUS & SPECIALTY STORES
CCC_10002884_10,28/08/2023,South Essex Parking Partnership,AMZNMKTPLACE AMAZON.CO.UK,28.82,New Equipment,5999,MISCELLANEOUS & SPECIALTY STORES
CCC_10003346_3,25/11/2023,Leisure & Heritage Services,AMAZON PRIME HW6CS5OG4 AMZN.CO.UK/PM,8.99,Employee Subscriptions,5968,CONTINUITY/SUBSCRIPTION MERCHANT
CCC_10002924_5,10/10/2023,Digital Services,GREATER ANGLIA RAIL LONDON,30.35,Public Transport,4112,PASSENGER RAILWAYS
CCC_10002885_3,29/08/2023,Parks & Green Spaces,AMZNMKTPLACE AMAZON.CO.UK,11.57,Printing & Stationary,5999,MISCELLANEOUS & SPECIALTY STORES
CCC_10002307_2,17/05/2023,Spatial Planning,COLCHESTER BC PARKING COLCHESTER,5.42,Car Parking,7523,AUTOMOBILE PARKING OR PARKING LOTS
CCC_10003305_1,20/12/2023,Leisure & Heritage Services,ESSEX CHAMBERS OF COMM SOUTHEND-ON-S,30,General Expense,7399,BUSINESS SERVICES (NEC)
CCC_10002222_4,25/04/2023,Leisure & Heritage Services,AMZNMKTPLACE AMAZON.CO.UK,11.63,General Expense,5999,MISCELLANEOUS & SPECIALTY STORES
CCC_10002827_1,31/08/2023,Leisure & Heritage Services,MIRAFIT GREAT YARMOUT,130.33,New Equipment,5941,SPORTING GOODS STORES
CCC_10003072_3,26/10/2023,"Museums, Theatres & Cultural Services",PRINTSTER.CO.UK BRISTOL,165.72,General Expense,5399,GENERAL MERCHANDISE OR CONVENIENCE FOOD STORES
CCC_10003206_8,07/12/2023,Digital Services,AMZNMKTPLACE AMAZON.CO.UK,5.09,New Equipment,5999,MISCELLANEOUS & SPECIALTY STORES
CCC_10003157_2,22/11/2023,Digital Services,GREATER ANGLIA TRAINS LONDON,35.4,Public Transport,4112,PASSENGER RAILWAYS
CCC_10002787_1,15/08/2023,"Museums, Theatres & Cultural Services",B & Q 1188 CHELMSFORD,30.83,Museum Exhibits,5200,HOME SUPPLY WAREHOUSE STORES
CCC_10002444_1,09/06/2023,Leisure & Heritage Services,AMZNMKTPLACE AMAZON.CO.UK,14.15,Printing & Stationary,5999,MISCELLANEOUS & SPECIALTY STORES
CCC_10003341_72,28/12/2023,"Museums, Theatres & Cultural Services",TESCO STORES 5408 CHELMSFORD,8.7,General Expense,5411,GROCERY STORES OR SUPERMARKETS
CCC_10002678_2,27/06/2023,Leisure & Heritage Services,B & Q 1188 CHELMSFORD,71,New Equipment,5200,HOME SUPPLY WAREHOUSE STORES
CCC_10003070_5,02/11/2023,"Museums, Theatres & Cultural Services",AMZNMKTPLACE AMAZON.CO.UK,23.6,Printing & Stationary,5999,MISCELLANEOUS & SPECIALTY STORES
CCC_10003206_11,06/12/2023,Digital Services,AMZNMKTPLACE AMAZON.CO.UK,35.7,New Equipment,5999,MISCELLANEOUS & SPECIALTY STORES
CCC_10002488_4,19/06/2023,Leisure & Heritage Services,SPAR BURBAGE HINCKLEY,2.47,General Expense,5411,GROCERY STORES OR SUPERMARKETS
CCC_10003374_2,02/01/2024,"Museums, Theatres & Cultural Services",GOOGLE GSUITE IGNITECH CC GOOGLE.COM,30.67,General Expense,7399,BUSINESS SERVICES (NEC)
CCC_10003177_17,20/11/2023,Parks & Green Spaces,AMZNMKTPLACE AMAZON.CO.UK,77.4,Grounds Maintenance Materials,5999,MISCELLANEOUS & SPECIALTY STORES
CCC_10002950_6,02/10/2023,"Museums, Theatres & Cultural Services",AMZNMKTPLACE AMAZON.CO.UK,92.4,General Expense,5999,MISCELLANEOUS & SPECIALTY STORES
CCC_10002273_3,10/05/2023,Digital Services,AMZNMKTPLACE AMAZON.CO.UK,5.99,Printing & Stationary,5999,MISCELLANEOUS & SPECIALTY STORES
CCC_10003264_18,14/11/2023,South Essex Parking Partnership,SPORTS DIRECT CANVEY ISLAND,27.92,Clothing & Uniforms,5941,SPORTING GOODS STORES
CCC_10003205_4,23/11/2023,Operational Services,ASDA SUPERSTORE CHELMSFORD,49,General Expense,5411,GROCERY STORES OR SUPERMARKETS
CCC_10002531_12,22/06/2023,"Museums, Theatres & Cultural Services",CONNECT DISTRIBUTION S BIRMINGHAM,24.97,New Equipment,5722,APPLIANCE STORES (NEC) OR HOUSEHOLD APPLIANCE STORES
CCC_10003100_6,09/11/2023,Operational Services,HOBBYCRAFT CHELMSFORD,31.5,General Expense,5970,CRAFT OR ARTIST'S SUPPLY SHOPS
CCC_10002818_1,31/08/2023,Parks & Green Spaces,AMZNMKTPLACE AMAZON.CO.UK,12.38,Printing & Stationary,5999,MISCELLANEOUS & SPECIALTY STORES
CCC_10002867_8,15/08/2023,Operational Services,AMZNMKTPLACE AMAZON.CO.UK,28.31,General Expense,5999,MISCELLANEOUS & SPECIALTY STORES
CCC_10003288_7,09/11/2023,"Museums, Theatres & Cultural Services",AMZNMKTPLACE AMAZON.CO.UK,11.47,General Expense,5999,MISCELLANEOUS & SPECIALTY STORES
CCC_10003149_2,04/10/2023,Parks & Green Spaces,TR AUTOS 2003 BISHOPS STORT,172.47,Vehicle Repairs,7538,AUTOMOTIVE SERVICE SHOPS (NON-DEALER)
CCC_10002425_11,30/05/2023,Parks & Green Spaces,AMZNMKTPLACE AMAZON.CO.UK,64.55,Grounds Maintenance Materials,5999,MISCELLANEOUS & SPECIALTY STORES
CCC_10003341_39,10/12/2023,"Museums, Theatres & Cultural Services",TESCO STORES 5408 CHELMSFORD,6.2,General Expense,5411,GROCERY STORES OR SUPERMARKETS
CCC_10002807_49,27/08/2023,"Museums, Theatres & Cultural Services",TESCO STORES 5408 CHELMSFORD,3.1,General Expense,5411,GROCERY STORES OR SUPERMARKETS
CCC_10002696_1,28/07/2023,Leisure & Heritage Services,TESCO STORES 2330 CHELMSFORD 2,58.37,General Expense,5411,GROCERY STORES OR SUPERMARKETS
CCC_10002265_10,05/04/2023,South Essex Parking Partnership,AMZ AMAZON.CO.UK AMAZON.CO.UK,-16.48,New Equipment,5969,DIRECT MARKETERS (NEC)
CCC_10003015_4,23/10/2023,South Essex Parking Partnership,TESCO STORES 2073 BASILDON 1,5.54,General Expense,5411,GROCERY STORES OR SUPERMARKETS
CCC_10002749_11,09/06/2023,Parks & Green Spaces,EURO CAR PARTS TAMWORTH,94.62,Vehicle Repairs,5533," AUTOMOTIVE PARTS, ACCESSORIES STORES "
CCC_10003344_14,17/11/2023,Parks & Green Spaces,CHANDLER MATERIALS CHELMSFORD,11.58,General Expense,5211,LUMBER AND BUILDING MATERIALS STORES
CCC_10002464_1,14/06/2023,Spatial Planning,TRAVELODG TRAVELODGE G THAME,151.27,Accommodation,3615,TRAVELODGE
CCC_10002195_1,11/04/2023,Leisure & Heritage Services,AMZ HAPPYCHAOUK AMAZON.CO.UK,-5.82,New Equipment,5999,MISCELLANEOUS & SPECIALTY STORES
CCC_10003391_6,11/01/2024,Leisure & Heritage Services,AMZNMKTPLACE AMAZON.CO.UK,11.42,General Expense,5999,MISCELLANEOUS & SPECIALTY STORES
CCC_10003048_3,30/10/2023,Parks & Green Spaces,AMZNMKTPLACE AMAZON.CO.UK,38.13,Grounds Maintenance Materials,5999,MISCELLANEOUS & SPECIALTY STORES
CCC_10003384_5,17/01/2024,Operational Services,DVLA VEHICLE TAX 0300 1234321,452.5,Vehicle Tax,9311,TAX PAYMENTS
CCC_10002365_11,22/05/2023,Parks & Green Spaces,TESCO-STORES 6724 CHELMSFORD,2.25,General Expense,5411,GROCERY STORES OR SUPERMARKETS
CCC_10002955_3,17/10/2023,Public Health & Protection Services,GREATER ANGLIA 4278,30.35,Public Transport,4112,PASSENGER RAILWAYS
CCC_10003430_8,08/01/2024,Street Care & Performance,AMZNMKTPLACE LONDON,2.49,General Expense,5999,MISCELLANEOUS & SPECIALTY STORES
CCC_10002222_2,25/04/2023,Leisure & Heritage Services,AMZNMKTPLACE AMAZON.CO.UK,39.98,General Expense,5999,MISCELLANEOUS & SPECIALTY STORES
CCC_10002413_4,31/05/2023,Parks & Green Spaces,AMZNMKTPLACE AMAZON.CO.UK,12.45,General Expense,5999,MISCELLANEOUS & SPECIALTY STORES
CCC_10002972_1,09/10/2023,Street Care & Performance,WHITE HART HARROGATE,127.25,Conference Expenses,7011," LODGING,HOTELS,MOTELS,RESORTS "
CCC_10002639_1,12/07/2023,Leisure & Heritage Services,WWW.SCREWFIX.COM YEOVIL,18.32,General Expense,5211,LUMBER AND BUILDING MATERIALS STORES
CCC_10003341_27,15/12/2023,"Museums, Theatres & Cultural Services",TESCO STORES 5408 CHELMSFORD,24.4,General Expense,5411,GROCERY STORES OR SUPERMARKETS
CCC_10002510_11,21/06/2023,Parks & Green Spaces,THE HOSE MASTER NELSON,8.77,New Equipment,5074,PLUMBING AND HEATING EQUIPMENT AND SUPPLIES
CCC_10002463_5,19/06/2023,Marketing & Communications Team,ASDA GEORGE COM LEEDS LEEDS,128.95,New Equipment,5411,GROCERY STORES OR SUPERMARKETS
CCC_10003056_1,31/10/2023,Leisure & Heritage Services,TAHDAH VERIFIED LLANDUDNO,21.5,General Expense,5734,COMPUTER SOFTWARE STORES
CCC_10003340_2,15/12/2023,Public Health & Protection Services,PEDDYMARK REDHILL,84.98,New Equipment,5995," PET SHOPS, PET FOODS AND SUPPLIES STORES "
CCC_10002841_9,29/08/2023,Parks & Green Spaces,TESCO-STORES 6724 CHELMSFORD,0.75,General Expense,5411,GROCERY STORES OR SUPERMARKETS
CCC_10002239_5,20/04/2023,Parks & Green Spaces,SETON BANBURY,55.94,Grounds Maintenance Materials,5099,DURABLE GOODS (NEC)
CCC_10002758_1,02/06/2023,Leisure & Heritage Services,INTA AUDIO COMPUTERSYS COVENTRY,116.67,New Equipment,5733," MUSIC STORES, MUSICAL INSTRUMENTS, PIANOS, SHEET MUSIC "
CCC_10003562_1,05/02/2024,Leisure & Heritage Services,SCREWFIX DIR LTD CHELMFOR1867,18.57,New Equipment,5211,LUMBER AND BUILDING MATERIALS STORES
CCC_10002220_1,21/04/2023,Public Health & Protection Services,AMZNMKTPLACE AMAZON.CO AMAZON.CO.UK,9.57,General Expense,5999,MISCELLANEOUS & SPECIALTY STORES
CCC_10002924_2,06/10/2023,Digital Services,AMZNMKTPLACE AMAZON.CO.UK,16.65,New Equipment,5999,MISCELLANEOUS & SPECIALTY STORES
CCC_10002601_7,13/06/2023,Parks & Green Spaces,CHANDLER MATERIALS CHELMSFORD,8.98,Grounds Maintenance Materials,5211,LUMBER AND BUILDING MATERIALS STORES
CCC_10003042_11,23/10/2023,Leisure & Heritage Services,AMZNMKTPLACE LONDON,105.3,General Expense,5999,MISCELLANEOUS & SPECIALTY STORES
CCC_10003307_3,30/11/2023,Leisure & Heritage Services,CALENDLY AVONDALE ESTA,9.76,General Expense,5734,COMPUTER SOFTWARE STORES
CCC_10002689_3,02/08/2023,Development Management,AMZNMKTPLACE AMAZON.CO.UK,16.6,Printing & Stationary,5999,MISCELLANEOUS & SPECIALTY STORES
CCC_10003319_1,30/11/2023,"Museums, Theatres & Cultural Services",DUKE STREET COOP 01245 345490,10,General Expense,5411,GROCERY STORES OR SUPERMARKETS
CCC_10002411_29,11/05/2023,South Essex Parking Partnership,EBAY O 10-10046-42386 LONDON,6.12,Printing & Stationary,5311,DEPARTMENT STORES
CCC_10002517_8,08/06/2023,"Museums, Theatres & Cultural Services",AMZNMKTPLACE AMAZON.CO.UK,21.57,General Expense,5999,MISCELLANEOUS & SPECIALTY STORES
CCC_10003073_9,06/11/2023,Parks & Green Spaces,AMZNMKTPLACE LONDON,52.77,Grounds Maintenance Materials,5999,MISCELLANEOUS & SPECIALTY STORES
CCC_10003318_6,19/12/2023,Human Resources,WWW.CIPFA.ORG.UK LONDON  WC2N,380,Employee Subscriptions,8699,MEMBERSHIP ORGANIZATIONS NOT ELSEWHERE CLASSIFIED
CCC_10003043_9,24/10/2023,Leisure & Heritage Services,LES MILLS FITNESS LONDON,150,Training Expenses,8220," UNIVERSITIES, COLLEGES, SR COLLEGES OR PROFESSIONAL SCHOOLS "
CCC_10002389_4,30/05/2023,Parks & Green Spaces,DVLA VEHICLE TAX 0300 1234321,322.5,Vehicle Tax,9311,TAX PAYMENTS
CCC_10002963_1,05/10/2023,Public Health & Protection Services,AMZNMKTPLACE LONDON,29.07,General Expense,5999,MISCELLANEOUS & SPECIALTY STORES
CCC_10002831_8,23/08/2023,Parks & Green Spaces,AMZNMKTPLACE AMAZON.CO.UK,29.98,Grounds Maintenance Materials,5999,MISCELLANEOUS & SPECIALTY STORES
CCC_10003344_15,17/11/2023,Parks & Green Spaces,HOBBYCRAFT CHELMSFORD,17.08,General Expense,5970,CRAFT OR ARTIST'S SUPPLY SHOPS
CCC_10003132_1,08/11/2023,Parking & Highways Operations,AMZNMKTPLACE AMAZON.CO.UK,5.11,Printing & Stationary,5999,MISCELLANEOUS & SPECIALTY STORES
CCC_10003098_4,09/11/2023,Public Health & Protection Services,TRAINLINE +443332022222,21.91,Public Transport,4112,PASSENGER RAILWAYS
CCC_10002323_5,17/05/2023,Leisure & Heritage Services,AMZNMKTPLACE AMAZON.CO AMAZON.CO.UK,2.49,General Expense,5999,MISCELLANEOUS & SPECIALTY STORES
CCC_10003455_1,18/01/2024,Leisure & Heritage Services,DIY SPARE PARTS SHAFTESBURY,43.42,New Equipment,5533," AUTOMOTIVE PARTS, ACCESSORIES STORES "
CCC_10002859_1,13/09/2023,"Procurement, Risk and Insurance",WWW.CIPS.ORG 0845 8801188,85,Training Expenses,8699,MEMBERSHIP ORGANIZATIONS NOT ELSEWHERE CLASSIFIED
CCC_10003227_2,24/11/2023,Leisure & Heritage Services,WWW.SCREWFIX.COM YEOVIL,73.32,Grounds Maintenance Materials,5211,LUMBER AND BUILDING MATERIALS STORES
CCC_10003286_13,04/10/2023,"Museums, Theatres & Cultural Services",TESCO STORES 5408 CHELMSFORD,3,General Expense,5411,GROCERY STORES OR SUPERMARKETS
CCC_10003020_6,13/10/2023,"Museums, Theatres & Cultural Services",WP-THE LIGHTBULB C OXFORD,7.45,New Equipment,5722,APPLIANCE STORES (NEC) OR HOUSEHOLD APPLIANCE STORES
CCC_10003048_2,31/10/2023,Parks & Green Spaces,AMZNMKTPLACE AMAZON.CO.UK,17.76,Grounds Maintenance Materials,5999,MISCELLANEOUS & SPECIALTY STORES
CCC_10002425_10,30/05/2023,Parks & Green Spaces,AMZNMKTPLACE AMAZON.CO.UK,37.46,Grounds Maintenance Materials,5999,MISCELLANEOUS & SPECIALTY STORES
CCC_10003054_2,31/10/2023,Human Resources,AMZNMKTPLACE AMAZON.CO.UK,-3.96,General Expense,5999,MISCELLANEOUS & SPECIALTY STORES
CCC_10003107_1,16/11/2023,Public Health & Protection Services,RICARDO-AEA LTD HARWELL,300,Training Expenses,7392," MANAGEMENT, PUBLIC RELATIONS OR CONSULTING SERVICES "
CCC_10003446_16,29/12/2023,"Museums, Theatres & Cultural Services",AMZNMKTPLACE AMAZON.CO.UK,4.93,New Equipment,5999,MISCELLANEOUS & SPECIALTY STORES
CCC_10002323_2,25/05/2023,Leisure & Heritage Services,NEWITTS.COM YORK,114.04,General Expense,5941,SPORTING GOODS STORES
CCC_10002916_1,28/09/2023,Development Management,AMZNMKTPLACE LONDON,13.85,Printing & Stationary,5999,MISCELLANEOUS & SPECIALTY STORES
CCC_10002990_2,12/10/2023,Operational Services,AMZNMKTPLACE AMAZON.CO.UK,11.91,New Equipment,5999,MISCELLANEOUS & SPECIALTY STORES
CCC_10002249_2,27/04/2023,Public Health & Protection Services,AMZNMKTPLACE AMAZON.CO AMAZON.CO.UK,75.67,Printing & Stationary,5999,MISCELLANEOUS & SPECIALTY STORES
CCC_10003206_1,05/12/2023,Digital Services,GREATER ANGLIA TRAINS LONDON,30.35,Public Transport,4112,PASSENGER RAILWAYS
CCC_10002767_2,27/07/2023,"Museums, Theatres & Cultural Services",WWW.PRESERVATIONEQUIPM 01379647400,279.7,Museum Exhibits,4225," PUBLIC WAREHOUSING-FARM PROD,REFRIDGERAT "
CCC_10002512_1,22/06/2023,Development Management,AMZNMKTPLACE AMAZON.CO AMAZON.CO.UK,7.47,Printing & Stationary,5999,MISCELLANEOUS & SPECIALTY STORES
CCC_10002894_7,25/07/2023,"Museums, Theatres & Cultural Services",WWW.SCREWFIX.COM YEOVIL,0.82,Museum Exhibits,5211,LUMBER AND BUILDING MATERIALS STORES
CCC_10003265_6,06/12/2023,Parks & Green Spaces,BOOKER LTD - 38548144 WELLINGBOROUG,73.67,General Expense,5411,GROCERY STORES OR SUPERMARKETS
CCC_10002414_9,21/05/2023,Parks & Green Spaces,AMZNMKTPLACE AMAZON.CO.UK,45.67,Grounds Maintenance Materials,5999,MISCELLANEOUS & SPECIALTY STORES
CCC_10003419_2,04/12/2023,Parks & Green Spaces,TESCO-STORES 6724 CHELMSFORD,6.25,Grounds Maintenance Materials,5411,GROCERY STORES OR SUPERMARKETS
CCC_10002421_7,12/04/2023,Parking & Highways Operations,AMZNMKTPLACE AMAZON.CO.UK,12.49,General Expense,5999,MISCELLANEOUS & SPECIALTY STORES
CCC_10002719_3,01/08/2023,Leisure & Heritage Services,FIX THE BOG NEWBURY,48.27,Grounds Maintenance Materials,5251,HARDWARE STORES
CCC_10002177_9,15/04/2023,Leisure & Heritage Services,AMZNMKTPLACE AMAZON.CO AMAZON.CO.UK,11.66,General Expense,5999,MISCELLANEOUS & SPECIALTY STORES
CCC_10003126_2,21/11/2023,Public Health & Protection Services,CHELMSFORD SAFETY SUPP CHELMSFORD,16.4,Clothing & Uniforms,5047," MEDICAL, DENTAL, OPHTHALMIC AND HOSPITAL EQUIP "
CCC_10002416_3,05/06/2023,Operational Services,SQ  COFFEE AND CAKE AT SPRINGFIELD,15.44,General Expense,5814,FAST FOOD RESTAURANTS
CCC_10002303_21,31/05/2023,"Museums, Theatres & Cultural Services",TESCO STORES 5408 CHELMSFORD,4.6,General Expense,5411,GROCERY STORES OR SUPERMARKETS
CCC_10002748_2,07/08/2023,Operational Services,FACEBK 39VNYSBRM2 FB.ME/ADS,21.64,Advertising,7311,ADVERTISING SERVICES
CCC_10002965_8,09/10/2023,Spatial Planning,AMZNMKTPLACE AMAZON.CO.UK,10.53,Printing & Stationary,5999,MISCELLANEOUS & SPECIALTY STORES
CCC_10002953_3,01/10/2023,"Museums, Theatres & Cultural Services",AMZNMKTPLACE LONDON,58.17,General Expense,5999,MISCELLANEOUS & SPECIALTY STORES
CCC_10002736_1,27/06/2023,"Museums, Theatres & Cultural Services",AMZNMKTPLACE AMAZON.CO.UK,10.82,Printing & Stationary,5999,MISCELLANEOUS & SPECIALTY STORES
CCC_10003137_2,08/10/2023,Marketing & Communications Team,PRINT MARKETPLACE 40 2802345,14.55,Printing & Stationary,7338," PRINT SHOPS, QUICK COPY SERVICES OR REPRODUCTION SERVICES "
CCC_10003166_1,30/09/2023,Leisure & Heritage Services,BREWERS CHELMSFORD CHELMSFORD,11.95,New Equipment,5251,HARDWARE STORES
CCC_10003419_4,04/12/2023,Parks & Green Spaces,AMZNMKTPLACE LONDON,53.12,Grounds Maintenance Materials,5999,MISCELLANEOUS & SPECIALTY STORES
CCC_10003098_8,03/11/2023,Public Health & Protection Services,TRAINLINE +443332022222,38.06,Public Transport,4112,PASSENGER RAILWAYS
CCC_10003424_1,17/01/2024,Leisure & Heritage Services,AMZNBUSINESS VB56X5J85 LUXEMBOURG L,37.41,Printing & Stationary,5999,MISCELLANEOUS & SPECIALTY STORES
CCC_10003456_2,26/01/2024,Operational Services,SP BCE CCTV BRISTOL,62.65,General Expense,4814,TELECOMMUNCATIONS SERV INCL LOCA/LONG DIST CREDIT & FAX
CCC_10003283_1,20/09/2023,"Museums, Theatres & Cultural Services",BOOKER LIMITED ECOM WELLINGBOROUG,189.98,General Expense,5411,GROCERY STORES OR SUPERMARKETS
CCC_10002275_6,22/04/2023,"Museums, Theatres & Cultural Services",TESCO STORES 5408 CHELMSFORD,6.9,General Expense,5411,GROCERY STORES OR SUPERMARKETS
CCC_10002397_1,24/05/2023,Legal & Democratic Services,SAINSBURY'S S/MKT SPRINGFIELD,98.45,General Expense,5411,GROCERY STORES OR SUPERMARKETS
CCC_10003338_1,02/01/2024,"Museums, Theatres & Cultural Services",SPECIALIST CRAFTS LTD LEICESTER,123.2,New Equipment,5970,CRAFT OR ARTIST'S SUPPLY SHOPS
CCC_10002363_1,23/05/2023,Leisure & Heritage Services,WWW.SCREWFIX.COM YEOVIL,148.21,Grounds Maintenance Materials,5211,LUMBER AND BUILDING MATERIALS STORES
CCC_10003286_9,01/10/2023,"Museums, Theatres & Cultural Services",TESCO STORES 5408 CHELMSFORD,1.55,General Expense,5411,GROCERY STORES OR SUPERMARKETS
CCC_10003554_3,13/02/2024,Digital Services,GREATER ANGLIA RAIL LONDON,35.4,Public Transport,4112,PASSENGER RAILWAYS
CCC_10002884_28,27/07/2023,South Essex Parking Partnership,B NELI LTD MOBILE VALE CHELMSFORD,20.83,General Expense,7542,CAR WASHES
CCC_10002229_3,13/04/2023,Leisure & Heritage Services,EUROFFICE.CO.UK 0800 316 3876,117.1,General Expense,5943," STATIONERY STORES, OFFICE & SCHOOL SUPPLY STORES "
CCC_10002169_13,26/04/2023,"Museums, Theatres & Cultural Services",TESCO STORES 5408 CHELMSFORD,5.8,General Expense,5411,GROCERY STORES OR SUPERMARKETS
CCC_10002285_1,11/05/2023,Digital Services,AMZNMKTPLACE AMAZON.CO.UK,16.65,New Equipment,5999,MISCELLANEOUS & SPECIALTY STORES
CCC_10003585_14,07/02/2024,Public Health & Protection Services,AMAZON  203-7599898-22 LONDON,3.73,Printing & Stationary,5399,GENERAL MERCHANDISE OR CONVENIENCE FOOD STORES
CCC_10002411_8,30/05/2023,South Essex Parking Partnership,ARCO LTD BASILDON,75.6,Clothing & Uniforms,5085,INDUSTRIAL SUPPLIES (NEC)
CCC_10002622_8,19/06/2023,"Museums, Theatres & Cultural Services",IRONMONGERYDIRECT BASILDON,45.64,General Expense,5251,HARDWARE STORES
CCC_10002904_3,15/09/2023,Parks & Green Spaces,FARNELL LEEDS,20.05,Grounds Maintenance Materials,5065,ELECTRICAL PARTS AND EQUIPMENT
CCC_10003485_6,11/01/2024,"Museums, Theatres & Cultural Services",DULUX DECORATOR CENTRE CHELMSFORD,65.47,General Expense,5198," PAINTS, VARNISHES AND SUPPLIES "
CCC_10003293_14,30/11/2023,Housing Services,TRAVELODG TRAVELODGE G THAME,222.47,General Expense,3615,TRAVELODGE
CCC_10003174_1,13/11/2023,Marketing & Communications Team,TRAINLINE LONDON,67.86,Public Transport,4112,PASSENGER RAILWAYS
CCC_10002939_3,29/09/2023,Leisure & Heritage Services,HOME BARGAINS CHELMSFORD,1.66,General Expense,5399,GENERAL MERCHANDISE OR CONVENIENCE FOOD STORES
CCC_10003288_47,22/11/2023,"Museums, Theatres & Cultural Services",TESCO STORES 5408 CHELMSFORD,1.75,General Expense,5411,GROCERY STORES OR SUPERMARKETS
CCC_10002586_2,10/07/2023,"Museums, Theatres & Cultural Services",AMZ AMAZON BUSINESS UK 800-279-6620,-1.04,General Expense,5942,BOOK STORES
CCC_10003493_1,13/11/2023,Leisure & Heritage Services,LES MILLS FITNESS LONDON,-150,Training Expenses,8220," UNIVERSITIES, COLLEGES, SR COLLEGES OR PROFESSIONAL SCHOOLS "
CCC_10003467_1,29/01/2024,Leisure & Heritage Services,AMZNBUSINESS IB3AW6DL5 LUXEMBOURG L,42.49,General Expense,5999,MISCELLANEOUS & SPECIALTY STORES
CCC_10002517_21,19/06/2023,"Museums, Theatres & Cultural Services",TESCO STORES 5408 CHELMSFORD,6.75,General Expense,5411,GROCERY STORES OR SUPERMARKETS
CCC_10002227_1,27/04/2023,Development Management,AMZNMKTPLACE AMAZON.CO.UK,3.06,Printing & Stationary,5999,MISCELLANEOUS & SPECIALTY STORES
CCC_10002915_2,12/09/2023,Parks & Green Spaces,B & Q 1188 CHELMSFORD,98.33,Grounds Maintenance Materials,5200,HOME SUPPLY WAREHOUSE STORES
CCC_10002846_3,13/09/2023,Accountancy Services,GREATER ANGLIA 4278,34.5,Public Transport,4112,PASSENGER RAILWAYS
CCC_10002663_2,22/07/2023,Spatial Planning,MIPERMIT CHIPPENHAM,3.33,Car Parking,7523,AUTOMOBILE PARKING OR PARKING LOTS
CCC_10002701_1,26/07/2023,"Museums, Theatres & Cultural Services",AMZNMKTPLACE AMAZON.CO AMAZON.CO.UK,10.23,General Expense,5999,MISCELLANEOUS & SPECIALTY STORES
CCC_10003241_1,08/12/2023,Human Resources,SHL GROUP LTD THAMES DITTON,327.25,General Expense,7399,BUSINESS SERVICES (NEC)
CCC_10002422_2,05/06/2023,Parks & Green Spaces,B & Q 1188 CHELMSFORD,14.17,General Expense,5200,HOME SUPPLY WAREHOUSE STORES
CCC_10002484_1,31/05/2023,Legal & Democratic Services,STATIONERYU 35314369001,24.32,Printing & Stationary,5943," STATIONERY STORES, OFFICE & SCHOOL SUPPLY STORES "
CCC_10003295_1,20/12/2023,"Procurement, Risk and Insurance",WWW.CIPS.ORG 0845 8801188,66,Training Expenses,8699,MEMBERSHIP ORGANIZATIONS NOT ELSEWHERE CLASSIFIED
CCC_10002670_16,01/07/2023,South Essex Parking Partnership,POST OFFICE COUNTER BASILDON,6.82,Clothing & Uniforms,9402,POSTAGE STAMPS
CCC_10003142_1,12/11/2023,"Museums, Theatres & Cultural Services",ETSY.COM HERTSIGNS LONDON,39.99,General Expense,5399,GENERAL MERCHANDISE OR CONVENIENCE FOOD STORES
CCC_10003403_2,16/01/2024,Public Health & Protection Services,AMZNBUSINESS F64Q763Q5 LUXEMBOURG L,10.87,Printing & Stationary,5999,MISCELLANEOUS & SPECIALTY STORES
CCC_10003625_3,15/02/2024,Marketing & Communications Team,WWW.SOLOPRESS.COM SOUTHEND-ON-S,76.33,Printing & Stationary,2741,MISCELLANEOUS PUBLISHING AND PRINTING
CCC_10002237_1,30/04/2023,Marketing & Communications Team,FACEBK KVR2QMKL92 FB.ME/ADS,19.82,Advertising,7311,ADVERTISING SERVICES
CCC_10002517_23,21/06/2023,"Museums, Theatres & Cultural Services",TESCO STORES 5408 CHELMSFORD,8.6,General Expense,5411,GROCERY STORES OR SUPERMARKETS
CCC_10002670_3,18/07/2023,South Essex Parking Partnership,HALFORDS 0803 RAYLEIGH,10.99,Vehicle Repairs,5940,BICYCLE SHOPS -- SALES AND SERVICE
CCC_10003015_18,10/10/2023,South Essex Parking Partnership,POLICE SUPPLIES KIRKBY,105.73,Clothing & Uniforms,5699,APPAREL AND ACCESSORY SHOPS -- MISCELLANEOUS
CCC_10002826_1,31/08/2023,"Museums, Theatres & Cultural Services",ABTT  EVENT LONDON,100,Conference Expenses,8699,MEMBERSHIP ORGANIZATIONS NOT ELSEWHERE CLASSIFIED
CCC_10003250_3,08/11/2023,Parking & Highways Operations,PAYPAL  ADVANCEDBAT 35314369001,593.75,General Expense,5533," AUTOMOTIVE PARTS, ACCESSORIES STORES "
CCC_10003415_12,29/01/2024,Parks & Green Spaces,AMAZON  206-1542585-93 LONDON,50.08,General Expense,5399,GENERAL MERCHANDISE OR CONVENIENCE FOOD STORES
CCC_10002413_6,29/05/2023,Parks & Green Spaces,AMZNMKTPLACE AMAZON.CO.UK,11.13,General Expense,5999,MISCELLANEOUS & SPECIALTY STORES
CCC_10003299_2,19/12/2023,Leisure & Heritage Services,AMZNMKTPLACE LONDON,12.12,General Expense,5999,MISCELLANEOUS & SPECIALTY STORES
CCC_10003042_18,05/10/2023,Leisure & Heritage Services,TESCO STORES 2172 BRAINTREE,19,General Expense,5411,GROCERY STORES OR SUPERMARKETS
CCC_10002238_1,03/05/2023,Leisure & Heritage Services,AMZNMKTPLACE AMAZON.CO.UK,115.16,General Expense,5999,MISCELLANEOUS & SPECIALTY STORES
CCC_10002905_2,01/09/2023,"Museums, Theatres & Cultural Services",AMZ HARROW BUSINESS AMAZON.CO.UK,-16.23,Printing & Stationary,5999,MISCELLANEOUS & SPECIALTY STORES
CCC_10002541_4,15/06/2023,Leisure & Heritage Services,FURNITUREFACTOR.CO.UK LEICESTER,169,General Expense,5712," FURNITURE, HOME FURNISHINGS & EQUIP STORES EXCL APPLIANCES "
CCC_10003536_10,13/09/2023,Housing Services,CASTLE WATER BLAIRGOWRIE,8.67,General Expense,4900," ELECTRIC, GAS, SANITARY, TELEPHONE OR WATER UTILITIES "
CCC_10003185_23,21/11/2023,"Museums, Theatres & Cultural Services",AMZNMKTPLACE AMAZON.CO.UK,55.48,Clothing & Uniforms,5999,MISCELLANEOUS & SPECIALTY STORES
CCC_10002304_4,27/04/2023,Leisure & Heritage Services,THE DELI HYLANDS CHELMSFORD,5.12,General Expense,5812,RESTAURANTS OR EATING PLACES
CCC_10002840_4,24/08/2023,Leisure & Heritage Services,O2 PREPAY TOP-UP 0344 809 0222,10,General Expense,4814,TELECOMMUNCATIONS SERV INCL LOCA/LONG DIST CREDIT & FAX
CCC_10002860_1,13/09/2023,"Museums, Theatres & Cultural Services",AMZNMKTPLACE AMAZON.CO AMAZON.CO.UK,6.24,New Equipment,5999,MISCELLANEOUS & SPECIALTY STORES
CCC_10002670_29,19/06/2023,South Essex Parking Partnership,SAVERS HEALTH & BEAUTY BRENTWOOD,8.89,General Expense,5912,PHARMCIES OR DRUG STORES
CCC_10003344_23,02/11/2023,Parks & Green Spaces,LONGACRES GC CHELMSFOR CHELMSFORD,4.99,General Expense,5261,GARDEN AND LAWN SUPPLY STORES OR NURSERIES
CCC_10003341_75,27/12/2023,"Museums, Theatres & Cultural Services",TESCO STORES 5408 CHELMSFORD,4.65,General Expense,5411,GROCERY STORES OR SUPERMARKETS
CCC_10003555_3,15/02/2024,Leisure & Heritage Services,AMAZON  026-1935995-35 LONDON,7.92,New Equipment,5399,GENERAL MERCHANDISE OR CONVENIENCE FOOD STORES
CCC_10002915_6,04/09/2023,Parks & Green Spaces,AMZNMKTPLACE AMAZON.CO.UK,39.47,Grounds Maintenance Materials,5999,MISCELLANEOUS & SPECIALTY STORES
CCC_10002875_3,14/09/2023,Development Management,CIEEM.NET AMPFIELD,166.67,Training Expenses,8398,CHARITABLE OR SOCIAL SERVICES ORGANIZATIONS
CCC_10002517_1,03/06/2023,"Museums, Theatres & Cultural Services",TESCO STORES 5408 CHELMSFORD,6.6,General Expense,5411,GROCERY STORES OR SUPERMARKETS
CCC_10002463_7,27/06/2023,Marketing & Communications Team,HANDY LABELS BRISTOL,33.97,Printing & Stationary,2741,MISCELLANEOUS PUBLISHING AND PRINTING
CCC_10002965_3,10/10/2023,Spatial Planning,AMZNMKTPLACE AMAZON.CO.UK,23.49,Printing & Stationary,5999,MISCELLANEOUS & SPECIALTY STORES
CCC_10003169_14,14/06/2023,Leisure & Heritage Services,AMZNMKTPLACE AMAZON.CO.UK,6.22,New Equipment,5999,MISCELLANEOUS & SPECIALTY STORES
CCC_10002479_3,19/06/2023,"Museums, Theatres & Cultural Services",AMZNMKTPLACE AMAZON.CO AMAZON.CO.UK,28.32,General Expense,5999,MISCELLANEOUS & SPECIALTY STORES
CCC_10003256_1,29/09/2023,"Museums, Theatres & Cultural Services",RS COMPONENTS 08457 201201,212.09,General Expense,5065,ELECTRICAL PARTS AND EQUIPMENT
CCC_10003535_5,23/11/2023,"Museums, Theatres & Cultural Services",NISBETS LTD 0845 1110281,17.16,General Expense,5964,CATALOG MERCHANT
CCC_10003042_5,25/10/2023,Leisure & Heritage Services,AMZNMKTPLACE LONDON,26.99,General Expense,5999,MISCELLANEOUS & SPECIALTY STORES
CCC_10003231_4,06/11/2023,Digital Services,AMZNMKTPLACE AMAZON.CO.UK,95.82,New Equipment,5999,MISCELLANEOUS & SPECIALTY STORES
CCC_10002194_6,06/04/2023,Leisure & Heritage Services,AMZNMKTPLACE AMAZON.CO.UK,15.79,General Expense,5999,MISCELLANEOUS & SPECIALTY STORES
CCC_10003585_8,12/02/2024,Public Health & Protection Services,CLR WWW.CIEH.ORG LONDON,495,Training Expenses,8699,MEMBERSHIP ORGANIZATIONS NOT ELSEWHERE CLASSIFIED
CCC_10002323_8,05/05/2023,Leisure & Heritage Services,AMZNMKTPLACE AMAZON.CO AMAZON.CO.UK,15.83,General Expense,5999,MISCELLANEOUS & SPECIALTY STORES
CCC_10003157_7,23/11/2023,Digital Services,EBUYER (UK) LTD SHEFFIELD,330.03,New Equipment,5722,APPLIANCE STORES (NEC) OR HOUSEHOLD APPLIANCE STORES
CCC_10002898_1,26/09/2023,Public Health & Protection Services,SP SPEECHSHOP WORCESTERSHIR,162.98,New Equipment,5734,COMPUTER SOFTWARE STORES
CCC_10003317_1,18/12/2023,Human Resources,FACEBK 65W6YU7D82 FB.ME/ADS,76.28,General Expense,7311,ADVERTISING SERVICES
CCC_10002514_1,28/06/2023,Public Health & Protection Services,MSE MID CAR PARK CHELMSFORD,4.17,Car Parking,9399,GOVERNMENT SERVICES (NEC) OR FIRE DEPARTMENTS
CCC_10003021_1,26/10/2023,Marketing & Communications Team,PRINT MARKETPLACE 40 2802345,98.61,Printing & Stationary,7338," PRINT SHOPS, QUICK COPY SERVICES OR REPRODUCTION SERVICES "
CCC_10003152_1,15/11/2023,Leisure & Heritage Services,AMZNMKTPLACE LONDON,50.62,New Equipment,5999,MISCELLANEOUS & SPECIALTY STORES
CCC_10002415_3,02/06/2023,Leisure & Heritage Services,AMZNMKTPLACE AMAZON.CO AMAZON.CO.UK,22.27,General Expense,5999,MISCELLANEOUS & SPECIALTY STORES
CCC_10002935_1,26/09/2023,Accountancy Services,FIRST INTUITION CHELMSFORD,110,Training Expenses,8299,SCHOOLS AND EDUCATIONAL SERVICES (NEC)
CCC_10002474_3,13/06/2023,"Museums, Theatres & Cultural Services",WWW.SCREWFIX.COM YEOVIL,31.22,Museum Exhibits,5211,LUMBER AND BUILDING MATERIALS STORES
CCC_10003222_5,20/11/2023,Leisure & Heritage Services,HOME BARGAINS CHELMSFORD,25.87,New Equipment,5399,GENERAL MERCHANDISE OR CONVENIENCE FOOD STORES
CCC_10002568_6,08/05/2023,Marketing & Communications Team,WIX.COM 1054031643 LONDON,66.62,Advertising,5817,DIGITAL GOODS: APPLICATIONS (EXCLUDES GAMES)
CCC_10003452_8,24/01/2024,Parks & Green Spaces,WWW.SCREWFIX.COM YEOVIL,94.05,Grounds Maintenance Materials,5211,LUMBER AND BUILDING MATERIALS STORES
CCC_10003449_1,26/12/2023,Leisure & Heritage Services,AMZNMKTPLACE AMAZON.CO.UK,-29.99,New Equipment,5999,MISCELLANEOUS & SPECIALTY STORES
CCC_10002740_1,03/08/2023,Marketing & Communications Team,AMZNMKTPLACE AMAZON.CO AMAZON.CO.UK,22.48,Printing & Stationary,5999,MISCELLANEOUS & SPECIALTY STORES
CCC_10002689_7,28/07/2023,Development Management,AMZNMKTPLACE AMAZON.CO.UK,7.49,Printing & Stationary,5999,MISCELLANEOUS & SPECIALTY STORES
CCC_10003591_1,21/02/2024,Leisure & Heritage Services,AUTO FIX CHELMSFORD CHELMSFORD,54.16,General Expense,7512,CAR RENTAL AGENCIES -- NOT LISTED BELOW
CCC_10003402_1,17/01/2024,Operational Services,BOOKER LTD - 38548144 WELLINGBOROUG,125.82,New Equipment,5411,GROCERY STORES OR SUPERMARKETS
CCC_10003043_13,18/10/2023,Leisure & Heritage Services,AMZNMKTPLACE AMAZON.CO.UK,9.33,General Expense,5999,MISCELLANEOUS & SPECIALTY STORES
CCC_10002288_2,04/04/2023,Parks & Green Spaces,FEE2PAYONLINE LONDON,2.5,Printing & Stationary,9402,POSTAGE STAMPS
CCC_10002428_3,07/06/2023,Accountancy Services,AMZNMKTPLACE AMAZON.CO AMAZON.CO.UK,7.49,Printing & Stationary,5999,MISCELLANEOUS & SPECIALTY STORES
CCC_10003617_10,07/02/2024,Parks & Green Spaces,PARCELFORCE WL BOLTON,10,Public Transport,4215," COURIER SERVICES-AIR OR GROUND, FREIGHT "
CCC_10003435_2,22/01/2024,Leisure & Heritage Services,AMZNMKTPLACE AMAZON.CO.UK,19,General Expense,5999,MISCELLANEOUS & SPECIALTY STORES
CCC_10002516_1,25/06/2023,Leisure & Heritage Services,PRINT MARKETPLACE 40 2802345,36.85,Printing & Stationary,7338," PRINT SHOPS, QUICK COPY SERVICES OR REPRODUCTION SERVICES "
CCC_10002807_33,21/08/2023,"Museums, Theatres & Cultural Services",TESCO STORES 5408 CHELMSFORD,2.5,General Expense,5411,GROCERY STORES OR SUPERMARKETS
CCC_10002881_8,30/08/2023,Parks & Green Spaces,AMZNMKTPLACE AMAZON.CO AMAZON.CO.UK,79.2,Grounds Maintenance Materials,5999,MISCELLANEOUS & SPECIALTY STORES
CCC_10002332_2,20/05/2023,Parking & Highways Operations,WICKES BUILDING WATFORD,17.32,General Expense,5211,LUMBER AND BUILDING MATERIALS STORES
CCC_10002517_6,06/06/2023,"Museums, Theatres & Cultural Services",AMZNMKTPLACE AMAZON.CO.UK,8.32,Printing & Stationary,5999,MISCELLANEOUS & SPECIALTY STORES
CCC_10003198_5,12/11/2023,Street Care & Performance,AMZNMKTPLACE AMAZON.CO.UK,20.3,General Expense,5999,MISCELLANEOUS & SPECIALTY STORES
CCC_10003036_2,07/08/2023,"Museums, Theatres & Cultural Services",WICKES CHELMSFORD CHELMSFORD,7.98,General Expense,5211,LUMBER AND BUILDING MATERIALS STORES
CCC_10002278_2,17/04/2023,Leisure & Heritage Services,AMZNMKTPLACE AMAZON.CO.UK,30.97,General Expense,5999,MISCELLANEOUS & SPECIALTY STORES
CCC_10003293_13,01/12/2023,Housing Services,TRAVELODG TRAVELODGE G THAME,161.64,General Expense,3615,TRAVELODGE
CCC_10003510_4,04/07/2023,Parks & Green Spaces,AMZNMKTPLACE AMAZON.CO.UK,15.82,Grounds Maintenance Materials,5999,MISCELLANEOUS & SPECIALTY STORES
CCC_10003406_13,08/01/2024,Parks & Green Spaces,AMZNMKTPLACE LONDON,9.65,Grounds Maintenance Materials,5999,MISCELLANEOUS & SPECIALTY STORES
CCC_10002769_7,20/06/2023,Parking & Highways Operations,AMZNMKTPLACE AMAZON.CO.UK,15.62,General Expense,5999,MISCELLANEOUS & SPECIALTY STORES
CCC_10002235_3,05/05/2023,Operational Services,SPECSAVERS CHELMSFORD,258,General Expense,8043,OPTICIANS
CCC_10002670_32,14/06/2023,South Essex Parking Partnership,AMZNMKTPLACE AMAZON.CO AMAZON.CO.UK,10.82,General Expense,5999,MISCELLANEOUS & SPECIALTY STORES
CCC_10002521_1,21/06/2023,"Museums, Theatres & Cultural Services",GREATERANGLIACOM LONDON,18.96,Public Transport,4112,PASSENGER RAILWAYS
CCC_10003341_70,29/12/2023,"Museums, Theatres & Cultural Services",TESCO STORES 5408 CHELMSFORD,7.75,General Expense,5411,GROCERY STORES OR SUPERMARKETS
CCC_10003406_5,15/01/2024,Parks & Green Spaces,DVLA VEHICLE TAX 0300 1234321,322.5,Grounds Maintenance Materials,9311,TAX PAYMENTS
CCC_10002804_43,25/07/2023,"Museums, Theatres & Cultural Services",TESCO STORES 5408 CHELMSFORD,3.25,General Expense,5411,GROCERY STORES OR SUPERMARKETS
CCC_10002714_2,28/07/2023,Parks & Green Spaces,DUNELM LTD CHELMSFORD,5.83,General Expense,5714," DRAPERY, WINDOWCOVERING, AND UPHOLSTERY STORES "
CCC_10003185_4,29/11/2023,"Museums, Theatres & Cultural Services",TESCO STORES 5408 CHELMSFORD,0.65,New Equipment,5411,GROCERY STORES OR SUPERMARKETS
CCC_10003406_10,15/01/2024,Parks & Green Spaces,TESCO STORES 2330 CHELMSFORD 2,36.67,Grounds Maintenance Materials,5411,GROCERY STORES OR SUPERMARKETS
CCC_10002424_1,05/06/2023,Corporate Property Services,AMZNMKTPLACE AMAZON.CO.UK,21.17,Printing & Stationary,5999,MISCELLANEOUS & SPECIALTY STORES
CCC_10002902_11,13/09/2023,Leisure & Heritage Services,LOVE TABLECLOTHS ACCRINGTON,60.79,General Expense,5047," MEDICAL, DENTAL, OPHTHALMIC AND HOSPITAL EQUIP "
CCC_10002938_8,12/09/2023,Leisure & Heritage Services,AMZNMKTPLACE AMAZON.CO AMAZON.CO.UK,149.78,New Equipment,5999,MISCELLANEOUS & SPECIALTY STORES
CCC_10002583_2,01/07/2023,Marketing & Communications Team,GOOGLE ADS3539603203 DUBLIN,184.57,Advertising,7311,ADVERTISING SERVICES
CCC_10003048_13,18/10/2023,Parks & Green Spaces,AMZNMKTPLACE AMAZON.CO.UK,19.86,Grounds Maintenance Materials,5999,MISCELLANEOUS & SPECIALTY STORES
CCC_10002302_1,17/05/2023,Marketing & Communications Team,WWW.SOLOPRESS.COM SOUTHEND-ON-S,501.3,Printing & Stationary,2741,MISCELLANEOUS PUBLISHING AND PRINTING
CCC_10003454_4,16/01/2024,Parking & Highways Operations,TIGER SUPPLIES BRAINTREE,201.5,General Expense,5099,DURABLE GOODS (NEC)
CCC_10002944_3,29/09/2023,Operational Services,DVLA VEHICLE TAX 0300 1234321,322.5,Vehicle Tax,9311,TAX PAYMENTS
CCC_10002171_4,07/04/2023,Leisure & Heritage Services,AMZNMKTPLACE AMAZON.CO AMAZON.CO.UK,17.76,General Expense,5999,MISCELLANEOUS & SPECIALTY STORES
CCC_10003066_6,28/11/2023,Public Health & Protection Services,GREATER ANGLIA 4278,22.75,Public Transport,4112,PASSENGER RAILWAYS
CCC_10002448_1,24/05/2023,Leisure & Heritage Services,J P LENNARD LTD RUGBY,394.2,New Equipment,5941,SPORTING GOODS STORES
CCC_10002938_13,25/08/2023,Leisure & Heritage Services,AMAZON PRIME 1M1LW9T34 AMZN.CO.UK/PM,8.99,New Equipment,5968,CONTINUITY/SUBSCRIPTION MERCHANT
CCC_10003073_2,06/11/2023,Parks & Green Spaces,AMZNMKTPLACE AMAZON.CO.UK,26.27,Grounds Maintenance Materials,5999,MISCELLANEOUS & SPECIALTY STORES
CCC_10003040_5,13/09/2023,Parks & Green Spaces,TESCO-STORES 6724 CHELMSFORD,0.75,General Expense,5411,GROCERY STORES OR SUPERMARKETS
CCC_10002807_19,15/08/2023,"Museums, Theatres & Cultural Services",TESCO STORES 5408 CHELMSFORD,1.1,General Expense,5411,GROCERY STORES OR SUPERMARKETS
CCC_10003020_16,01/10/2023,"Museums, Theatres & Cultural Services",AMZNMKTPLACE AMAZON.CO.UK,48.99,New Equipment,5999,MISCELLANEOUS & SPECIALTY STORES
CCC_10002303_11,19/05/2023,"Museums, Theatres & Cultural Services",TESCO STORES 5408 CHELMSFORD,7.95,General Expense,5411,GROCERY STORES OR SUPERMARKETS
CCC_10002783_6,28/08/2023,Digital Services,AMZNMKTPLACE AMAZON.CO.UK,540.83,New Equipment,5999,MISCELLANEOUS & SPECIALTY STORES
CCC_10003048_6,26/10/2023,Parks & Green Spaces,AMZNMKTPLACE AMAZON.CO.UK,39.47,Grounds Maintenance Materials,5999,MISCELLANEOUS & SPECIALTY STORES
CCC_10002548_3,26/06/2023,Parks & Green Spaces,COOPER KEYS CHELMSFORD CM,30,General Expense,5251,HARDWARE STORES
CCC_10002228_1,27/04/2023,Operational Services,POST OFFICE COUNTER CHELMSFORD,181.25,Vehicle Tax,9402,POSTAGE STAMPS
CCC_10003411_2,19/01/2024,Marketing & Communications Team,WEDDINGS & HONEYMOONS RICHMOND,195,Advertising,5192," BOOKS, PERIODICALS AND NEWSPAPERS "
CCC_10002779_1,17/08/2023,Leisure & Heritage Services,AMZNMKTPLACE AMAZON.CO.UK,86.58,New Equipment,5999,MISCELLANEOUS & SPECIALTY STORES
CCC_10002411_19,17/05/2023,South Essex Parking Partnership,ROXWELL RD HAND CAR WA CHELMSFORD,16.67,General Expense,7542,CAR WASHES
CCC_10003446_8,19/01/2024,"Museums, Theatres & Cultural Services",ROYAL MAIL GROUP LTD CHESTERFIELD,2.74,General Expense,9402,POSTAGE STAMPS
CCC_10002317_1,18/04/2023,"Museums, Theatres & Cultural Services",AMZNMKTPLACE AMAZON.CO AMAZON.CO.UK,20.82,Printing & Stationary,5999,MISCELLANEOUS & SPECIALTY STORES
CCC_10002616_1,14/07/2023,Leisure & Heritage Services,BOOKER LTD - 38548144 WELLINGBOROUG,290.89,Conference Expenses,5411,GROCERY STORES OR SUPERMARKETS
CCC_10002615_2,04/07/2023,Leisure & Heritage Services,TAHDAH VERIFIED LLANDUDNO,193.5,General Expense,5734,COMPUTER SOFTWARE STORES
CCC_10002434_1,17/05/2023,Leisure & Heritage Services,AMZNMKTPLACE AMAZON.CO.UK,188.61,New Equipment,5999,MISCELLANEOUS & SPECIALTY STORES
CCC_10003344_2,29/11/2023,Parks & Green Spaces,COMPASS INN PETHERTON,12.49,General Expense,5812,RESTAURANTS OR EATING PLACES
CCC_10003327_6,15/11/2023,"Museums, Theatres & Cultural Services",AMZNMKTPLACE AMAZON.CO.UK,92.47,New Equipment,5999,MISCELLANEOUS & SPECIALTY STORES
CCC_10002188_1,17/04/2023,Development Management,AMZNMKTPLACE AMAZON.CO.UK,24.95,Printing & Stationary,5999,MISCELLANEOUS & SPECIALTY STORES
CCC_10003281_3,28/09/2023,"Museums, Theatres & Cultural Services",WWW.TONERGIANT.CO.UK M'STER M46,33.5,General Expense,5085,INDUSTRIAL SUPPLIES (NEC)
CCC_10002854_2,01/09/2023,Leisure & Heritage Services,AMZNMKTPLACE AMAZON.CO.UK,7.48,General Expense,5999,MISCELLANEOUS & SPECIALTY STORES
CCC_10003197_1,22/10/2023,Leisure & Heritage Services,LIDL GB BASILDON BASILDON,21.58,Printing & Stationary,5411,GROCERY STORES OR SUPERMARKETS
CCC_10002682_1,01/08/2023,Leisure & Heritage Services,MIRAFIT GREAT YARMOUT,137.29,New Equipment,5941,SPORTING GOODS STORES
CCC_10003032_1,01/11/2023,Spatial Planning,BP BOREHAM CONNECT CHELMSFORD ES,29.43,Fuel,5541,GAS/SERVICE STATIONS WITH/WITHOUT ANCILLARY SERVICES
CCC_10002734_17,04/08/2023,Human Resources,INSTITUTE OF PAYROLL P SOLIHULL,215,Employee Subscriptions,8999,PROFESSIONAL SERVICES (NEC)
CCC_10003371_2,10/01/2024,Leisure & Heritage Services,AMZNBUSINESS XR4MA0CM5 AMAZON.CO.UK,14.49,General Expense,5999,MISCELLANEOUS & SPECIALTY STORES
CCC_10002836_11,11/07/2023,"Museums, Theatres & Cultural Services",JEWSON 02476608235,40.29,General Expense,5211,LUMBER AND BUILDING MATERIALS STORES
CCC_10003617_3,20/02/2024,Parks & Green Spaces,AMZNMKTPLACE AMAZON.CO.UK,5.82,Grounds Maintenance Materials,5999,MISCELLANEOUS & SPECIALTY STORES
CCC_10002365_10,19/05/2023,Parks & Green Spaces,SUTTONS B2C ECOMM WWW.SUTTONS.C,8.29,General Expense,5261,GARDEN AND LAWN SUPPLY STORES OR NURSERIES
CCC_10002332_1,21/05/2023,Parking & Highways Operations,WICKES BRAINTREE BRAINTREE,5.47,General Expense,5211,LUMBER AND BUILDING MATERIALS STORES
CCC_10002841_1,05/06/2023,Parks & Green Spaces,T&M B2C ECOMM WWW.THOMPSON-,28.96,General Expense,5261,GARDEN AND LAWN SUPPLY STORES OR NURSERIES
CCC_10003042_25,11/09/2023,Leisure & Heritage Services,TESCO STORES 2172 BRAINTREE,29.4,General Expense,5411,GROCERY STORES OR SUPERMARKETS
CCC_10003341_23,01/12/2023,"Museums, Theatres & Cultural Services",TESCO STORES 5408 CHELMSFORD,10,General Expense,5411,GROCERY STORES OR SUPERMARKETS
CCC_10003340_4,05/12/2023,Public Health & Protection Services,PRINT MARKETPLACE 40 2802345,31.45,Printing & Stationary,7338," PRINT SHOPS, QUICK COPY SERVICES OR REPRODUCTION SERVICES "
CCC_10003371_5,05/01/2024,Leisure & Heritage Services,AMZNBUSINESS QO3IA1SB5 LUXEMBOURG L,15.04,General Expense,5999,MISCELLANEOUS & SPECIALTY STORES
CCC_10002807_2,01/08/2023,"Museums, Theatres & Cultural Services",MBS WHOLESALE LTD HARROW MIDDLE,249.66,General Expense,5046,COMMERCIAL EQUIPMENT (NEC)
CCC_10003185_6,28/11/2023,"Museums, Theatres & Cultural Services",AMZNMKTPLACE AMAZON.CO.UK,13.28,New Equipment,5999,MISCELLANEOUS & SPECIALTY STORES
CCC_10002872_9,11/09/2023,Parks & Green Spaces,AMAZON.CO.UK 146FO24B4 AMAZON.CO.UK,13.75,General Expense,5969,DIRECT MARKETERS (NEC)
CCC_10002882_2,05/09/2023,Parking & Highways Operations,AMZNBUSINESS 1U6TH0GS4 AMAZON.CO.UK,27.93,Printing & Stationary,5999,MISCELLANEOUS & SPECIALTY STORES
CCC_10003261_1,13/12/2023,Leisure & Heritage Services,BAKER ROSS HARLOW,18.17,Printing & Stationary,5970,CRAFT OR ARTIST'S SUPPLY SHOPS
CCC_10002960_50,30/09/2023,"Museums, Theatres & Cultural Services",TESCO STORES 5408 CHELMSFORD,7.25,General Expense,5411,GROCERY STORES OR SUPERMARKETS
CCC_10002706_3,11/05/2023,"Museums, Theatres & Cultural Services",IKEA LTD 262 LAKESIDE WEST THURROCK,8.33,New Equipment,5712," FURNITURE, HOME FURNISHINGS & EQUIP STORES EXCL APPLIANCES "
CCC_10002936_2,29/09/2023,Development Management,AMZNMKTPLACE LONDON,21.34,Printing & Stationary,5999,MISCELLANEOUS & SPECIALTY STORES
CCC_10003169_10,26/07/2023,Leisure & Heritage Services,ROTACLOUD YORK,49,General Expense,5734,COMPUTER SOFTWARE STORES
CCC_10003452_5,19/01/2024,Parks & Green Spaces,AMZNMKTPLACE AMAZON.CO.UK,12.41,Grounds Maintenance Materials,5999,MISCELLANEOUS & SPECIALTY STORES
CCC_10002571_1,13/07/2023,"Museums, Theatres & Cultural Services",AMZNMKTPLACE AMAZON.CO.UK,4.82,General Expense,5999,MISCELLANEOUS & SPECIALTY STORES
CCC_10003527_1,01/02/2024,"Museums, Theatres & Cultural Services",SCREWFIX DIR LTD CHELMFOR1867,6.66,Grounds Maintenance Materials,5211,LUMBER AND BUILDING MATERIALS STORES
CCC_10003535_1,26/11/2023,"Museums, Theatres & Cultural Services",AMZNMKTPLACE AMAZON.CO.UK,21.4,General Expense,5999,MISCELLANEOUS & SPECIALTY STORES
CCC_10002753_2,09/08/2023,Development Management,LNER WEB SALES 07500447482,55.8,Public Transport,4112,PASSENGER RAILWAYS
CCC_10003554_15,17/11/2023,Digital Services,AMZNMKTPLACE AMAZON.CO.UK,-51.86,New Equipment,5999,MISCELLANEOUS & SPECIALTY STORES
CCC_10002845_1,05/09/2023,"Museums, Theatres & Cultural Services",AMZNMKTPLACE AMAZON.CO AMAZON.CO.UK,13.29,Museum Exhibits,5999,MISCELLANEOUS & SPECIALTY STORES
CCC_10002992_7,25/10/2023,Leisure & Heritage Services,IET PUBLICATION STEVENAGE,119.17,Grounds Maintenance Materials,2741,MISCELLANEOUS PUBLISHING AND PRINTING
CCC_10002845_2,01/09/2023,"Museums, Theatres & Cultural Services",AMZNMKTPLACE AMAZON.CO.UK,82.49,Publications,5999,MISCELLANEOUS & SPECIALTY STORES
CCC_10002277_1,12/04/2023,Corporate Property Services,PROCONFERENCES.COM 01932 752685,130.8,Conference Expenses,8220," UNIVERSITIES, COLLEGES, SR COLLEGES OR PROFESSIONAL SCHOOLS "
CCC_10002690_2,31/07/2023,Marketing & Communications Team,FACEBK  QG6HDQ7Z52 FB.ME/ADS,63.54,Advertising,7311,ADVERTISING SERVICES
CCC_10003341_59,20/12/2023,"Museums, Theatres & Cultural Services",TESCO STORES 5408 CHELMSFORD,6.15,General Expense,5411,GROCERY STORES OR SUPERMARKETS
CCC_10003422_1,23/01/2024,Operational Services,ADVANCED FLUID SOLUTIO CHELMSFORD,30.96,Vehicle Repairs,5085,INDUSTRIAL SUPPLIES (NEC)
CCC_10003039_9,14/09/2023,Digital Services,PAYPAL  INVEOSPZOO 35314369001,98.17,New Equipment,5732,ELECTRONIC SALES
CCC_10002615_1,04/07/2023,Leisure & Heritage Services,TOOLSTATION UK NORTHAMPTON,19.15,General Expense,5251,HARDWARE STORES
CCC_10002371_5,12/05/2023,Parks & Green Spaces,ETSY.COM - SMELTMYHEAR LONDON,31.66,General Expense,5399,GENERAL MERCHANDISE OR CONVENIENCE FOOD STORES
CCC_10002991_6,28/09/2023,Operational Services,MAGZTER INC. NEW YORK,9.99,General Expense,5815," DIGITAL GOODS MEDIA: BOOKS, MOVIES, MUSIC "
CCC_10002634_2,12/06/2023,"Museums, Theatres & Cultural Services",TECH & JUST FX LTD LONDON,56,General Expense,7829,MOTION PICTURE AND VIDEO TAPE PRODUCTION AND DISTRIBUTION
CCC_10002287_7,26/04/2023,Human Resources,AMZNMKTPLACE AMAZON.CO AMAZON.CO.UK,10.78,Printing & Stationary,5999,MISCELLANEOUS & SPECIALTY STORES
CCC_10002960_10,11/09/2023,"Museums, Theatres & Cultural Services",TESCO STORES 5408 CHELMSFORD,6,General Expense,5411,GROCERY STORES OR SUPERMARKETS
CCC_10002723_11,19/07/2023,Leisure & Heritage Services,WWW.OFCOM.ORG.UK LONDON SE1,75,General Expense,8699,MEMBERSHIP ORGANIZATIONS NOT ELSEWHERE CLASSIFIED
CCC_10002933_1,03/10/2023,Public Health & Protection Services,AMZNMKTPLACE LONDON,15.9,New Equipment,5999,MISCELLANEOUS & SPECIALTY STORES
CCC_10003529_4,06/02/2024,Leisure & Heritage Services,WWW.IDCARDSDIRECT.COM INTERNET,66.2,General Expense,2741,MISCELLANEOUS PUBLISHING AND PRINTING
CCC_10002933_4,11/10/2023,Public Health & Protection Services,ESSEX COUNTY COUNCI EC CHELMSFORD,11,Printing & Stationary,9399,GOVERNMENT SERVICES (NEC) OR FIRE DEPARTMENTS
CCC_10003318_2,19/12/2023,Human Resources,WWW.CIPFA.ORG.UK LONDON  WC2N,380,Employee Subscriptions,8699,MEMBERSHIP ORGANIZATIONS NOT ELSEWHERE CLASSIFIED
CCC_10002841_5,16/08/2023,Parks & Green Spaces,AMZNMKTPLACE AMAZON.CO.UK,12.47,General Expense,5999,MISCELLANEOUS & SPECIALTY STORES
CCC_10003525_2,31/01/2024,Leisure & Heritage Services,TESCO STORES 2172 BRAINTREE,17.05,General Expense,5411,GROCERY STORES OR SUPERMARKETS
CCC_10002955_2,10/10/2023,Public Health & Protection Services,GREATER ANGLIA 4278,30.35,Public Transport,4112,PASSENGER RAILWAYS
CCC_10003187_1,24/11/2023,Leisure & Heritage Services,INTENSE RECORDS CHELMSFORD,9.99,New Equipment,5735,RECORD SHOPS
CCC_10003094_2,07/11/2023,Public Health & Protection Services,PARKING CONTROL MANAGE SLOUGH,36,General Expense,9222,FINES
CCC_10003327_4,01/12/2023,"Museums, Theatres & Cultural Services",UPS LTD FELTHAM,7.31,General Expense,4215," COURIER SERVICES-AIR OR GROUND, FREIGHT "
CCC_10003478_3,26/01/2024,Public Health & Protection Services,TFL TRAVEL CH TFL.GOV.UK/CP,6.7,Public Transport,4111," LOCAL/SUB COMMUTER PSGR TRNP, INCL FERRIES OR WATER TRNP "
CCC_10003599_1,20/02/2024,Operational Services,AMAZON  202-4050647-50 LONDON,16.65,General Expense,5399,GENERAL MERCHANDISE OR CONVENIENCE FOOD STORES
CCC_10002624_2,21/06/2023,Leisure & Heritage Services,FOAMS 4 SPORTS ASHTON-UNDER-,-48,New Equipment,5941,SPORTING GOODS STORES
CCC_10002650_1,23/07/2023,Parks & Green Spaces,AMZNMKTPLACE AMAZON.CO.UK,32.34,Printing & Stationary,5999,MISCELLANEOUS & SPECIALTY STORES
CCC_10003612_1,12/02/2024,Leisure & Heritage Services,AMAZON  204-2517148-42 LONDON,66.66,New Equipment,5399,GENERAL MERCHANDISE OR CONVENIENCE FOOD STORES
CCC_10002754_4,06/08/2023,Parks & Green Spaces,AMZNBUSINESS 1V6XZ7GH4 LUXEMBOURG L,80.83,Grounds Maintenance Materials,5999,MISCELLANEOUS & SPECIALTY STORES
CCC_10003343_1,26/10/2023,Parks & Green Spaces,TESCO-STORES 6724 CHELMSFORD,3,General Expense,5411,GROCERY STORES OR SUPERMARKETS
CCC_10002980_3,11/10/2023,Legal & Democratic Services,STATIONERYU 35314369001,12.02,Printing & Stationary,5943," STATIONERY STORES, OFFICE & SCHOOL SUPPLY STORES "
CCC_10002831_6,23/08/2023,Parks & Green Spaces,AMZNBUSINESS 1M8AO3OS4 AMAZON.CO.UK,33.73,Grounds Maintenance Materials,5999,MISCELLANEOUS & SPECIALTY STORES
CCC_10003420_1,23/01/2024,"Museums, Theatres & Cultural Services",PROJECT PLASTICS LTD COLCHESTER,608.09,Museum Exhibits,7399,BUSINESS SERVICES (NEC)
CCC_10002473_4,14/06/2023,Operational Services,DVLA VEHICLE TAX 0300 1234321,302.5,Vehicle Tax,9311,TAX PAYMENTS
CCC_10002804_25,11/07/2023,"Museums, Theatres & Cultural Services",TESCO STORES 5408 CHELMSFORD,5.2,General Expense,5411,GROCERY STORES OR SUPERMARKETS
CCC_10003288_10,20/11/2023,"Museums, Theatres & Cultural Services",AMZNMKTPLACE LONDON,13.26,General Expense,5999,MISCELLANEOUS & SPECIALTY STORES
CCC_10003020_22,29/09/2023,"Museums, Theatres & Cultural Services",RS COMPONENTS 08457 201201,104.02,New Equipment,5065,ELECTRICAL PARTS AND EQUIPMENT
CCC_10002573_1,03/07/2023,"Museums, Theatres & Cultural Services",AMZN MKTP UK PQ3EU1JL5 800-279-6620,12.26,General Expense,5942,BOOK STORES
CCC_10002397_2,22/05/2023,Legal & Democratic Services,TIMPSON LTD CHELMSFORD,79.75,General Expense,5999,MISCELLANEOUS & SPECIALTY STORES
CCC_10003391_1,18/01/2024,Leisure & Heritage Services,AMZNMKTPLACE AMAZON.CO.UK,16.64,New Equipment,5999,MISCELLANEOUS & SPECIALTY STORES
CCC_10002848_1,29/08/2023,Leisure & Heritage Services,AMZNMKTPLACE AMAZON.CO.UK,14.98,New Equipment,5999,MISCELLANEOUS & SPECIALTY STORES
CCC_10003529_1,26/01/2024,Leisure & Heritage Services,WWW.POLYCOTEUK.COM BEDFORD,121.3,General Expense,5211,LUMBER AND BUILDING MATERIALS STORES
CCC_10002804_51,28/07/2023,"Museums, Theatres & Cultural Services",TESCO STORES 5408 CHELMSFORD,7,General Expense,5411,GROCERY STORES OR SUPERMARKETS
CCC_10003114_1,08/11/2023,Public Health & Protection Services,FLUID BRANDING LIMITED ST AUSTELL,399.65,General Expense,5199,NON-DURABLE GOODS (NEC)
CCC_10002944_9,26/09/2023,Operational Services,DVLA VEHICLE TAX 0300 1234321,322.5,Vehicle Tax,9311,TAX PAYMENTS
CCC_10003535_10,22/11/2023,"Museums, Theatres & Cultural Services",AMZNMKTPLACE AMAZON.CO.UK,59.85,General Expense,5999,MISCELLANEOUS & SPECIALTY STORES
CCC_10003525_3,25/01/2024,Leisure & Heritage Services,AMAZON  206-4013630-91 LONDON,7.15,General Expense,5399,GENERAL MERCHANDISE OR CONVENIENCE FOOD STORES
CCC_10002676_2,11/07/2023,Leisure & Heritage Services,BOOKER LTD - 38548144 WELLINGBOROUG,60.75,New Equipment,5411,GROCERY STORES OR SUPERMARKETS
CCC_10003299_1,21/12/2023,Leisure & Heritage Services,AMZNMKTPLACE AMAZON.CO.UK,31.38,General Expense,5999,MISCELLANEOUS & SPECIALTY STORES
CCC_10003296_8,19/12/2023,Legal & Democratic Services,HM LAND REGISTRY - GBP LONDON,15,General Expense,9399,GOVERNMENT SERVICES (NEC) OR FIRE DEPARTMENTS
CCC_10002538_2,11/05/2023,"Museums, Theatres & Cultural Services",BLUESKYPRINTING CHELMSFORD,35.75,Printing & Stationary,2741,MISCELLANEOUS PUBLISHING AND PRINTING
CCC_10002652_1,09/07/2023,Digital Services,AMAZON.CO.UK V92ZN91W5 AMAZON.CO.UK,56.63,New Equipment,5969,DIRECT MARKETERS (NEC)
CCC_10002881_7,30/08/2023,Parks & Green Spaces,AMZNMKTPLACE AMAZON.CO AMAZON.CO.UK,6.04,Grounds Maintenance Materials,5999,MISCELLANEOUS & SPECIALTY STORES
CCC_10002418_3,02/06/2023,"Museums, Theatres & Cultural Services",AMZNBUSINESS UK9QJ8PO5 LUXEMBOURG L,24.16,General Expense,5999,MISCELLANEOUS & SPECIALTY STORES
CCC_10003352_1,10/10/2023,Leisure & Heritage Services,DIRECT SPORTS BILLINGHAM,24.12,General Expense,5941,SPORTING GOODS STORES
CCC_10003477_1,31/01/2024,Development Management,AMAZON  206-2662895-68 LONDON,24.98,New Equipment,5399,GENERAL MERCHANDISE OR CONVENIENCE FOOD STORES
CCC_10003015_37,21/09/2023,South Essex Parking Partnership,NYA PETROGAS ABERYSTWYTH,1.5,Vehicle Repairs,5499,MISC FOOD STORES - SPECIALTY MARKETS & CONVENIENCE
CCC_10002749_5,27/04/2023,Parks & Green Spaces,RONTEC WEST CHELMS CHELMSFORD,49.68,Fuel,5541,GAS/SERVICE STATIONS WITH/WITHOUT ANCILLARY SERVICES
CCC_10002799_4,06/08/2023,Leisure & Heritage Services,TAHDAH VERIFIED LLANDUDNO,64.5,General Expense,5734,COMPUTER SOFTWARE STORES
CCC_10002804_47,26/07/2023,"Museums, Theatres & Cultural Services",TESCO STORES 5408 CHELMSFORD,3.75,General Expense,5411,GROCERY STORES OR SUPERMARKETS
CCC_10002176_2,12/04/2023,Operational Services,SCREWFIX DIR LTD CHELMFOR1066,115.86,New Equipment,5211,LUMBER AND BUILDING MATERIALS STORES
CCC_10002872_17,14/09/2023,Parks & Green Spaces,GREEN PLANT UK SUTTON GREEN,47.15,Vehicle Repairs,5599,AUTOMOTIVE DEALERS
CCC_10003430_7,09/01/2024,Street Care & Performance,AMZNMKTPLACE AMAZON.CO.UK,50.77,New Equipment,5999,MISCELLANEOUS & SPECIALTY STORES
CCC_10003335_3,02/01/2024,Leisure & Heritage Services,HOME BARGAINS CHELMSFORD,18.31,General Expense,5399,GENERAL MERCHANDISE OR CONVENIENCE FOOD STORES
CCC_10003206_5,06/12/2023,Digital Services,AMZNMKTPLACE AMAZON.CO.UK,117.3,New Equipment,5999,MISCELLANEOUS & SPECIALTY STORES
CCC_10002783_11,22/08/2023,Digital Services,AMZNMKTPLACE AMAZON.CO.UK,411.37,New Equipment,5999,MISCELLANEOUS & SPECIALTY STORES
CCC_10003015_36,22/09/2023,South Essex Parking Partnership,SP MAGNUM-FOOTSURE GLOUCESTER,108.99,Clothing & Uniforms,5661,SHOE STORES
CCC_10002670_10,05/07/2023,South Essex Parking Partnership,ARCO LTD BASILDON,50,Clothing & Uniforms,5085,INDUSTRIAL SUPPLIES (NEC)
CCC_10003073_4,06/11/2023,Parks & Green Spaces,AMZNMKTPLACE LONDON,125.78,Grounds Maintenance Materials,5999,MISCELLANEOUS & SPECIALTY STORES
CCC_10003501_5,24/04/2023,Parks & Green Spaces,TESCO STORES 2330 CHELMSFORD 2,45,Grounds Maintenance Materials,5411,GROCERY STORES OR SUPERMARKETS
CCC_10003129_2,02/11/2023,Operational Services,BOOKER LTD - 38548144 WELLINGBOROUG,104.85,New Equipment,5411,GROCERY STORES OR SUPERMARKETS
CCC_10003281_8,27/11/2023,"Museums, Theatres & Cultural Services",INQTEC PRINTERS CHELMSFORD,112,General Expense,7338," PRINT SHOPS, QUICK COPY SERVICES OR REPRODUCTION SERVICES "
CCC_10002983_6,12/10/2023,Development Management,GREATER ANGLIA TRAINS LONDON,115,Public Transport,4112,PASSENGER RAILWAYS
CCC_10002840_8,16/08/2023,Leisure & Heritage Services,AMZNMKTPLACE AMAZON.CO.UK,48.09,General Expense,5999,MISCELLANEOUS & SPECIALTY STORES
CCC_10003536_9,28/09/2023,Housing Services,ANGLIAN WATER SERVICES HUNTINGDON,11.5,General Expense,4900," ELECTRIC, GAS, SANITARY, TELEPHONE OR WATER UTILITIES "
CCC_10002884_21,08/08/2023,South Essex Parking Partnership,SAVERS 2352 CHELMSFORD CHELMSFORD ME,5.37,General Expense,5912,PHARMCIES OR DRUG STORES
CCC_10002440_1,14/06/2023,Leisure & Heritage Services,B&M 756 TURNER RISE COLCHESTER,28.5,New Equipment,5399,GENERAL MERCHANDISE OR CONVENIENCE FOOD STORES
CCC_10002804_50,27/07/2023,"Museums, Theatres & Cultural Services",TESCO STORES 5408 CHELMSFORD,14.03,General Expense,5411,GROCERY STORES OR SUPERMARKETS
CCC_10002990_1,13/09/2023,Operational Services,TOTAL CONFLICT MGMT LONDON,395,Training Expenses,7392," MANAGEMENT, PUBLIC RELATIONS OR CONSULTING SERVICES "
CCC_10003177_7,27/11/2023,Parks & Green Spaces,AMZNMKTPLACE AMAZON.CO.UK,28.98,Grounds Maintenance Materials,5999,MISCELLANEOUS & SPECIALTY STORES
CCC_10003098_2,16/11/2023,Public Health & Protection Services,PAYBYPHONE RE BRITANNI HATFIELD,8.2,Car Parking,7523,AUTOMOBILE PARKING OR PARKING LOTS
CCC_10002261_1,28/04/2023,Leisure & Heritage Services,MANOMANO PARIS,357.49,New Equipment,5722,APPLIANCE STORES (NEC) OR HOUSEHOLD APPLIANCE STORES
CCC_10003264_19,14/11/2023,South Essex Parking Partnership,POUNDSTRETCHER 279 LEICESTER,2.29,New Equipment,5331,VARIETY STORES
CCC_10003023_11,17/10/2023,Public Health & Protection Services,AMZNMKTPLACE AMAZON.CO.UK,10.67,Printing & Stationary,5999,MISCELLANEOUS & SPECIALTY STORES
CCC_10002828_3,18/08/2023,Public Health & Protection Services,AMZNMKTPLACE AMAZON.CO.UK,12.47,Printing & Stationary,5999,MISCELLANEOUS & SPECIALTY STORES
CCC_10002980_4,11/10/2023,Legal & Democratic Services,SRA BIRMINGHAM,337,Employee Subscriptions,8699,MEMBERSHIP ORGANIZATIONS NOT ELSEWHERE CLASSIFIED
CCC_10003337_1,04/01/2024,Public Health & Protection Services,AMZNMKTPLACE AMAZON.CO.UK,8.84,New Equipment,5999,MISCELLANEOUS & SPECIALTY STORES
CCC_10002681_9,12/07/2023,Digital Services,KNOWN KEEP 4029357733,80.25,General Expense,5734,COMPUTER SOFTWARE STORES
CCC_10003286_6,16/10/2023,"Museums, Theatres & Cultural Services",AMZNMKTPLACE AMAZON.CO.UK,21.96,General Expense,5999,MISCELLANEOUS & SPECIALTY STORES
CCC_10002670_23,21/06/2023,South Essex Parking Partnership,COSTA COFFEE 43010771 CHELMSFORD,13.45,General Expense,5814,FAST FOOD RESTAURANTS
CCC_10003353_5,18/01/2024,Digital Services,AMZNMKTPLACE AMAZON.CO.UK,17.31,New Equipment,5999,MISCELLANEOUS & SPECIALTY STORES
CCC_10002644_1,14/07/2023,Leisure & Heritage Services,SP MEDISAVE.CO.UK WEYMOUTH,44.35,New Equipment,5399,GENERAL MERCHANDISE OR CONVENIENCE FOOD STORES
CCC_10002462_1,31/05/2023,Marketing & Communications Team,FACEBK  6W8QBQP9K2 FB.ME/ADS,400,Advertising,7311,ADVERTISING SERVICES
CCC_10003503_5,25/05/2023,Parks & Green Spaces,HOME BARGAINS CHELMSFORD,37.57,General Expense,5251,HARDWARE STORES
CCC_10002849_3,24/08/2023,"Museums, Theatres & Cultural Services",AMZNMKTPLACE AMAZON.CO AMAZON.CO.UK,7.49,New Equipment,5999,MISCELLANEOUS & SPECIALTY STORES
CCC_10002884_25,01/08/2023,South Essex Parking Partnership,LAVISH CAR WASH BRENTWOOD,50,General Expense,7542,CAR WASHES
CCC_10003548_6,02/01/2024,Digital Services,DECISO SALES B.V. MIDDELHARNIS,965.07,New Equipment,7372," COMPUTER PROGRAMMING, SYSTEMS DESIGN OR DATA PROCESSING SERV "
CCC_10002807_42,24/08/2023,"Museums, Theatres & Cultural Services",INQTEC PRINTERS CHELMSFORD,104,General Expense,7338," PRINT SHOPS, QUICK COPY SERVICES OR REPRODUCTION SERVICES "
CCC_10002517_29,27/06/2023,"Museums, Theatres & Cultural Services",TESCO STORES 5408 CHELMSFORD,4.95,General Expense,5411,GROCERY STORES OR SUPERMARKETS
CCC_10003548_5,15/01/2024,Digital Services,DECISO SALES B.V. MIDDELHARNIS,1592.01,New Equipment,7372," COMPUTER PROGRAMMING, SYSTEMS DESIGN OR DATA PROCESSING SERV "
CCC_10002409_2,08/06/2023,Development Management,AMZNMKTPLACE AMAZON.CO.UK,7.91,Printing & Stationary,5999,MISCELLANEOUS & SPECIALTY STORES
CCC_10002313_7,02/05/2023,"Museums, Theatres & Cultural Services",AMZNMKTPLACE AMAZON.CO.UK,13.33,General Expense,5999,MISCELLANEOUS & SPECIALTY STORES
CCC_10003185_35,14/11/2023,"Museums, Theatres & Cultural Services",WWW.VDCTRADING.COM LONDON,182.94,New Equipment,5732,ELECTRONIC SALES
CCC_10002506_5,01/06/2023,Parking & Highways Operations,WWW.SCREWFIX.COM YEOVIL,39.99,General Expense,5211,LUMBER AND BUILDING MATERIALS STORES
CCC_10002646_3,03/06/2023,Leisure & Heritage Services,AMZNMKTPLACE AMAZON.CO.UK,5.57,Printing & Stationary,5999,MISCELLANEOUS & SPECIALTY STORES
CCC_10003341_46,22/12/2023,"Museums, Theatres & Cultural Services",TESCO STORES 5408 CHELMSFORD,17.8,General Expense,5411,GROCERY STORES OR SUPERMARKETS
CCC_10003181_2,22/11/2023,"Museums, Theatres & Cultural Services",TESCO STORES 2330 CHELMSFORD 2,20.62,Printing & Stationary,5411,GROCERY STORES OR SUPERMARKETS
CCC_10003341_6,28/12/2023,"Museums, Theatres & Cultural Services",AMZNMKTPLACE LONDON,100.59,General Expense,5999,MISCELLANEOUS & SPECIALTY STORES
CCC_10002872_1,01/09/2023,Parks & Green Spaces,D. BYFORD & SONS COLCHESTER CO,33.5,General Expense,5193," FLORIST SUPPLIES, NURSERY STOCK AND FLOWERS "
CCC_10003048_8,25/10/2023,Parks & Green Spaces,AMZNMKTPLACE LONDON,11.22,Grounds Maintenance Materials,5999,MISCELLANEOUS & SPECIALTY STORES
CCC_10002273_5,10/05/2023,Digital Services,AMZNMKTPLACE AMAZON.CO.UK,14,New Equipment,5999,MISCELLANEOUS & SPECIALTY STORES
CCC_10002304_2,02/05/2023,Leisure & Heritage Services,AMZNMKTPLACE AMAZON.CO AMAZON.CO.UK,2.87,General Expense,5999,MISCELLANEOUS & SPECIALTY STORES
CCC_10002734_7,01/09/2023,Human Resources,WWW.CIPFA.ORG.UK LONDON  WC2N,120,Employee Subscriptions,8699,MEMBERSHIP ORGANIZATIONS NOT ELSEWHERE CLASSIFIED
CCC_10003341_10,29/12/2023,"Museums, Theatres & Cultural Services",SUMUP   STICKY AND SWE CHELMSFORD,30,General Expense,5814,FAST FOOD RESTAURANTS
CCC_10002691_8,20/07/2023,"Museums, Theatres & Cultural Services",AMZNMKTPLACE AMAZON.CO AMAZON.CO.UK,2.88,New Equipment,5999,MISCELLANEOUS & SPECIALTY STORES
CCC_10003255_5,08/08/2023,"Museums, Theatres & Cultural Services",SCREWFIX DIR LTD CHELMFOR1066,86.17,General Expense,5211,LUMBER AND BUILDING MATERIALS STORES
CCC_10002509_2,28/06/2023,"Museums, Theatres & Cultural Services",AMZNMKTPLACE AMAZON.CO.UK,30.17,General Expense,5999,MISCELLANEOUS & SPECIALTY STORES
CCC_10002936_1,29/09/2023,Development Management,AMZNMKTPLACE LONDON,29.08,Printing & Stationary,5999,MISCELLANEOUS & SPECIALTY STORES
CCC_10002287_10,13/04/2023,Human Resources,AMZNMKTPLACE AMAZON.CO.UK,26.99,Printing & Stationary,5999,MISCELLANEOUS & SPECIALTY STORES
CCC_10002265_1,05/04/2023,South Essex Parking Partnership,AMZ AMAZON.CO.UK AMAZON.CO.UK,-16.49,New Equipment,5969,DIRECT MARKETERS (NEC)
CCC_10003333_2,18/12/2023,Leisure & Heritage Services,WWW.SCREWFIX.COM YEOVIL,52.45,Grounds Maintenance Materials,5211,LUMBER AND BUILDING MATERIALS STORES
CCC_10003462_1,30/01/2024,Parks & Green Spaces,TESCO-STORES 6724 CHELMSFORD,1.5,General Expense,5411,GROCERY STORES OR SUPERMARKETS
CCC_10002505_5,09/06/2023,Parks & Green Spaces,WWW.MYTYRES.CO.UK LONDON,267.32,Grounds Maintenance Materials,5532,AUTOMOTIVE TIRE STORES
CCC_10003283_3,25/10/2023,"Museums, Theatres & Cultural Services",BOOKER LIMITED ECOM WELLINGBOROUG,139.99,General Expense,5411,GROCERY STORES OR SUPERMARKETS
CCC_10003097_6,13/09/2023,Leisure & Heritage Services,AMZNMKTPLACE AMAZON.CO AMAZON.CO.UK,124.99,New Equipment,5999,MISCELLANEOUS & SPECIALTY STORES
CCC_10003100_3,14/11/2023,Operational Services,WWW.ARGOS.CO.UK MILTON KEYNES,16.66,New Equipment,5311,DEPARTMENT STORES
CCC_10002885_11,02/08/2023,Parks & Green Spaces,AMZNMKTPLACE AMAZON.CO.UK,12.07,General Expense,5999,MISCELLANEOUS & SPECIALTY STORES
CCC_10003517_3,19/04/2023,Public Health & Protection Services,WWW.PLANNING.CO BRISTOL,221.83,General Expense,7399,BUSINESS SERVICES (NEC)
CCC_10002785_8,24/07/2023,Leisure & Heritage Services,TESCO STORES 2172 BRAINTREE,15.2,General Expense,5411,GROCERY STORES OR SUPERMARKETS
CCC_10003414_3,07/12/2023,Parks & Green Spaces,AMAZON.CO.UK TS2UN5595 AMAZON.CO.UK,22.96,General Expense,5969,DIRECT MARKETERS (NEC)
CCC_10003346_7,25/10/2023,Leisure & Heritage Services,AMAZON PRIME H06AM35P4 AMZN.CO.UK/PM,8.99,Employee Subscriptions,5968,CONTINUITY/SUBSCRIPTION MERCHANT
CCC_10002830_3,27/08/2023,"Museums, Theatres & Cultural Services",TOOLSTATION LTD CHELMSFORD,3.82,Grounds Maintenance Materials,5211,LUMBER AND BUILDING MATERIALS STORES
CCC_10003042_10,24/10/2023,Leisure & Heritage Services,AMZNMKTPLACE AMAZON.CO.UK,15.79,Printing & Stationary,5999,MISCELLANEOUS & SPECIALTY STORES
CCC_10003095_4,10/10/2023,"Museums, Theatres & Cultural Services",TESCO STORES 6629 CHELMSFORD,3.35,General Expense,5411,GROCERY STORES OR SUPERMARKETS
CCC_10002964_3,26/09/2023,Leisure & Heritage Services,SP THE SHREDDER WARE BATH,702.05,Printing & Stationary,5943," STATIONERY STORES, OFFICE & SCHOOL SUPPLY STORES "
CCC_10002689_4,31/07/2023,Development Management,AMZNMKTPLACE AMAZON.CO.UK,7.91,Printing & Stationary,5999,MISCELLANEOUS & SPECIALTY STORES
CCC_10003094_1,10/11/2023,Public Health & Protection Services,ANIMAL RECEPTION CENTR HOUNSLOW,40,Training Expenses,8999,PROFESSIONAL SERVICES (NEC)
CCC_10003119_3,10/11/2023,"Museums, Theatres & Cultural Services",AMZNMKTPLACE AMAZON.CO.UK,7.17,New Equipment,5999,MISCELLANEOUS & SPECIALTY STORES
CCC_10002796_1,28/06/2023,Revenue and Benefit Services,ESSEX COUNTY COUNCI EC CHELMSFORD,33,General Expense,9399,GOVERNMENT SERVICES (NEC) OR FIRE DEPARTMENTS
CCC_10002595_2,05/07/2023,Operational Services,DREAMSTIME.COM BRENTWOOD,22,Employee Subscriptions,2741,MISCELLANEOUS PUBLISHING AND PRINTING
CCC_10003122_5,11/09/2023,Development Management,DOMU SALFORD,73.32,New Equipment,5722,APPLIANCE STORES (NEC) OR HOUSEHOLD APPLIANCE STORES
CCC_10002445_3,30/05/2023,Leisure & Heritage Services,WM MORRISONS STORE CHELMSFORD,58.9,New Equipment,5411,GROCERY STORES OR SUPERMARKETS
CCC_10002508_1,14/06/2023,"Museums, Theatres & Cultural Services",SCREWFIX DIR LTD CHELMFOR1867,2.48,Grounds Maintenance Materials,5211,LUMBER AND BUILDING MATERIALS STORES
CCC_10003099_4,13/11/2023,Leisure & Heritage Services,CHELMSFORD MASTER LOCK CHELMSFORD,29.17,Grounds Maintenance Materials,1799,SPECIAL TRADE CONTRACTORS
CCC_10003286_1,02/10/2023,"Museums, Theatres & Cultural Services",NISBETS LTD 0845 1110281,15.97,General Expense,5964,CATALOG MERCHANT
CCC_10003581_11,08/08/2023,South Essex Parking Partnership,LAND REGISTRY ECOM CCC LONDON,6,General Expense,9399,GOVERNMENT SERVICES (NEC) OR FIRE DEPARTMENTS
CCC_10002804_36,19/07/2023,"Museums, Theatres & Cultural Services",TESCO STORES 5408 CHELMSFORD,5.9,General Expense,5411,GROCERY STORES OR SUPERMARKETS
CCC_10002320_14,14/05/2023,"Museums, Theatres & Cultural Services",AMZNMKTPLACE AMAZON.CO.UK,24.42,New Equipment,5999,MISCELLANEOUS & SPECIALTY STORES
CCC_10002821_1,18/08/2023,Legal & Democratic Services,TRAINLINE LONDON,10.01,Public Transport,4112,PASSENGER RAILWAYS
CCC_10002746_1,07/08/2023,"Museums, Theatres & Cultural Services",AMZNMKTPLACE AMAZON.CO AMAZON.CO.UK,12.97,Printing & Stationary,5999,MISCELLANEOUS & SPECIALTY STORES
CCC_10002328_6,17/05/2023,Parks & Green Spaces,AMZNMKTPLACE AMAZON.CO AMAZON.CO.UK,-78.32,Grounds Maintenance Materials,5999,MISCELLANEOUS & SPECIALTY STORES
CCC_10003101_2,31/10/2023,Operational Services,AMZNMKTPLACE AMAZON.CO.UK,87.1,New Equipment,5999,MISCELLANEOUS & SPECIALTY STORES
CCC_10002450_4,13/06/2023,Marketing & Communications Team,AMZNMKTPLACE AMAZON.CO AMAZON.CO.UK,13.32,Advertising,5999,MISCELLANEOUS & SPECIALTY STORES
CCC_10002687_4,25/07/2023,Leisure & Heritage Services,CHELMSFORD.GOV.UK ESSEX,89,General Expense,9399,GOVERNMENT SERVICES (NEC) OR FIRE DEPARTMENTS
CCC_10003414_4,04/12/2023,Parks & Green Spaces,TESCO-STORES 6724 CHELMSFORD,3.75,General Expense,5411,GROCERY STORES OR SUPERMARKETS
CCC_10003167_1,10/11/2023,Marketing & Communications Team,WWW.SOLOPRESS.COM SOUTHEND-ON-S,71.82,Advertising,2741,MISCELLANEOUS PUBLISHING AND PRINTING
CCC_10003526_1,01/02/2024,"Museums, Theatres & Cultural Services",STEPHENGREEN&ASSOC HARLING ROAD,1485,Museum Exhibits,8099,MEDICAL SERVICES AND HEALTH PRACTITIONERS (NEC)
CCC_10003567_1,15/02/2024,"Museums, Theatres & Cultural Services",AMAZON  202-8378378-63 LONDON,10.02,New Equipment,5399,GENERAL MERCHANDISE OR CONVENIENCE FOOD STORES
CCC_10003536_13,14/12/2023,Housing Services,TRAVELODG TRAVELODGE G THAME,1204.7,General Expense,3615,TRAVELODGE
CCC_10002517_2,03/06/2023,"Museums, Theatres & Cultural Services",CARD FACTORY CHELMSFORD,3.32,General Expense,5947," CARD, GIFT, NOVELTY OR SOUVENIR SHOPS "
CCC_10003585_7,12/02/2024,Public Health & Protection Services,AMAZON  026-8397560-15 LONDON,100.79,New Equipment,5399,GENERAL MERCHANDISE OR CONVENIENCE FOOD STORES
CCC_10003288_16,12/11/2023,"Museums, Theatres & Cultural Services",TESCO STORES 5408 CHELMSFORD,5.5,General Expense,5411,GROCERY STORES OR SUPERMARKETS
CCC_10002853_3,29/08/2023,Leisure & Heritage Services,AMZ HOMESDIRECT365 L 016-42455589,133.32,New Equipment,5719,HOME FURNISHING SPECIALTY STORES -- MISCELLANEOUS
CCC_10003536_3,22/01/2024,Housing Services,CASTLE WATER BLAIRGOWRIE,11.02,General Expense,4900," ELECTRIC, GAS, SANITARY, TELEPHONE OR WATER UTILITIES "
CCC_10002651_1,13/07/2023,"Museums, Theatres & Cultural Services",TRAINLINE LONDON,32.09,Public Transport,4112,PASSENGER RAILWAYS
CCC_10002324_1,19/05/2023,Legal & Democratic Services,LLG ENTERPRISES LTD RUNCORN,156,Training Expenses,8249,VOCATIONAL OR TRADE SCHOOLS
CCC_10002965_7,09/10/2023,Spatial Planning,AMZNMKTPLACE AMAZON.CO.UK,21.02,New Equipment,5999,MISCELLANEOUS & SPECIALTY STORES
CCC_10003288_29,03/11/2023,"Museums, Theatres & Cultural Services",TESCO STORES 5408 CHELMSFORD,4.95,General Expense,5411,GROCERY STORES OR SUPERMARKETS
CCC_10002753_5,25/07/2023,Development Management,JUST BREW LTD CHELMSFORD,204.83,General Expense,5814,FAST FOOD RESTAURANTS
CCC_10003406_19,04/01/2024,Parks & Green Spaces,AMZNMKTPLACE LONDON,66.76,Grounds Maintenance Materials,5999,MISCELLANEOUS & SPECIALTY STORES
CCC_10002753_1,09/08/2023,Development Management,NOVOTEL HOTELS 01142 781781,75.83,Accommodation,3642,NOVOTEL HOTELS
CCC_10002904_2,18/09/2023,Parks & Green Spaces,WWW.SCREWFIX.COM YEOVIL,11.41,Grounds Maintenance Materials,5211,LUMBER AND BUILDING MATERIALS STORES
CCC_10003264_20,14/11/2023,South Essex Parking Partnership,EBAY O 19-10782-42017 LONDON,35.98,New Equipment,5311,DEPARTMENT STORES
CCC_10003392_3,15/11/2023,Leisure & Heritage Services,SPOTIFY P27325AF4A LONDON,10.99,General Expense,5815," DIGITAL GOODS MEDIA: BOOKS, MOVIES, MUSIC "
CCC_10003430_1,25/01/2024,Street Care & Performance,YOURPARKINGSPACE.CO.UK LONDON,5,General Expense,7523,AUTOMOBILE PARKING OR PARKING LOTS
CCC_10003332_4,11/12/2023,"Museums, Theatres & Cultural Services",WWW.SCREWFIX.COM YEOVIL,11.77,General Expense,5211,LUMBER AND BUILDING MATERIALS STORES
CCC_10003330_3,31/01/2024,"Museums, Theatres & Cultural Services",FACEBK  YNJ7RZ3AK2 FB.ME/ADS,650.99,Advertising,7311,ADVERTISING SERVICES
CCC_10002318_15,19/05/2023,Parks & Green Spaces,RS COMPONENTS 08457 201201,50.83,New Equipment,5065,ELECTRICAL PARTS AND EQUIPMENT
CCC_10002320_5,21/05/2023,"Museums, Theatres & Cultural Services",AMZNMKTPLACE AMAZON.CO.UK,7.48,New Equipment,5999,MISCELLANEOUS & SPECIALTY STORES
CCC_10002905_1,04/09/2023,"Museums, Theatres & Cultural Services",ROTACLOUD YORK,52.08,Employee Subscriptions,5734,COMPUTER SOFTWARE STORES
CCC_10002839_1,29/08/2023,Street Care & Performance,CHANDLER MATERIALS CHELMSFORD,45.72,General Expense,5211,LUMBER AND BUILDING MATERIALS STORES
CCC_10003247_1,14/12/2023,Digital Services,AMZNMKTPLACE LONDON,6.5,Printing & Stationary,5999,MISCELLANEOUS & SPECIALTY STORES
CCC_10002978_8,07/09/2023,Leisure & Heritage Services,AMZNMKTPLACE AMAZON.CO.UK,14.5,Printing & Stationary,5999,MISCELLANEOUS & SPECIALTY STORES
CCC_10002541_11,08/06/2023,Leisure & Heritage Services,NETS AJPRODUCTS.CO.U HALMSTAD,52.5,General Expense,5021,COMMERCIAL FURNITURE
CCC_10002541_7,12/06/2023,Leisure & Heritage Services,HOBBYCRAFT TRADING LIM CHRISTCHURCH,12.75,General Expense,5970,CRAFT OR ARTIST'S SUPPLY SHOPS
CCC_10003485_1,03/01/2024,"Museums, Theatres & Cultural Services",WICKES CHELMSFORD CHELMSFORD,29.62,General Expense,5211,LUMBER AND BUILDING MATERIALS STORES
CCC_10002804_26,12/07/2023,"Museums, Theatres & Cultural Services",ALDI CHELMSFORD,28.63,General Expense,5411,GROCERY STORES OR SUPERMARKETS
CCC_10002299_2,12/05/2023,Parks & Green Spaces,AMZNMKTPLACE AMAZON.CO AMAZON.CO.UK,38.47,General Expense,5999,MISCELLANEOUS & SPECIALTY STORES
CCC_10002964_1,16/09/2023,Leisure & Heritage Services,DECATHLON UK LIMITED LONDON,337.9,New Equipment,5941,SPORTING GOODS STORES
CCC_10002171_6,07/04/2023,Leisure & Heritage Services,AMZNMKTPLACE AMAZON.CO AMAZON.CO.UK,8.47,General Expense,5999,MISCELLANEOUS & SPECIALTY STORES
CCC_10002450_2,14/06/2023,Marketing & Communications Team,WWW.SOLOPRESS.COM SOUTHEND-ON-S,161.38,Advertising,2741,MISCELLANEOUS PUBLISHING AND PRINTING
CCC_10002175_1,06/04/2023,Development Management,AMZNMKTPLACE AMAZON.CO.UK,4.1,Printing & Stationary,5999,MISCELLANEOUS & SPECIALTY STORES
CCC_10002566_3,05/07/2023,Leisure & Heritage Services,AMZNMKTPLACE AMAZON.CO.UK,113.59,General Expense,5999,MISCELLANEOUS & SPECIALTY STORES
CCC_10003256_2,01/09/2023,"Museums, Theatres & Cultural Services",ADVANCED COMMUNICATION BANBURY,140.83,General Expense,5975," HEARING AIDS -- SALES, SERVICE AND SUPPLY STORES "
CCC_10002705_1,14/04/2023,"Museums, Theatres & Cultural Services",SQ  CHELMSFORD CVS CHELMSFORD,50,General Expense,8398,CHARITABLE OR SOCIAL SERVICES ORGANIZATIONS
CCC_10002783_7,24/08/2023,Digital Services,AMZNMKTPLACE AMAZON.CO AMAZON.CO.UK,22.47,New Equipment,5999,MISCELLANEOUS & SPECIALTY STORES
CCC_10003015_1,26/10/2023,South Essex Parking Partnership,ASDA SUPERSTORE BASILDON,16.4,General Expense,5411,GROCERY STORES OR SUPERMARKETS
CCC_10003540_1,27/01/2024,"Museums, Theatres & Cultural Services",BRITISH HEART FOUNDATI LONDON,8,Museum Exhibits,8398,CHARITABLE OR SOCIAL SERVICES ORGANIZATIONS
CCC_10002531_10,22/06/2023,"Museums, Theatres & Cultural Services",BUY IT DIRECT HUDDERSFIELD,279.12,New Equipment,5732,ELECTRONIC SALES
CCC_10002633_2,05/05/2023,"Museums, Theatres & Cultural Services",GOBOPLUS LIMITED AYLESBURY,28.85,General Expense,7333," PHOTOGRAPHY, ART AND GRAPHIC -- COMMERCIAL "
CCC_10003162_1,02/09/2023,Leisure & Heritage Services,ERNEST DOE / SONS FYFIELD,91.44,New Equipment,5599,AUTOMOTIVE DEALERS
CCC_10002753_3,28/07/2023,Development Management,CITY NATION PLACE PLAXTOL SEVE,221.25,Training Expenses,7399,BUSINESS SERVICES (NEC)
CCC_10002721_10,07/06/2023,Housing Services,PREMIER INN CHELMSFORD,351.25,General Expense,3811,PREMIER TRAVEL INN
CCC_10002807_24,16/08/2023,"Museums, Theatres & Cultural Services",TESCO STORES 5408 CHELMSFORD,4.3,General Expense,5411,GROCERY STORES OR SUPERMARKETS
CCC_10003015_14,16/10/2023,South Essex Parking Partnership,AMZNMKTPLACE AMAZON.CO.UK,14.67,New Equipment,5999,MISCELLANEOUS & SPECIALTY STORES
CCC_10002660_4,23/07/2023,Parks & Green Spaces,AMZNMKTPLACE AMAZON.CO AMAZON.CO.UK,27.47,Grounds Maintenance Materials,5999,MISCELLANEOUS & SPECIALTY STORES
CCC_10002612_3,06/07/2023,Leisure & Heritage Services,AMZNMKTPLACE AMAZON.CO.UK,58.32,New Equipment,5999,MISCELLANEOUS & SPECIALTY STORES
CCC_10003015_24,02/10/2023,South Essex Parking Partnership,LAVISH CAR WASH BRENTWOOD,50,General Expense,7542,CAR WASHES
CCC_10002743_1,27/06/2023,Leisure & Heritage Services,POST OFFICE COUNTER CHELMSFORD,4.19,Printing & Stationary,9402,POSTAGE STAMPS
CCC_10003271_3,11/12/2023,South Essex Parking Partnership,HALFORDS 0803 RAYLEIGH,24.97,General Expense,5940,BICYCLE SHOPS -- SALES AND SERVICE
CCC_10002454_1,13/06/2023,"Museums, Theatres & Cultural Services",AMZNMKTPLACE AMAZON.CO.UK,12.5,Museum Exhibits,5999,MISCELLANEOUS & SPECIALTY STORES
CCC_10003485_11,29/01/2024,"Museums, Theatres & Cultural Services",POWERTOOL WORLD NEWTON AYCLIF,114.96,General Expense,5072," HARDWARE, PLUMBING, HEATING EQUIPMENT AND SUPPLIES "
CCC_10002748_1,08/08/2023,Operational Services,FACEBK B5YMZSBRM2 FB.ME/ADS,17.84,Advertising,7311,ADVERTISING SERVICES
CCC_10003061_8,08/10/2023,"Museums, Theatres & Cultural Services",AMZNBUSINESS HT30O9SC4 AMAZON.CO.UK,31.52,General Expense,5999,MISCELLANEOUS & SPECIALTY STORES
CCC_10003288_56,30/11/2023,"Museums, Theatres & Cultural Services",TESCO STORES 5408 CHELMSFORD,15.25,General Expense,5411,GROCERY STORES OR SUPERMARKETS
CCC_10003155_2,02/11/2023,Leisure & Heritage Services,VIKING OFFICE UK LIMIT LEICESTER,18.29,Printing & Stationary,5111," STATIONERY, OFFICE SUPPLIES, PRINTING AND WRITING PAPER "
CCC_10002723_7,12/07/2023,Leisure & Heritage Services,TESCO STORES 2330 CHELMSFORD 2,21.36,General Expense,5411,GROCERY STORES OR SUPERMARKETS
CCC_10003185_8,27/11/2023,"Museums, Theatres & Cultural Services",WWW.SCREWFIX.COM YEOVIL,78.06,New Equipment,5211,LUMBER AND BUILDING MATERIALS STORES
CCC_10002526_1,27/06/2023,"Museums, Theatres & Cultural Services",AMZNMKTPLACE AMAZON.CO AMAZON.CO.UK,13.65,New Equipment,5999,MISCELLANEOUS & SPECIALTY STORES
CCC_10002323_9,04/05/2023,Leisure & Heritage Services,AMZNMKTPLACE AMAZON.CO AMAZON.CO.UK,29.02,General Expense,5999,MISCELLANEOUS & SPECIALTY STORES
CCC_10002284_5,26/04/2023,"Museums, Theatres & Cultural Services",HOBBYCRAFT CHELMSFORD,1.5,Museum Exhibits,5970,CRAFT OR ARTIST'S SUPPLY SHOPS
CCC_10002545_4,28/06/2023,Human Resources,CIPD LTD LONDON,205,Employee Subscriptions,8699,MEMBERSHIP ORGANIZATIONS NOT ELSEWHERE CLASSIFIED
CCC_10003416_2,23/01/2024,"Museums, Theatres & Cultural Services",BES LTD BIRMINGHAM,11.44,General Expense,5074,PLUMBING AND HEATING EQUIPMENT AND SUPPLIES
CCC_10003075_5,06/11/2023,Parks & Green Spaces,FIND A WILL 0300 3030648,1.5,Printing & Stationary,8999,PROFESSIONAL SERVICES (NEC)
CCC_10003473_1,26/01/2024,"Museums, Theatres & Cultural Services",AMAZON  203-6289211-34 LONDON,25.17,General Expense,5399,GENERAL MERCHANDISE OR CONVENIENCE FOOD STORES
CCC_10002939_2,03/10/2023,Leisure & Heritage Services,HOME BARGAINS CHELMSFORD,44.57,General Expense,5399,GENERAL MERCHANDISE OR CONVENIENCE FOOD STORES
CCC_10003306_4,14/12/2023,Leisure & Heritage Services,AMZNMKTPLACE AMAZON.CO.UK,9.57,General Expense,5999,MISCELLANEOUS & SPECIALTY STORES
CCC_10003327_2,13/12/2023,"Museums, Theatres & Cultural Services",WWW.PRESERVATIONEQUIPM 01379647400,126.5,New Equipment,4225," PUBLIC WAREHOUSING-FARM PROD,REFRIDGERAT "
CCC_10003344_3,28/11/2023,Parks & Green Spaces,ASDA STORE 5828 BRIDGEWATER,4.54,General Expense,5411,GROCERY STORES OR SUPERMARKETS
CCC_10002880_4,24/07/2023,Parks & Green Spaces,AMZNMKTPLACE AMAZON.CO.UK,102.31,Grounds Maintenance Materials,5999,MISCELLANEOUS & SPECIALTY STORES
CCC_10003460_1,29/01/2024,Parking & Highways Operations,AMAZON  204-5053932-59 LONDON,17.45,General Expense,5399,GENERAL MERCHANDISE OR CONVENIENCE FOOD STORES
CCC_10002737_2,07/08/2023,"Museums, Theatres & Cultural Services",ONLINE FABRICS UK LTD COVENTRY,262.5,Clothing & Uniforms,5399,GENERAL MERCHANDISE OR CONVENIENCE FOOD STORES
CCC_10003429_1,23/01/2024,"Museums, Theatres & Cultural Services",AMZNMKTPLACE LONDON,37.04,General Expense,5999,MISCELLANEOUS & SPECIALTY STORES
CCC_10003266_9,05/12/2023,"Museums, Theatres & Cultural Services",SOLENT PLASTICS ROMSEY,212.3,New Equipment,5943," STATIONERY STORES, OFFICE & SCHOOL SUPPLY STORES "
CCC_10002239_2,13/04/2023,Parks & Green Spaces,JAMES ODDY AND SON CHELMSFORD,65.7,Grounds Maintenance Materials,5211,LUMBER AND BUILDING MATERIALS STORES
CCC_10003136_4,30/09/2023,Marketing & Communications Team,FACEBK  NPJK3VF9K2 FB.ME/ADS,374.26,Advertising,7311,ADVERTISING SERVICES
CCC_10003446_15,02/01/2024,"Museums, Theatres & Cultural Services",WORKWEAR EXPRESS DURHAM,28.85,New Equipment,5137," MEN'S, WOMEN'S AND CHILDREN'S UNIFORMS "
CCC_10002798_5,12/07/2023,Marketing & Communications Team,FACEBK  CQHF4PBY72 FB.ME/ADS,11.67,Advertising,7311,ADVERTISING SERVICES
CCC_10003555_1,09/02/2024,Leisure & Heritage Services,TAHDAH VERIFIED LLANDUDNO,488,General Expense,5734,COMPUTER SOFTWARE STORES
CCC_10003111_1,12/11/2023,"Museums, Theatres & Cultural Services",HOBBYCRAFT CHELMSFORD,4.58,Grounds Maintenance Materials,5970,CRAFT OR ARTIST'S SUPPLY SHOPS
CCC_10003585_5,15/02/2024,Public Health & Protection Services,TOOLSTATION UK NORTHAMPTON,19.13,New Equipment,5251,HARDWARE STORES
CCC_10002895_4,22/07/2023,Marketing & Communications Team,FACEBK  DTM4YRT9K2 FB.ME/ADS,400,Advertising,7311,ADVERTISING SERVICES
CCC_10003465_1,01/02/2024,Marketing & Communications Team,GOOGLE ADS8874237245 DUBLIN,61.76,Advertising,7311,ADVERTISING SERVICES
CCC_10002807_48,26/08/2023,"Museums, Theatres & Cultural Services",TESCO STORES 5408 CHELMSFORD,6.2,General Expense,5411,GROCERY STORES OR SUPERMARKETS
CCC_10003271_2,11/12/2023,South Essex Parking Partnership,CHELMSFORD SAFETY SUPP CHELMSFORD,211.77,Clothing & Uniforms,5047," MEDICAL, DENTAL, OPHTHALMIC AND HOSPITAL EQUIP "
CCC_10002416_13,17/05/2023,Operational Services,SOCIAL SUPERMARKET TEDDINGTON,100,General Expense,5399,GENERAL MERCHANDISE OR CONVENIENCE FOOD STORES
CCC_10003188_1,19/11/2023,Leisure & Heritage Services,EBAY O 21-10803-51516 LONDON,24.45,New Equipment,5311,DEPARTMENT STORES
CCC_10002855_1,17/08/2023,Human Resources,SHL GROUP LTD THAMES DITTON,420.83,General Expense,7399,BUSINESS SERVICES (NEC)
CCC_10002723_15,25/07/2023,Leisure & Heritage Services,AMZNMKTPLACE AMAZON.CO.UK,14.56,General Expense,5999,MISCELLANEOUS & SPECIALTY STORES
CCC_10002342_1,28/04/2023,Leisure & Heritage Services,EBAY O 10-09945-45032 LONDON,-16.63,New Equipment,5311,DEPARTMENT STORES
CCC_10002234_6,21/04/2023,"Museums, Theatres & Cultural Services",CHANTELLE LIGHTING NELSON,67.22,New Equipment,5999,MISCELLANEOUS & SPECIALTY STORES
CCC_10003081_4,08/11/2023,"Museums, Theatres & Cultural Services",DUNELM SOFTFURNISHINGS LEICESTER,273.33,New Equipment,5712," FURNITURE, HOME FURNISHINGS & EQUIP STORES EXCL APPLIANCES "
CCC_10003520_4,25/01/2024,Housing Services,TRAVELODG TRAVELODGE G THAME,914.02,General Expense,3615,TRAVELODGE
CCC_10002745_1,30/06/2023,Accountancy Services,FIRST INTUITION CHELMSFORD,87.5,Employee Subscriptions,8299,SCHOOLS AND EDUCATIONAL SERVICES (NEC)
CCC_10003185_22,22/11/2023,"Museums, Theatres & Cultural Services",AMZNMKTPLACE LONDON,21.62,New Equipment,5999,MISCELLANEOUS & SPECIALTY STORES
CCC_10002328_1,26/05/2023,Parks & Green Spaces,AMZNMKTPLACE AMAZON.CO.UK,74.24,Grounds Maintenance Materials,5999,MISCELLANEOUS & SPECIALTY STORES
CCC_10003501_3,17/04/2023,Parks & Green Spaces,TESCO STORES 2330 CHELMSFORD 2,40,Grounds Maintenance Materials,5411,GROCERY STORES OR SUPERMARKETS
CCC_10002869_1,08/09/2023,Corporate Property Services,RICS COM GBP CYBS INTERNET,168,Employee Subscriptions,8699,MEMBERSHIP ORGANIZATIONS NOT ELSEWHERE CLASSIFIED
CCC_10003415_11,30/01/2024,Parks & Green Spaces,AMAZON  206-6356570-73 LONDON,20.61,Printing & Stationary,5399,GENERAL MERCHANDISE OR CONVENIENCE FOOD STORES
CCC_10002906_2,27/09/2023,"Museums, Theatres & Cultural Services",GREATER ANGLIA T/O COLCHESTER,48.2,Public Transport,4112,PASSENGER RAILWAYS
CCC_10002938_12,30/08/2023,Leisure & Heritage Services,AMZNMKTPLACE AMAZON.CO.UK,6.89,New Equipment,5999,MISCELLANEOUS & SPECIALTY STORES
CCC_10002246_3,24/04/2023,Leisure & Heritage Services,AMZNMKTPLACE AMAZON.CO AMAZON.CO.UK,9.95,General Expense,5999,MISCELLANEOUS & SPECIALTY STORES
CCC_10002801_3,07/08/2023,Legal & Democratic Services,EB  COMMERCIAL PROPERT 801-413-7200,33.33,Conference Expenses,7399,BUSINESS SERVICES (NEC)
CCC_10003385_4,10/01/2024,"Museums, Theatres & Cultural Services",TESCO STORES 2330 CHELMSFORD 2,3,General Expense,5411,GROCERY STORES OR SUPERMARKETS
CCC_10002263_4,20/04/2023,Spatial Planning,AMZNMKTPLACE AMAZON.CO.UK,6.65,New Equipment,5999,MISCELLANEOUS & SPECIALTY STORES
CCC_10003482_1,17/11/2023,Leisure & Heritage Services,WWW.ARGOS.CO.UK MILTON KEYNES,33.98,New Equipment,5311,DEPARTMENT STORES
CCC_10002763_1,27/06/2023,Leisure & Heritage Services,VIKING OFFICE UK LIMIT LEICESTER,97.8,Printing & Stationary,5111," STATIONERY, OFFICE SUPPLIES, PRINTING AND WRITING PAPER "
CCC_10002915_4,08/09/2023,Parks & Green Spaces,AMZNMKTPLACE AMAZON.CO.UK,61.6,Grounds Maintenance Materials,5999,MISCELLANEOUS & SPECIALTY STORES
CCC_10002419_4,22/05/2023,"Museums, Theatres & Cultural Services",SCREWFIX DIR LTD CHELMFOR1867,4.69,Grounds Maintenance Materials,5211,LUMBER AND BUILDING MATERIALS STORES
CCC_10002581_2,03/07/2023,Parks & Green Spaces,TESCO-STORES 6724 CHELMSFORD,3,General Expense,5411,GROCERY STORES OR SUPERMARKETS
CCC_10002621_5,12/07/2023,"Museums, Theatres & Cultural Services",AMZNMKTPLACE AMAZON.CO.UK,16.66,New Equipment,5999,MISCELLANEOUS & SPECIALTY STORES
CCC_10003180_1,28/11/2023,Public Health & Protection Services,CHARTERED INSTITUTE OF LONDON,180,Training Expenses,8398,CHARITABLE OR SOCIAL SERVICES ORGANIZATIONS
CCC_10003288_9,17/11/2023,"Museums, Theatres & Cultural Services",AMZNMKTPLACE AMAZON.CO.UK,7.99,General Expense,5999,MISCELLANEOUS & SPECIALTY STORES
CCC_10003062_5,31/10/2023,Legal & Democratic Services,AMZNMKTPLACE AMAZON.CO.UK,15.74,Printing & Stationary,5999,MISCELLANEOUS & SPECIALTY STORES
CCC_10002674_2,16/07/2023,Parking & Highways Operations,AMAZON.CO.UK JV4WC0TL5 AMAZON.CO.UK,61.37,Printing & Stationary,5969,DIRECT MARKETERS (NEC)
CCC_10003391_7,11/01/2024,Leisure & Heritage Services,AMZNMKTPLACE AMAZON.CO.UK,2.64,General Expense,5999,MISCELLANEOUS & SPECIALTY STORES
CCC_10002268_3,10/05/2023,Leisure & Heritage Services,SP RLSS UK SHOP WORCESTER,68.96,General Expense,5691,MEN'S AND WOMEN'S CLOTHING STORES
CCC_10003115_3,15/10/2023,Leisure & Heritage Services,PRINT MARKETPLACE 40 2802345,21.17,Advertising,7338," PRINT SHOPS, QUICK COPY SERVICES OR REPRODUCTION SERVICES "
CCC_10003341_71,29/12/2023,"Museums, Theatres & Cultural Services",TESCO STORES 5408 CHELMSFORD,4.15,General Expense,5411,GROCERY STORES OR SUPERMARKETS
CCC_10002723_4,30/06/2023,Leisure & Heritage Services,AMZNMKTPLACE AMAZON.CO.UK,20.98,General Expense,5999,MISCELLANEOUS & SPECIALTY STORES
CCC_10003062_1,24/10/2023,Legal & Democratic Services,LLG ENTERPRISES LTD RUNCORN,156,Training Expenses,8249,VOCATIONAL OR TRADE SCHOOLS
CCC_10003039_2,01/11/2023,Digital Services,COMMS EXPRESS LTD CHELMSFORD,106.6,Publications,5732,ELECTRONIC SALES
CCC_10002991_4,04/10/2023,Operational Services,SQ  MONARCH CHELMSFORD,34,Clothing & Uniforms,7230,BARBER OR BEAUTY SHOPS
CCC_10003266_5,11/12/2023,"Museums, Theatres & Cultural Services",AMZNMKTPLACE LONDON,17.97,New Equipment,5999,MISCELLANEOUS & SPECIALTY STORES
CCC_10002857_3,22/09/2023,Leisure & Heritage Services,WWW.LSENGINEERS.CO.UK WALSALL,19.33,Grounds Maintenance Materials,5251,HARDWARE STORES
CCC_10002411_17,17/05/2023,South Essex Parking Partnership,SPORTSDIRECT 297 08443325297,39.17,Clothing & Uniforms,5941,SPORTING GOODS STORES
CCC_10003302_5,13/11/2023,Marketing & Communications Team,GREATER ANGLIA T/O CHLMSFRD 6836,64.8,Public Transport,4112,PASSENGER RAILWAYS
CCC_10003293_8,05/12/2023,Housing Services,TRAVELODG TRAVELODGE G THAME,296.82,General Expense,3615,TRAVELODGE
CCC_10003054_3,31/10/2023,Human Resources,AMZNMKTPLACE AMAZON.CO.UK,-199.99,General Expense,5999,MISCELLANEOUS & SPECIALTY STORES
CCC_10003581_7,23/10/2023,South Essex Parking Partnership,LAND REGISTRY ECOM CCC LONDON,6,General Expense,9399,GOVERNMENT SERVICES (NEC) OR FIRE DEPARTMENTS
CCC_10002804_27,13/07/2023,"Museums, Theatres & Cultural Services",TESCO STORES 5408 CHELMSFORD,4.4,General Expense,5411,GROCERY STORES OR SUPERMARKETS
CCC_10002303_14,22/05/2023,"Museums, Theatres & Cultural Services",TESCO STORES 5408 CHELMSFORD,22.29,General Expense,5411,GROCERY STORES OR SUPERMARKETS
CCC_10002992_3,13/10/2023,Leisure & Heritage Services,SCREWFIX DIR LTD CHELMFOR1066,11.16,Grounds Maintenance Materials,5211,LUMBER AND BUILDING MATERIALS STORES
CCC_10003394_1,28/12/2023,Leisure & Heritage Services,PLASTICBOXC 35314369001,50.65,General Expense,8931," ACCOUNTING, BOOKKEEPING OR AUDITING SERVICES "
CCC_10002257_2,28/04/2023,Leisure & Heritage Services,IKEA LTD SHOP ONLINE LONDON,307.5,New Equipment,5712," FURNITURE, HOME FURNISHINGS & EQUIP STORES EXCL APPLIANCES "
CCC_10002230_3,24/04/2023,Leisure & Heritage Services,WWW.SCREWFIX.COM YEOVIL,164.02,Grounds Maintenance Materials,5211,LUMBER AND BUILDING MATERIALS STORES
CCC_10002517_24,23/06/2023,"Museums, Theatres & Cultural Services",TESCO STORES 5408 CHELMSFORD,4.95,General Expense,5411,GROCERY STORES OR SUPERMARKETS
CCC_10002670_21,27/06/2023,South Essex Parking Partnership,RJ PRINTERS LTD MALDON,186,Printing & Stationary,2741,MISCELLANEOUS PUBLISHING AND PRINTING
CCC_10003042_23,19/09/2023,Leisure & Heritage Services,AMZNMKTPLACE AMAZON.CO.UK,16.63,General Expense,5999,MISCELLANEOUS & SPECIALTY STORES
CCC_10003285_5,29/11/2023,"Museums, Theatres & Cultural Services",AMZNMKTPLACE AMAZON.CO.UK,15.82,General Expense,5999,MISCELLANEOUS & SPECIALTY STORES
CCC_10002287_12,06/04/2023,Human Resources,RTPI LONDON,331,Employee Subscriptions,7997," MEMBERSHIP CLUBS INCL SPORTS, REC, ATHLETIC, COUNTRY, GOLF "
CCC_10003330_2,01/02/2024,"Museums, Theatres & Cultural Services",GOOGLE ADS8205095539 DUBLIN,186.04,Advertising,7311,ADVERTISING SERVICES
CCC_10002193_6,03/04/2023,Parks & Green Spaces,TESCO-STORES 6724 CHELMSFORD,3.17,General Expense,5411,GROCERY STORES OR SUPERMARKETS
CCC_10003282_1,20/09/2023,"Museums, Theatres & Cultural Services",NISBETS LTD 0845 1110281,22.98,General Expense,5964,CATALOG MERCHANT
CCC_10002422_1,05/06/2023,Parks & Green Spaces,CHANDLER MATERIALS CHELMSFORD,50.64,General Expense,5211,LUMBER AND BUILDING MATERIALS STORES
CCC_10002313_2,10/05/2023,"Museums, Theatres & Cultural Services",IRONMONGERYDIRECT LTD BASILDON,70,General Expense,5251,HARDWARE STORES
CCC_10002670_33,13/06/2023,South Essex Parking Partnership,ROXWELL RD HAND CAR WA CHELMSFORD,20.83,General Expense,7542,CAR WASHES
CCC_10002843_2,06/09/2023,Marketing & Communications Team,WWW.SOLOPRESS.COM SOUTHEND-ON-S,29.99,Printing & Stationary,2741,MISCELLANEOUS PUBLISHING AND PRINTING
CCC_10002755_2,09/08/2023,Leisure & Heritage Services,WWW.UKWRISTBANDS.COM INTERNET,118.98,General Expense,5699,APPAREL AND ACCESSORY SHOPS -- MISCELLANEOUS
CCC_10002517_31,29/06/2023,"Museums, Theatres & Cultural Services",TESCO STORES 5408 CHELMSFORD,3.7,General Expense,5411,GROCERY STORES OR SUPERMARKETS
CCC_10003535_11,15/11/2023,"Museums, Theatres & Cultural Services",PRINT MARKETPLACE 40 2802345,158.69,Printing & Stationary,7338," PRINT SHOPS, QUICK COPY SERVICES OR REPRODUCTION SERVICES "
CCC_10003244_8,07/11/2023,Human Resources,AMZNMKTPLACE AMAZON.CO.UK,0.42,Training Expenses,5999,MISCELLANEOUS & SPECIALTY STORES
CCC_10003374_1,03/01/2024,"Museums, Theatres & Cultural Services",GSUITE_IGNITECHELMSFOR DUBLIN,8.33,General Expense,4816,COMPUTER NETWORK/INFO SVCS
CCC_10002868_12,21/09/2023,"Museums, Theatres & Cultural Services",AMZ THEBIGSHIP 079-40472539,-1.73,New Equipment,5999,MISCELLANEOUS & SPECIALTY STORES
CCC_10002671_7,19/07/2023,Leisure & Heritage Services,AMZNMKTPLACE AMAZON.CO.UK,249.79,New Equipment,5999,MISCELLANEOUS & SPECIALTY STORES
CCC_10002222_5,24/04/2023,Leisure & Heritage Services,MAGRINI LIMITED WALSALL,41.94,General Expense,5046,COMMERCIAL EQUIPMENT (NEC)
CCC_10002803_1,16/08/2023,"Museums, Theatres & Cultural Services",AMZNMKTPLACE AMAZON.CO AMAZON.CO.UK,14.96,New Equipment,5999,MISCELLANEOUS & SPECIALTY STORES
CCC_10002711_1,26/07/2023,Marketing & Communications Team,ARTS MARKETING ASS CAMBRIDGE,68,Training Expenses,8398,CHARITABLE OR SOCIAL SERVICES ORGANIZATIONS
CCC_10003226_1,28/11/2023,Spatial Planning,HARWICH TOWN SST HARWICH,19.3,Public Transport,4112,PASSENGER RAILWAYS
CCC_10002301_1,16/05/2023,Marketing & Communications Team,PAYPAL  VENUES4HIRE 35314369001,35,Advertising,7375,INFORMATION RETRIEVAL SERVICES
CCC_10003194_8,20/11/2023,"Museums, Theatres & Cultural Services",WICKES CHELMSFORD CHELMSFORD,18.24,General Expense,5211,LUMBER AND BUILDING MATERIALS STORES
CCC_10002376_2,26/05/2023,Leisure & Heritage Services,TESCO STORES 2327 CHELMSFORD 1,21.33,General Expense,5411,GROCERY STORES OR SUPERMARKETS
CCC_10003318_8,19/12/2023,Human Resources,WWW.CIPFA.ORG.UK LONDON  WC2N,380,Employee Subscriptions,8699,MEMBERSHIP ORGANIZATIONS NOT ELSEWHERE CLASSIFIED
CCC_10002906_3,26/09/2023,"Museums, Theatres & Cultural Services",SPINK.COM RT177934 LONDON,1500,General Expense,8999,PROFESSIONAL SERVICES (NEC)
CCC_10003517_2,05/05/2023,Public Health & Protection Services,FASTSIGNS CHELMSFORD CHELMSFORD,108.36,General Expense,5943," STATIONERY STORES, OFFICE & SCHOOL SUPPLY STORES "
CCC_10003454_1,12/01/2024,Parking & Highways Operations,WWW.SCREWFIX.COM YEOVIL,5.15,General Expense,5211,LUMBER AND BUILDING MATERIALS STORES
CCC_10002422_6,30/05/2023,Parks & Green Spaces,SCREWFIX DIR LTD CHELMFOR1867,11.65,General Expense,5211,LUMBER AND BUILDING MATERIALS STORES
CCC_10002826_17,10/08/2023,"Museums, Theatres & Cultural Services",PHILIP GRAHAME INTERNA CHELMSFORD,11.06,New Equipment,5251,HARDWARE STORES
CCC_10002983_2,13/10/2023,Development Management,GREATER ANGLIA RAIL LONDON,29.25,Public Transport,4112,PASSENGER RAILWAYS
CCC_10003343_10,10/10/2023,Parks & Green Spaces,B & Q 1188 CHELMSFORD,28.7,General Expense,5200,HOME SUPPLY WAREHOUSE STORES
CCC_10002210_1,25/04/2023,Operational Services,AMZNMKTPLACE AMAZON.CO.UK,94.93,New Equipment,5999,MISCELLANEOUS & SPECIALTY STORES
CCC_10002830_4,20/08/2023,"Museums, Theatres & Cultural Services",SCREWFIX DIR LTD CHELMFOR1867,36.69,Grounds Maintenance Materials,5211,LUMBER AND BUILDING MATERIALS STORES
CCC_10003030_2,30/10/2023,Marketing & Communications Team,WWW.SOLOPRESS.COM SOUTHEND-ON-S,25.45,Printing & Stationary,2741,MISCELLANEOUS PUBLISHING AND PRINTING
CCC_10002818_2,31/08/2023,Parks & Green Spaces,AMZNMKTPLACE AMAZON.CO.UK,11.65,Printing & Stationary,5999,MISCELLANEOUS & SPECIALTY STORES
CCC_10003037_8,18/09/2023,"Museums, Theatres & Cultural Services",WICKES CHELMSFORD CHELMSFORD,52.19,General Expense,5211,LUMBER AND BUILDING MATERIALS STORES
CCC_10003620_7,16/02/2024,"Museums, Theatres & Cultural Services",WWW.CEF.CO.UK 01926865061,43.73,New Equipment,5211,LUMBER AND BUILDING MATERIALS STORES
CCC_10003570_1,17/01/2024,Leisure & Heritage Services,ASDA SUPERSTORE BASILDON,26.46,General Expense,5411,GROCERY STORES OR SUPERMARKETS
CCC_10002210_2,25/04/2023,Operational Services,BOOKER LTD - 38622734 WELLINGBOROUG,920.95,General Expense,5411,GROCERY STORES OR SUPERMARKETS
CCC_10003073_12,06/11/2023,Parks & Green Spaces,AMZNMKTPLACE LONDON,54.15,Grounds Maintenance Materials,5999,MISCELLANEOUS & SPECIALTY STORES
CCC_10003455_6,18/10/2023,Leisure & Heritage Services,AMZNMKTPLACE AMAZON.CO.UK,7.33,Printing & Stationary,5999,MISCELLANEOUS & SPECIALTY STORES
CCC_10002915_3,08/09/2023,Parks & Green Spaces,AMZNMKTPLACE AMAZON.CO.UK,41.9,Grounds Maintenance Materials,5999,MISCELLANEOUS & SPECIALTY STORES
CCC_10002688_3,01/08/2023,Leisure & Heritage Services,AMZNMKTPLACE AMAZON.CO.UK,14.13,General Expense,5999,MISCELLANEOUS & SPECIALTY STORES
CCC_10002785_3,03/08/2023,Leisure & Heritage Services,AMZNMKTPLACE AMAZON.CO.UK,16.66,General Expense,5999,MISCELLANEOUS & SPECIALTY STORES
CCC_10003035_7,10/11/2023,Digital Services,GREATER ANGLIA RAIL LONDON,30.35,Public Transport,4112,PASSENGER RAILWAYS
CCC_10002915_1,15/09/2023,Parks & Green Spaces,AMZNMKTPLACE LONDON,15.82,Grounds Maintenance Materials,5999,MISCELLANEOUS & SPECIALTY STORES
CCC_10002835_2,01/08/2023,Leisure & Heritage Services,TAHDAH VERIFIED LLANDUDNO,413,General Expense,5734,COMPUTER SOFTWARE STORES
CCC_10003587_2,07/11/2023,Leisure & Heritage Services,AMZNMKTPLACE AMAZON.CO.UK,-55.82,New Equipment,5999,MISCELLANEOUS & SPECIALTY STORES
CCC_10003157_3,23/11/2023,Digital Services,AMZNMKTPLACE AMAZON.CO.UK,438.32,New Equipment,5999,MISCELLANEOUS & SPECIALTY STORES
CCC_10002219_2,13/04/2023,Parks & Green Spaces,BUTTERFLY CONSERVATION WAREHAM,31.67,General Expense,8398,CHARITABLE OR SOCIAL SERVICES ORGANIZATIONS
CCC_10003342_1,02/01/2024,Leisure & Heritage Services,LINKEDIN PRE 975901955 LINKEDIN.COM,399.9,Advertising,5968,CONTINUITY/SUBSCRIPTION MERCHANT
CCC_10002265_5,05/04/2023,South Essex Parking Partnership,AMZ AMAZON.CO.UK AMAZON.CO.UK,-16.49,New Equipment,5969,DIRECT MARKETERS (NEC)
CCC_10002749_13,25/07/2023,Parks & Green Spaces,BADDOW ROAD CHELMSFORD,2.79,General Expense,7523,AUTOMOBILE PARKING OR PARKING LOTS
CCC_10003623_2,15/02/2024,Human Resources,RTPI LONDON,178,Employee Subscriptions,7997," MEMBERSHIP CLUBS INCL SPORTS, REC, ATHLETIC, COUNTRY, GOLF "
CCC_10003341_60,19/12/2023,"Museums, Theatres & Cultural Services",TESCO STORES 5408 CHELMSFORD,7.4,General Expense,5411,GROCERY STORES OR SUPERMARKETS
CCC_10002438_1,15/06/2023,Leisure & Heritage Services,AMZNMKTPLACE AMAZON.CO.UK,39.97,New Equipment,5999,MISCELLANEOUS & SPECIALTY STORES
CCC_10003023_12,17/10/2023,Public Health & Protection Services,AMZNMKTPLACE LONDON,-88.49,New Equipment,5999,MISCELLANEOUS & SPECIALTY STORES
CCC_10003554_10,08/12/2023,Digital Services,AMZNMKTPLACE AMAZON.CO.UK,-0.06,New Equipment,5999,MISCELLANEOUS & SPECIALTY STORES
CCC_10003149_6,27/10/2023,Parks & Green Spaces,D. BYFORD & SONS COLCHESTER CO,22,General Expense,5193," FLORIST SUPPLIES, NURSERY STOCK AND FLOWERS "
CCC_10003468_1,30/01/2024,Parking & Highways Operations,WWW.SCREWFIX.COM YEOVIL,9.98,Grounds Maintenance Materials,5211,LUMBER AND BUILDING MATERIALS STORES
CCC_10002924_14,20/10/2023,Digital Services,AUTODESK IRELAND OPERA DUBLIN 2,1215,General Expense,5734,COMPUTER SOFTWARE STORES
CCC_10003545_1,07/02/2024,Public Health & Protection Services,ESSEX COUNTY COUNCI EC CHELMSFORD,11,Printing & Stationary,9399,GOVERNMENT SERVICES (NEC) OR FIRE DEPARTMENTS
CCC_10002670_15,03/07/2023,South Essex Parking Partnership,IMO CAR WASH BASILDON BASILDON,2,General Expense,7542,CAR WASHES
CCC_10002273_2,10/05/2023,Digital Services,AMZNMKTPLACE AMAZON.CO.UK,21.98,New Equipment,5999,MISCELLANEOUS & SPECIALTY STORES
CCC_10002861_3,01/09/2023,Public Health & Protection Services,SP MISTRAL CHEM BALLYCLARE,17.49,New Equipment,5734,COMPUTER SOFTWARE STORES
CCC_10002707_1,10/05/2023,"Museums, Theatres & Cultural Services",GREATER ANGLIA T/O CHLMSFRD 6836,74.2,Public Transport,4112,PASSENGER RAILWAYS
CCC_10003401_2,15/01/2024,Parks & Green Spaces,AMZNMKTPLACE LONDON,39.62,Printing & Stationary,5999,MISCELLANEOUS & SPECIALTY STORES
CCC_10002674_1,23/07/2023,Parking & Highways Operations,WICKES BRAINTREE BRAINTREE,1.67,New Equipment,5211,LUMBER AND BUILDING MATERIALS STORES
CCC_10003461_6,05/01/2024,Parks & Green Spaces,WWW.SCREWFIX.COM YEOVIL,46.98,General Expense,5211,LUMBER AND BUILDING MATERIALS STORES
CCC_10002720_2,20/07/2023,Leisure & Heritage Services,THE WORKS CHELMSFORD,4.17,Printing & Stationary,5310,DISCOUNT STORES
CCC_10002303_5,13/05/2023,"Museums, Theatres & Cultural Services",TESCO STORES 5408 CHELMSFORD,5.25,General Expense,5411,GROCERY STORES OR SUPERMARKETS
CCC_10003037_3,25/09/2023,"Museums, Theatres & Cultural Services",AMZNMKTPLACE AMAZON.CO.UK,5.13,General Expense,5999,MISCELLANEOUS & SPECIALTY STORES
CCC_10002621_6,10/07/2023,"Museums, Theatres & Cultural Services",WWW.SCREWFIX.COM YEOVIL,76.63,New Equipment,5211,LUMBER AND BUILDING MATERIALS STORES
CCC_10002839_6,20/07/2023,Street Care & Performance,AMZNMKTPLACE AMAZON.CO.UK,8.29,General Expense,5999,MISCELLANEOUS & SPECIALTY STORES
CCC_10002606_5,18/07/2023,Operational Services,DVLA VEHICLE TAX 0300 1234321,302.5,Vehicle Tax,9311,TAX PAYMENTS
CCC_10002289_4,09/05/2023,"Museums, Theatres & Cultural Services",AMZNMKTPLACE AMAZON.CO.UK,3.32,Printing & Stationary,5999,MISCELLANEOUS & SPECIALTY STORES
CCC_10002960_44,29/09/2023,"Museums, Theatres & Cultural Services",TESCO STORES 5408 CHELMSFORD,5.04,General Expense,5411,GROCERY STORES OR SUPERMARKETS
CCC_10002875_2,14/09/2023,Development Management,CIEEM.NET AMPFIELD,200,Training Expenses,8398,CHARITABLE OR SOCIAL SERVICES ORGANIZATIONS
CCC_10002964_5,26/09/2023,Leisure & Heritage Services,NICESHOPS GMBH PALDAU,45.36,New Equipment,5977,COSMETIC STORES
CCC_10002826_5,20/08/2023,"Museums, Theatres & Cultural Services",AMZNMKTPLACE AMAZON.CO AMAZON.CO.UK,3.94,New Equipment,5999,MISCELLANEOUS & SPECIALTY STORES
CCC_10003213_2,07/12/2023,Parks & Green Spaces,AMZNMKTPLACE AMAZON.CO.UK,38.95,Grounds Maintenance Materials,5999,MISCELLANEOUS & SPECIALTY STORES
CCC_10002414_5,11/05/2023,Parks & Green Spaces,TESCO-STORES 6724 CHELMSFORD,4.75,Grounds Maintenance Materials,5411,GROCERY STORES OR SUPERMARKETS
CCC_10003284_5,22/12/2023,"Museums, Theatres & Cultural Services",AMZNMKTPLACE LONDON,19.14,General Expense,5999,MISCELLANEOUS & SPECIALTY STORES
CCC_10002350_1,06/05/2023,Leisure & Heritage Services,AMZNMKTPLACE AMAZON.CO.UK,19.12,New Equipment,5999,MISCELLANEOUS & SPECIALTY STORES
CCC_10003344_18,14/11/2023,Parks & Green Spaces,AMZNMKTPLACE LONDON,8.82,General Expense,5999,MISCELLANEOUS & SPECIALTY STORES
CCC_10002459_1,12/06/2023,Public Health & Protection Services,ASDA SUPERSTORE CHELMSFORD,1.04,General Expense,5411,GROCERY STORES OR SUPERMARKETS
CCC_10002517_10,09/06/2023,"Museums, Theatres & Cultural Services",TESCO STORES 5408 CHELMSFORD,7.2,General Expense,5411,GROCERY STORES OR SUPERMARKETS
CCC_10002881_6,29/08/2023,Parks & Green Spaces,AMZNMKTPLACE AMAZON.CO.UK,19.98,Grounds Maintenance Materials,5999,MISCELLANEOUS & SPECIALTY STORES
CCC_10003442_7,12/01/2024,Leisure & Heritage Services,WWW.SCREWFIX.COM YEOVIL,52.62,Grounds Maintenance Materials,5211,LUMBER AND BUILDING MATERIALS STORES
CCC_10002757_1,09/08/2023,Revenue and Benefit Services,AMZNMKTPLACE AMAZON.CO.UK,13.2,Printing & Stationary,5999,MISCELLANEOUS & SPECIALTY STORES
CCC_10002638_1,13/07/2023,"Museums, Theatres & Cultural Services",MARKS&SPENCER PLC CHELMSFORD,20.25,General Expense,5411,GROCERY STORES OR SUPERMARKETS
CCC_10003353_10,23/01/2024,Digital Services,AJ TEK CORPORATION OAKVILLE,73.05,General Expense,5734,COMPUTER SOFTWARE STORES
CCC_10002826_16,10/08/2023,"Museums, Theatres & Cultural Services",WWW.VDCTRADING.COM LONDON,454.17,New Equipment,5732,ELECTRONIC SALES
CCC_10003023_14,15/10/2023,Public Health & Protection Services,AMZNMKTPLACE LONDON,192.19,New Equipment,5999,MISCELLANEOUS & SPECIALTY STORES
CCC_10003495_1,31/01/2024,Leisure & Heritage Services,AMAZON  204-6310722-75 LONDON,8.2,General Expense,5399,GENERAL MERCHANDISE OR CONVENIENCE FOOD STORES
CCC_10003575_1,21/01/2024,Leisure & Heritage Services,AMZNMKTPLACE LONDON,24.98,Printing & Stationary,5999,MISCELLANEOUS & SPECIALTY STORES
CCC_10002846_1,24/08/2023,Accountancy Services,FIRST INTUITION CHELMSFORD,-60,Training Expenses,8299,SCHOOLS AND EDUCATIONAL SERVICES (NEC)
CCC_10003185_11,26/11/2023,"Museums, Theatres & Cultural Services",AMZNMKTPLACE AMAZON.CO.UK,4.16,New Equipment,5999,MISCELLANEOUS & SPECIALTY STORES
CCC_10003230_6,23/11/2023,Public Health & Protection Services,PAYBYPHONE RE BRITANNI HATFIELD,8.2,Car Parking,7523,AUTOMOBILE PARKING OR PARKING LOTS
CCC_10002802_2,12/08/2023,Parks & Green Spaces,AMZNMKTPLACE AMAZON.CO.UK,9.58,Printing & Stationary,5999,MISCELLANEOUS & SPECIALTY STORES
CCC_10002755_16,01/06/2023,Leisure & Heritage Services,SP ROLLUPBANNER HULL,76.8,Printing & Stationary,2741,MISCELLANEOUS PUBLISHING AND PRINTING
CCC_10003232_3,24/11/2023,Parks & Green Spaces,TESCO STORES 2330 CHELMSFORD 2,92.87,General Expense,5411,GROCERY STORES OR SUPERMARKETS
CCC_10002621_11,02/07/2023,"Museums, Theatres & Cultural Services",AMZNMKTPLACE AMAZON.CO.UK,29.48,New Equipment,5999,MISCELLANEOUS & SPECIALTY STORES
CCC_10003296_9,21/12/2023,Legal & Democratic Services,AMZNBUSINESS GW1DP0G25 AMAZON.CO.UK,38.43,Printing & Stationary,5999,MISCELLANEOUS & SPECIALTY STORES
CCC_10003510_10,31/07/2023,Parks & Green Spaces,TESCO STORES 2330 CHELMSFORD 2,57.08,Grounds Maintenance Materials,5411,GROCERY STORES OR SUPERMARKETS
CCC_10002422_7,30/05/2023,Parks & Green Spaces,CHANDLER MATERIALS CHELMSFORD,106.3,General Expense,5211,LUMBER AND BUILDING MATERIALS STORES
CCC_10003286_16,09/10/2023,"Museums, Theatres & Cultural Services",TESCO STORES 5408 CHELMSFORD,1,General Expense,5411,GROCERY STORES OR SUPERMARKETS
CCC_10002245_1,26/04/2023,"Museums, Theatres & Cultural Services",TESCO STORES 2330 CHELMSFORD 2,3.83,General Expense,5411,GROCERY STORES OR SUPERMARKETS
CCC_10003381_2,13/01/2024,Leisure & Heritage Services,SP RLSS UK SHOP WORCESTER,58.96,General Expense,5691,MEN'S AND WOMEN'S CLOTHING STORES
CCC_10002878_5,23/08/2023,Digital Services,MAILPARSER.IO EDINA,404.39,Publications,5734,COMPUTER SOFTWARE STORES
CCC_10002365_7,15/05/2023,Parks & Green Spaces,AMZNMKTPLACE AMAZON.CO AMAZON.CO.UK,4.98,General Expense,5999,MISCELLANEOUS & SPECIALTY STORES
CCC_10003110_1,20/10/2023,"Museums, Theatres & Cultural Services",BREWERS CHELMSFORD CHELMSFORD,16.18,Advertising,5251,HARDWARE STORES
CCC_10002722_1,27/07/2023,Operational Services,PASS  PORTABLE APPLIAN STOCKTON ON T,77.5,General Expense,8734,TESTING LABORATORIES (NON-MEDICAL TESTING)
CCC_10003086_3,23/10/2023,Street Care & Performance,AMZNMKTPLACE AMAZON.CO.UK,8.29,General Expense,5999,MISCELLANEOUS & SPECIALTY STORES
CCC_10002581_1,03/07/2023,Parks & Green Spaces,ASDA SUPERSTORE CHELMSFORD,31.5,General Expense,5411,GROCERY STORES OR SUPERMARKETS
CCC_10003619_1,14/02/2024,Operational Services,AMZNBUSINESS R86PD2805 LUXEMBOURG L,9.99,General Expense,5999,MISCELLANEOUS & SPECIALTY STORES
CCC_10003391_4,16/01/2024,Leisure & Heritage Services,AMZNMKTPLACE AMAZON.CO.UK,4.07,New Equipment,5999,MISCELLANEOUS & SPECIALTY STORES
CCC_10002804_49,26/07/2023,"Museums, Theatres & Cultural Services",TESCO STORES 5408 CHELMSFORD,9.3,General Expense,5411,GROCERY STORES OR SUPERMARKETS
CCC_10002804_12,03/07/2023,"Museums, Theatres & Cultural Services",DUKE STREET COOP 01245 345490,8,General Expense,5311,DEPARTMENT STORES
CCC_10002804_53,31/07/2023,"Museums, Theatres & Cultural Services",TESCO STORES 5408 CHELMSFORD,7.75,General Expense,5411,GROCERY STORES OR SUPERMARKETS
CCC_10003602_5,13/02/2024,Parks & Green Spaces,AMAZON  204-9731938-76 LONDON,69.16,Grounds Maintenance Materials,5399,GENERAL MERCHANDISE OR CONVENIENCE FOOD STORES
CCC_10003134_1,25/10/2023,Revenue and Benefit Services,SOUTHEND COUNTY WWW.JUCTIC.GO,586,General Expense,9222,FINES
CCC_10003508_2,11/09/2023,Parks & Green Spaces,TESCO STORES 2330 CHELMSFORD 2,55.83,Grounds Maintenance Materials,5411,GROCERY STORES OR SUPERMARKETS
CCC_10003181_1,22/11/2023,"Museums, Theatres & Cultural Services",AMZNMKTPLACE LONDON,3.96,Printing & Stationary,5999,MISCELLANEOUS & SPECIALTY STORES
CCC_10002829_1,28/08/2023,Operational Services,10TO8.COM CAMBRIDGE,59,General Expense,5817,DIGITAL GOODS: APPLICATIONS (EXCLUDES GAMES)
CCC_10003048_18,03/10/2023,Parks & Green Spaces,WWW.SCREWFIX.COM YEOVIL,5.24,Grounds Maintenance Materials,5211,LUMBER AND BUILDING MATERIALS STORES
CCC_10003179_1,01/12/2023,Leisure & Heritage Services,AMZNMKTPLACE AMAZON.CO.UK,24.84,Printing & Stationary,5999,MISCELLANEOUS & SPECIALTY STORES
CCC_10002425_6,31/05/2023,Parks & Green Spaces,AMZNMKTPLACE AMAZON.CO.UK,6.74,Grounds Maintenance Materials,5999,MISCELLANEOUS & SPECIALTY STORES
CCC_10002994_2,18/10/2023,Leisure & Heritage Services,MARKS&SPENCER PLC SACA CHELMSFORD SF,13.24,Conference Expenses,5411,GROCERY STORES OR SUPERMARKETS
CCC_10003415_10,30/01/2024,Parks & Green Spaces,AMZNMKTPLACE AMAZON.CO.UK,52.64,General Expense,5999,MISCELLANEOUS & SPECIALTY STORES
CCC_10002754_1,10/08/2023,Parks & Green Spaces,COOPER KEYS CHELMSFORD CM,172.79,Grounds Maintenance Materials,5251,HARDWARE STORES
CCC_10002296_1,12/05/2023,Leisure & Heritage Services,SP BEST GYM EQUIP BATH,18.78,New Equipment,5941,SPORTING GOODS STORES
CCC_10002273_8,15/05/2023,Digital Services,AMZNBUSINESS B51W11RF5 LUXEMBOURG L,20.83,New Equipment,5999,MISCELLANEOUS & SPECIALTY STORES
CCC_10002938_5,25/09/2023,Leisure & Heritage Services,AMAZON PRIME 1K1364XK4 AMZN.CO.UK/PM,8.99,Employee Subscriptions,5968,CONTINUITY/SUBSCRIPTION MERCHANT
CCC_10003205_1,02/12/2023,Operational Services,DREAMSTIME.COM MIAMI,22,General Expense,5262,
CCC_10003457_7,05/10/2023,Parks & Green Spaces,ASDA SUPERSTORE CHELMSFORD,81.35,General Expense,5411,GROCERY STORES OR SUPERMARKETS
CCC_10003151_3,07/11/2023,Parks & Green Spaces,B & Q 1188 CHELMSFORD,40,General Expense,5200,HOME SUPPLY WAREHOUSE STORES
CCC_10002991_2,11/10/2023,Operational Services,FACEBK SL6VGS7ZA2 FB.ME/ADS,200,Advertising,7311,ADVERTISING SERVICES
CCC_10002960_13,12/09/2023,"Museums, Theatres & Cultural Services",AMZNMKTPLACE AMAZON.CO AMAZON.CO.UK,41.03,General Expense,5999,MISCELLANEOUS & SPECIALTY STORES
CCC_10002621_12,30/06/2023,"Museums, Theatres & Cultural Services",ROYAL MAIL GROUP LTD CHESTERFIELD,7.85,General Expense,9402,POSTAGE STAMPS
CCC_10003566_1,19/02/2024,Public Health & Protection Services,PREMIER INN NOTTINGHAM,66.65,Accommodation,3811,PREMIER TRAVEL INN
CCC_10002995_2,14/09/2023,"Museums, Theatres & Cultural Services",TESCO STORES 5408 CHELMSFORD,-2.25,General Expense,5411,GROCERY STORES OR SUPERMARKETS
CCC_10003480_3,15/11/2023,Leisure & Heritage Services,EBAY O 02-10798-23561 LONDON,36.32,New Equipment,5311,DEPARTMENT STORES
CCC_10002872_11,11/09/2023,Parks & Green Spaces,AMAZON.CO.UK 145U704E4 AMAZON.CO.UK,13.75,General Expense,5969,DIRECT MARKETERS (NEC)
CCC_10002807_41,24/08/2023,"Museums, Theatres & Cultural Services",TESCO STORES 5408 CHELMSFORD,6.2,General Expense,5411,GROCERY STORES OR SUPERMARKETS
CCC_10003585_13,07/02/2024,Public Health & Protection Services,AMAZON  203-2059840-65 LONDON,4.99,General Expense,5399,GENERAL MERCHANDISE OR CONVENIENCE FOOD STORES
CCC_10002469_1,12/06/2023,Parking & Highways Operations,AMZNMKTPLACE AMAZON.CO.UK,31.07,General Expense,5999,MISCELLANEOUS & SPECIALTY STORES
CCC_10003437_6,24/11/2023,Marketing & Communications Team,FACEBK VDFNLVKZ52 FB.ME/ADS,400,Advertising,7311,ADVERTISING SERVICES
CCC_10003530_3,17/04/2023,Legal & Democratic Services,AMZNMKTPLACE AMAZON.CO AMAZON.CO.UK,18.62,New Equipment,5999,MISCELLANEOUS & SPECIALTY STORES
CCC_10003405_11,28/01/2024,Operational Services,MAGZTER INC. NEW YORK,9.99,General Expense,5815," DIGITAL GOODS MEDIA: BOOKS, MOVIES, MUSIC "
CCC_10003097_5,11/10/2023,Leisure & Heritage Services,FTC - CHELMSFORD MILTON KEYNES,12.08,New Equipment,8999,PROFESSIONAL SERVICES (NEC)
CCC_10002303_4,13/05/2023,"Museums, Theatres & Cultural Services",TESCO STORES 5408 CHELMSFORD,4.95,General Expense,5411,GROCERY STORES OR SUPERMARKETS
CCC_10003166_3,09/09/2023,Leisure & Heritage Services,AMZNMKTPLACE AMAZON.CO.UK,17.08,New Equipment,5999,MISCELLANEOUS & SPECIALTY STORES
CCC_10002771_1,07/08/2023,Revenue and Benefit Services,AMZNMKTPLACE AMAZON.CO.UK,27.63,Printing & Stationary,5999,MISCELLANEOUS & SPECIALTY STORES
CCC_10002396_2,22/05/2023,Development Management,FIRST INTUITION CHELMSFORD,-63,Training Expenses,8299,SCHOOLS AND EDUCATIONAL SERVICES (NEC)
CCC_10002344_1,08/05/2023,Leisure & Heritage Services,AMZNMKTPLACE AMAZON.CO AMAZON.CO.UK,-89.99,New Equipment,5999,MISCELLANEOUS & SPECIALTY STORES
CCC_10002294_2,12/05/2023,Legal & Democratic Services,AMZNMKTPLACE AMAZON.CO.UK,24.99,Printing & Stationary,5999,MISCELLANEOUS & SPECIALTY STORES
CCC_10002190_1,19/04/2023,"Museums, Theatres & Cultural Services",GREATER ANGLIA T/O COLCHESTER,74.6,Public Transport,4112,PASSENGER RAILWAYS
CCC_10003504_3,26/06/2023,Parks & Green Spaces,TESCO STORES 2330 CHELMSFORD 2,52.5,Grounds Maintenance Materials,5411,GROCERY STORES OR SUPERMARKETS
CCC_10002620_4,30/06/2023,Marketing & Communications Team,FACEBK  TJBH2QPY52 FB.ME/ADS,286.09,Advertising,7311,ADVERTISING SERVICES
CCC_10002964_6,18/09/2023,Leisure & Heritage Services,WWW.SCREWFIX.COM YEOVIL,20.82,General Expense,5211,LUMBER AND BUILDING MATERIALS STORES
CCC_10002169_7,08/04/2023,"Museums, Theatres & Cultural Services",TESCO STORES 5408 CHELMSFORD,7.25,General Expense,5411,GROCERY STORES OR SUPERMARKETS
CCC_10003501_4,18/04/2023,Parks & Green Spaces,HSFLORALDESIGNS.CO.UK BLACKMORE IN,98,Grounds Maintenance Materials,5992,FLORISTS
CCC_10002581_5,07/07/2023,Parks & Green Spaces,TESCO-STORES 6724 CHELMSFORD,1.5,General Expense,5411,GROCERY STORES OR SUPERMARKETS
CCC_10002821_5,24/08/2023,Legal & Democratic Services,AMZNMKTPLACE AMAZON.CO.UK,37.93,Printing & Stationary,5999,MISCELLANEOUS & SPECIALTY STORES
CCC_10002937_5,12/09/2023,Leisure & Heritage Services,AMZNMKTPLACE AMAZON.CO AMAZON.CO.UK,60,General Expense,5999,MISCELLANEOUS & SPECIALTY STORES
CCC_10002721_5,28/06/2023,Housing Services,CASTLE WATER BLAIRGOWRIE,3.59,General Expense,4900," ELECTRIC, GAS, SANITARY, TELEPHONE OR WATER UTILITIES "
CCC_10003253_1,13/12/2023,Leisure & Heritage Services,UK POINT OF SALE GROUP STOCKPORT,148.2,General Expense,5111," STATIONERY, OFFICE SUPPLIES, PRINTING AND WRITING PAPER "
CCC_10002517_30,28/06/2023,"Museums, Theatres & Cultural Services",AMZNBUSINESS BS7OL05T5 AMAZON.CO.UK,8.3,General Expense,5999,MISCELLANEOUS & SPECIALTY STORES
CCC_10003508_4,25/09/2023,Parks & Green Spaces,TESCO STORES 2330 CHELMSFORD 2,42.07,Grounds Maintenance Materials,5411,GROCERY STORES OR SUPERMARKETS
CCC_10002314_2,14/05/2023,Leisure & Heritage Services,AMZNMKTPLACE AMAZON.CO AMAZON.CO.UK,28.34,Printing & Stationary,5999,MISCELLANEOUS & SPECIALTY STORES
CCC_10003392_2,15/12/2023,Leisure & Heritage Services,SPOTIFY P27FA4F7C5 LONDON,10.99,General Expense,5815," DIGITAL GOODS MEDIA: BOOKS, MOVIES, MUSIC "
CCC_10002182_2,08/04/2023,Leisure & Heritage Services,NISA CASTLE STORES CHELMSFORD,70.83,General Expense,5499,MISC FOOD STORES - SPECIALTY MARKETS & CONVENIENCE
CCC_10002960_47,29/09/2023,"Museums, Theatres & Cultural Services",AMZNMKTPLACE AMAZON.CO.UK,23.87,General Expense,5999,MISCELLANEOUS & SPECIALTY STORES
CCC_10002420_4,26/05/2023,Leisure & Heritage Services,AMZNMKTPLACE AMAZON.CO.UK,17.04,Printing & Stationary,5999,MISCELLANEOUS & SPECIALTY STORES
CCC_10003436_3,19/01/2024,Leisure & Heritage Services,CLR WWW.WWW.TAUNTONTR TAUNTON,17.08,General Expense,5511,AUTO/TRUCK DEALERS NEW/USED SALE REPAIR PARTS & LEASE
CCC_10003043_5,25/10/2023,Leisure & Heritage Services,AMZNMKTPLACE AMAZON.CO.UK,18.87,General Expense,5999,MISCELLANEOUS & SPECIALTY STORES
CCC_10003296_2,20/11/2023,Legal & Democratic Services,AMZNMKTPLACE AMAZON.CO.UK,20.44,Printing & Stationary,5999,MISCELLANEOUS & SPECIALTY STORES
CCC_10003355_1,09/01/2024,Operational Services,AMZNMKTPLACE LONDON,2.49,General Expense,5999,MISCELLANEOUS & SPECIALTY STORES
CCC_10002510_23,18/06/2023,Parks & Green Spaces,AMAZON.CO.UK KI6Z69BK5 AMAZON.CO.UK,13.75,Vehicle Repairs,5969,DIRECT MARKETERS (NEC)
CCC_10003332_1,23/12/2023,"Museums, Theatres & Cultural Services",TOOLSTATION UK NORTHAMPTON,22.71,General Expense,5251,HARDWARE STORES
CCC_10003389_1,16/01/2024,Leisure & Heritage Services,AMZNMKTPLACE AMAZON.CO.UK,38.83,General Expense,5999,MISCELLANEOUS & SPECIALTY STORES
CCC_10002804_30,12/07/2023,"Museums, Theatres & Cultural Services",ETERNAL BLOOM FLORIST CHELMSFORD,10.42,General Expense,5992,FLORISTS
CCC_10002589_5,03/07/2023,Revenue and Benefit Services,AMZNMKTPLACE AMAZON.CO.UK,7.17,Printing & Stationary,5999,MISCELLANEOUS & SPECIALTY STORES
CCC_10003110_2,11/10/2023,"Museums, Theatres & Cultural Services",B & Q 1188 CHELMSFORD,33.33,Advertising,5200,HOME SUPPLY WAREHOUSE STORES
CCC_10002950_3,05/09/2023,"Museums, Theatres & Cultural Services",SKELTONS CHELMSFORD,1.67,General Expense,5722,APPLIANCE STORES (NEC) OR HOUSEHOLD APPLIANCE STORES
CCC_10003108_2,10/11/2023,Leisure & Heritage Services,AMZNMKTPLACE LONDON,32.49,New Equipment,5999,MISCELLANEOUS & SPECIALTY STORES
CCC_10002735_1,06/07/2023,"Museums, Theatres & Cultural Services",AMZNMKTPLACE AMAZON.CO.UK,49.98,New Equipment,5999,MISCELLANEOUS & SPECIALTY STORES
CCC_10002303_18,27/05/2023,"Museums, Theatres & Cultural Services",TESCO STORES 5408 CHELMSFORD,6.6,General Expense,5411,GROCERY STORES OR SUPERMARKETS
CCC_10003620_8,13/02/2024,"Museums, Theatres & Cultural Services",SECURITY MATTERS KETTERING,542,New Equipment,7399,BUSINESS SERVICES (NEC)
CCC_10003406_6,15/01/2024,Parks & Green Spaces,DVLA VEHICLE TAX 0300 1234321,322.5,Grounds Maintenance Materials,9311,TAX PAYMENTS
CCC_10003081_17,31/10/2023,"Museums, Theatres & Cultural Services",WENDYS BROADCAST SERVI MANCHESTER,23.5,New Equipment,5732,ELECTRONIC SALES
CCC_10003343_3,13/10/2023,Parks & Green Spaces,TESCO-STORES 6724 CHELMSFORD,3,General Expense,5411,GROCERY STORES OR SUPERMARKETS
CCC_10002960_37,25/09/2023,"Museums, Theatres & Cultural Services",AMZNMKTPLACE AMAZON.CO.UK,9.98,General Expense,5999,MISCELLANEOUS & SPECIALTY STORES
CCC_10003341_33,13/12/2023,"Museums, Theatres & Cultural Services",TESCO STORES 5408 CHELMSFORD,6.3,General Expense,5411,GROCERY STORES OR SUPERMARKETS
CCC_10002457_2,13/06/2023,Development Management,GREATER ANGLIA RAIL LONDON,33.5,Public Transport,4112,PASSENGER RAILWAYS
CCC_10002826_10,18/08/2023,"Museums, Theatres & Cultural Services",TLC DIRECT.CO.UK CRAWLEY,91.8,New Equipment,5722,APPLIANCE STORES (NEC) OR HOUSEHOLD APPLIANCE STORES
CCC_10002425_12,30/05/2023,Parks & Green Spaces,AMZNMKTPLACE AMAZON.CO.UK,40.75,Grounds Maintenance Materials,5999,MISCELLANEOUS & SPECIALTY STORES
CCC_10003454_2,12/01/2024,Parking & Highways Operations,WICKES BUILDING WATFORD,25,General Expense,5211,LUMBER AND BUILDING MATERIALS STORES
CCC_10002255_4,28/04/2023,South Essex Parking Partnership,MFG CASTLE POINT CANVEY ISLAND,10.83,General Expense,5541,GAS/SERVICE STATIONS WITH/WITHOUT ANCILLARY SERVICES
CCC_10003185_9,27/11/2023,"Museums, Theatres & Cultural Services",AMZNMKTPLACE AMAZON.CO.UK,8.5,New Equipment,5999,MISCELLANEOUS & SPECIALTY STORES
CCC_10002589_10,03/07/2023,Revenue and Benefit Services,AMZNMKTPLACE AMAZON.CO.UK,7.18,Printing & Stationary,5999,MISCELLANEOUS & SPECIALTY STORES
CCC_10003547_2,14/02/2024,Operational Services,DVLA VEHICLE TAX 0300 1234321,452.5,Vehicle Tax,9311,TAX PAYMENTS
CCC_10003041_1,31/10/2023,Public Health & Protection Services,AMZNMKTPLACE AMAZON.CO.UK,7.29,Printing & Stationary,5999,MISCELLANEOUS & SPECIALTY STORES
CCC_10003244_7,09/11/2023,Human Resources,SAFETYCARE (UK) LTD KINGSTON,250,Training Expenses,8299,SCHOOLS AND EDUCATIONAL SERVICES (NEC)
CCC_10003288_45,15/11/2023,"Museums, Theatres & Cultural Services",TESCO STORES 5408 CHELMSFORD,7,General Expense,5411,GROCERY STORES OR SUPERMARKETS
CCC_10003093_1,14/11/2023,Marketing & Communications Team,PRINT.INC LEEDS,134,Printing & Stationary,2741,MISCELLANEOUS PUBLISHING AND PRINTING
CCC_10003452_11,24/01/2024,Parks & Green Spaces,AMZNMKTPLACE AMAZON.CO.UK,117.7,Grounds Maintenance Materials,5999,MISCELLANEOUS & SPECIALTY STORES
CCC_10002929_3,01/10/2023,Marketing & Communications Team,GOOGLE ADS3539603203 DUBLIN,205.73,Advertising,7311,ADVERTISING SERVICES
CCC_10003264_24,09/11/2023,South Essex Parking Partnership,HALFORDS 0566 CHELMSFORD,10.57,Vehicle Repairs,5940,BICYCLE SHOPS -- SALES AND SERVICE
CCC_10003528_1,01/02/2024,Housing Services,GEN REGISTER OFFICE SOUTHPORT,14,General Expense,9399,GOVERNMENT SERVICES (NEC) OR FIRE DEPARTMENTS
CCC_10002868_8,05/09/2023,"Museums, Theatres & Cultural Services",PENN ELCOM-GBP LONDON,10.43,New Equipment,5399,GENERAL MERCHANDISE OR CONVENIENCE FOOD STORES
CCC_10002670_30,19/06/2023,South Essex Parking Partnership,WILKO RETAIL LIMITED BRENTWOOD,2.67,General Expense,5399,GENERAL MERCHANDISE OR CONVENIENCE FOOD STORES
CCC_10003138_1,22/11/2023,Operational Services,STARTSAFETY.UK DROITWICH,35.9,New Equipment,5399,GENERAL MERCHANDISE OR CONVENIENCE FOOD STORES
CCC_10003341_32,14/12/2023,"Museums, Theatres & Cultural Services",TESCO STORES 5408 CHELMSFORD,4.65,General Expense,5411,GROCERY STORES OR SUPERMARKETS
CCC_10002428_2,08/06/2023,Accountancy Services,AMZNMKTPLACE AMAZON.CO AMAZON.CO.UK,3.54,Printing & Stationary,5999,MISCELLANEOUS & SPECIALTY STORES
CCC_10003487_1,01/02/2024,Public Health & Protection Services,SECURITY INDUSTRY AUTH LONDON,153.33,General Expense,9399,GOVERNMENT SERVICES (NEC) OR FIRE DEPARTMENTS
CCC_10002804_52,29/07/2023,"Museums, Theatres & Cultural Services",TESCO STORES 5408 CHELMSFORD,1.7,General Expense,5411,GROCERY STORES OR SUPERMARKETS
CCC_10003264_12,21/11/2023,South Essex Parking Partnership,TESCO STORES 5408 CHELMSFORD,7.29,Printing & Stationary,5411,GROCERY STORES OR SUPERMARKETS
CCC_10002320_11,14/05/2023,"Museums, Theatres & Cultural Services",AMZNMKTPLACE AMAZON.CO.UK,6.35,New Equipment,5999,MISCELLANEOUS & SPECIALTY STORES
CCC_10003282_4,20/09/2023,"Museums, Theatres & Cultural Services",AMZNBUSINESS 1K6L77CS4 LUXEMBOURG L,13.34,General Expense,5999,MISCELLANEOUS & SPECIALTY STORES
CCC_10003333_5,18/12/2023,Leisure & Heritage Services,FIX THE BOG NEWBURY,152.05,Grounds Maintenance Materials,5251,HARDWARE STORES
CCC_10003113_2,13/11/2023,Leisure & Heritage Services,ONEDIRECT ST ESTEVE,343.59,New Equipment,5965,COMBINATION CATALOG AND RETAIL MERCHANT
CCC_10003441_3,31/01/2024,Marketing & Communications Team,FACEBK  Q8AAZWBZ52 FB.ME/ADS,378.22,Advertising,7311,ADVERTISING SERVICES
CCC_10002730_1,04/08/2023,Parking & Highways Operations,WWW.SCREWFIX.COM YEOVIL,22.24,General Expense,5211,LUMBER AND BUILDING MATERIALS STORES
CCC_10002986_2,19/10/2023,Human Resources,AMZNMKTPLACE AMAZON.CO.UK,-24.99,General Expense,5999,MISCELLANEOUS & SPECIALTY STORES
CCC_10002277_2,25/04/2023,Corporate Property Services,AMZNMKTPLACE AMAZON.CO AMAZON.CO.UK,17.32,Printing & Stationary,5999,MISCELLANEOUS & SPECIALTY STORES
CCC_10003293_3,11/12/2023,Housing Services,TRAVELODG TRAVELODGE G THAME,107.48,General Expense,3615,TRAVELODGE
CCC_10003499_4,29/01/2024,Legal & Democratic Services,AMZNMKTPLACE AMAZON.CO.UK,20.81,Printing & Stationary,5999,MISCELLANEOUS & SPECIALTY STORES
CCC_10002841_6,21/08/2023,Parks & Green Spaces,TESCO-STORES 6724 CHELMSFORD,2.25,General Expense,5411,GROCERY STORES OR SUPERMARKETS
CCC_10003333_3,18/12/2023,Leisure & Heritage Services,AMZNMKTPLACE LONDON,7.57,Grounds Maintenance Materials,5999,MISCELLANEOUS & SPECIALTY STORES
CCC_10002410_1,02/06/2023,"Museums, Theatres & Cultural Services",AMZNMKTPLACE AMAZON.CO AMAZON.CO.UK,25.81,Printing & Stationary,5999,MISCELLANEOUS & SPECIALTY STORES
CCC_10002880_2,22/07/2023,Parks & Green Spaces,AMZNMKTPLACE AMAZON.CO.UK,24.83,Grounds Maintenance Materials,5999,MISCELLANEOUS & SPECIALTY STORES
CCC_10002419_6,08/05/2023,"Museums, Theatres & Cultural Services",SCREWFIX DIR LTD CHELMFOR1867,7.65,Grounds Maintenance Materials,5211,LUMBER AND BUILDING MATERIALS STORES
CCC_10003081_3,09/11/2023,"Museums, Theatres & Cultural Services",STG-ELECTRIC.CO.UK BRISTOL,160.62,New Equipment,5722,APPLIANCE STORES (NEC) OR HOUSEHOLD APPLIANCE STORES
CCC_10002938_2,02/10/2023,Leisure & Heritage Services,CANVA  03926-34655311 SYDNEY,2.97,General Expense,7333," PHOTOGRAPHY, ART AND GRAPHIC -- COMMERCIAL "
CCC_10003282_5,28/09/2023,"Museums, Theatres & Cultural Services",AMZNMKTPLACE LONDON,43.73,General Expense,5999,MISCELLANEOUS & SPECIALTY STORES
CCC_10002894_11,04/07/2023,"Museums, Theatres & Cultural Services",FIRST ESSEX CHELMSFORD,2,Public Transport,4131," BUS LINES, INCLUDING CHARTERS, TOUR BUSES "
CCC_10003265_1,10/12/2023,Parks & Green Spaces,MARKS&SPENCER PLC SF CHLEMSFORD SF,2.42,General Expense,5411,GROCERY STORES OR SUPERMARKETS
CCC_10002670_20,27/06/2023,South Essex Parking Partnership,ICELAND FOODS CANVEY I ESSEX,6.25,General Expense,5411,GROCERY STORES OR SUPERMARKETS
CCC_10003200_1,30/11/2023,Development Management,EB  TREES PLANNING AND 801-413-7200,60,Training Expenses,7399,BUSINESS SERVICES (NEC)
CCC_10003239_2,13/12/2023,Parking & Highways Operations,WICKES BUILDING WATFORD,24,Grounds Maintenance Materials,5211,LUMBER AND BUILDING MATERIALS STORES
CCC_10002833_2,06/08/2023,Leisure & Heritage Services,AMZNBUSINESS 1V27B9154 AMAZON.CO.UK,23.84,New Equipment,5999,MISCELLANEOUS & SPECIALTY STORES
CCC_10002545_9,01/06/2023,Human Resources,GOOGLE ADS2733035999 DUBLIN,126.63,Advertising,7311,ADVERTISING SERVICES
CCC_10003534_6,08/01/2024,Human Resources,WWW.CIPFA.ORG.UK LONDON  WC2N,380,Employee Subscriptions,8699,MEMBERSHIP ORGANIZATIONS NOT ELSEWHERE CLASSIFIED
CCC_10003218_2,03/12/2023,Public Health & Protection Services,AMZNMKTPLACE LONDON,40.83,New Equipment,5999,MISCELLANEOUS & SPECIALTY STORES
CCC_10002318_13,25/05/2023,Parks & Green Spaces,MARKS&SPENCER PLC SF CHLEMSFORD SF,91.37,General Expense,5411,GROCERY STORES OR SUPERMARKETS
CCC_10002998_1,05/10/2023,Leisure & Heritage Services,GREGGS PLC IPSWICH,2.79,General Expense,5812,RESTAURANTS OR EATING PLACES
CCC_10002181_3,12/04/2023,Marketing & Communications Team,PRINT MARKETPLACE 40 2802345,53.12,Printing & Stationary,7338," PRINT SHOPS, QUICK COPY SERVICES OR REPRODUCTION SERVICES "
CCC_10002280_1,09/05/2023,Leisure & Heritage Services,TESCO STORES 2330 CHELMSFORD 2,29.8,Printing & Stationary,5411,GROCERY STORES OR SUPERMARKETS
CCC_10002445_2,31/05/2023,Leisure & Heritage Services,WM MORRISONS STORE CHELMSFORD,80,New Equipment,5411,GROCERY STORES OR SUPERMARKETS
CCC_10002581_11,17/07/2023,Parks & Green Spaces,TESCO-STORES 6724 CHELMSFORD,2.25,General Expense,5411,GROCERY STORES OR SUPERMARKETS
CCC_10003201_1,02/12/2023,"Museums, Theatres & Cultural Services",TESCO STORES 2330 CHELMSFORD 2,9.17,General Expense,5411,GROCERY STORES OR SUPERMARKETS
CCC_10003262_2,21/11/2023,Human Resources,WWW.CIPFA.ORG.UK LONDON  WC2N,380,Employee Subscriptions,8699,MEMBERSHIP ORGANIZATIONS NOT ELSEWHERE CLASSIFIED
CCC_10002986_1,19/10/2023,Human Resources,SP DURONIC ROMFORD,208.32,General Expense,5722,APPLIANCE STORES (NEC) OR HOUSEHOLD APPLIANCE STORES
CCC_10002608_1,16/07/2023,Corporate Property Services,AMZNMKTPLACE AMAZON.CO.UK,9.12,Printing & Stationary,5999,MISCELLANEOUS & SPECIALTY STORES
CCC_10002212_1,21/04/2023,Spatial Planning,PPOINT_ PARK STORES 62 WITHAM,28.6,Publications,5499,MISC FOOD STORES - SPECIALTY MARKETS & CONVENIENCE
CCC_10002473_2,14/06/2023,Operational Services,DVLA VEHICLE TAX 0300 1234321,322.5,Vehicle Tax,9311,TAX PAYMENTS
CCC_10002448_3,17/05/2023,Leisure & Heritage Services,TAHDAH VERIFIED LLANDUDNO,98.45,New Equipment,5734,COMPUTER SOFTWARE STORES
CCC_10003293_11,02/12/2023,Housing Services,TRAVELODG TRAVELODGE G THAME,112.07,General Expense,3615,TRAVELODGE
CCC_10003383_1,17/01/2024,Operational Services,FURNITURE@WORK LTD GLASGOW,129,General Expense,5712," FURNITURE, HOME FURNISHINGS & EQUIP STORES EXCL APPLIANCES "
CCC_10003501_6,27/04/2023,Parks & Green Spaces,DUNELM LTD CHELMSFORD,55,General Expense,5714," DRAPERY, WINDOWCOVERING, AND UPHOLSTERY STORES "
CCC_10003446_1,25/01/2024,"Museums, Theatres & Cultural Services",WWW.SCREWFIX.COM YEOVIL,3.49,New Equipment,5211,LUMBER AND BUILDING MATERIALS STORES
CCC_10002425_5,02/06/2023,Parks & Green Spaces,AMZNMKTPLACE AMAZON.CO.UK,32.03,Grounds Maintenance Materials,5999,MISCELLANEOUS & SPECIALTY STORES
CCC_10002700_1,02/08/2023,"Museums, Theatres & Cultural Services",AMZNMKTPLACE AMAZON.CO AMAZON.CO.UK,9.99,Printing & Stationary,5999,MISCELLANEOUS & SPECIALTY STORES
CCC_10002755_10,18/07/2023,Leisure & Heritage Services,ASDA  PETROL UPT 4189 CHELMSFORD,94.8,Fuel,5542,AUTOMATED FUEL DISPENSERS
CCC_10002619_9,12/06/2023,Leisure & Heritage Services,AMZ MORGAN'S DIRECT 020-74824684,-14.57,Printing & Stationary,5999,MISCELLANEOUS & SPECIALTY STORES
CCC_10003446_13,02/01/2024,"Museums, Theatres & Cultural Services",PERFECT OCTAVE LTD EVERSLEY,480,General Expense,5815," DIGITAL GOODS MEDIA: BOOKS, MOVIES, MUSIC "
CCC_10003616_1,20/02/2024,"Museums, Theatres & Cultural Services",HOBBYCRAFT CHELMSFORD,34.5,New Equipment,5970,CRAFT OR ARTIST'S SUPPLY SHOPS
CCC_10003504_1,28/06/2023,Parks & Green Spaces,WWW.THEGMA.ORG.UK MILTON KEYNES,145.83,Publications,8699,MEMBERSHIP ORGANIZATIONS NOT ELSEWHERE CLASSIFIED
CCC_10002849_5,24/08/2023,"Museums, Theatres & Cultural Services",AMZNMKTPLACE AMAZON.CO AMAZON.CO.UK,2.16,New Equipment,5999,MISCELLANEOUS & SPECIALTY STORES
CCC_10002872_10,11/09/2023,Parks & Green Spaces,AMAZON.CO.UK 146CS84E4 AMAZON.CO.UK,13.75,General Expense,5969,DIRECT MARKETERS (NEC)
CCC_10002611_6,05/07/2023,Public Health & Protection Services,TRAINLINE.COM LONDON,95.78,Public Transport,4112,PASSENGER RAILWAYS
CCC_10002416_2,05/06/2023,Operational Services,SQ  MONARCH SPRINGFIELD,34,Clothing & Uniforms,7230,BARBER OR BEAUTY SHOPS
CCC_10002303_19,31/05/2023,"Museums, Theatres & Cultural Services",TESCO STORES 5408 CHELMSFORD,1.79,General Expense,5411,GROCERY STORES OR SUPERMARKETS
CCC_10002226_1,27/04/2023,"Museums, Theatres & Cultural Services",ETSY.COM - MULTIPLE SH DUBLIN,24,New Equipment,5699,APPAREL AND ACCESSORY SHOPS -- MISCELLANEOUS
CCC_10003396_1,12/01/2024,Parking & Highways Operations,AMZNMKTPLACE LONDON,22.92,New Equipment,5999,MISCELLANEOUS & SPECIALTY STORES
CCC_10003407_1,15/01/2024,"Museums, Theatres & Cultural Services",AMZNMKTPLACE AMAZON.CO.UK,14.82,Museum Exhibits,5999,MISCELLANEOUS & SPECIALTY STORES
CCC_10003081_1,09/11/2023,"Museums, Theatres & Cultural Services",AMZNMKTPLACE LONDON,7.07,New Equipment,5999,MISCELLANEOUS & SPECIALTY STORES
CCC_10002960_25,18/09/2023,"Museums, Theatres & Cultural Services",TESCO STORES 5408 CHELMSFORD,3.35,General Expense,5411,GROCERY STORES OR SUPERMARKETS
CCC_10002303_2,10/05/2023,"Museums, Theatres & Cultural Services",BOOKER LIMITED ECOM WELLINGBOROUG,151.22,General Expense,5411,GROCERY STORES OR SUPERMARKETS
CCC_10003053_1,04/10/2023,"Museums, Theatres & Cultural Services",ROTACLOUD YORK,56.66,Employee Subscriptions,5734,COMPUTER SOFTWARE STORES
CCC_10002313_12,22/04/2023,"Museums, Theatres & Cultural Services",B & Q 1188 CHELMSFORD,17.72,General Expense,5200,HOME SUPPLY WAREHOUSE STORES
CCC_10003509_5,29/12/2023,Leisure & Heritage Services,SP WEDDINGINATEACUP HOVE,110,General Expense,5734,COMPUTER SOFTWARE STORES
CCC_10003177_1,30/11/2023,Parks & Green Spaces,AMZNMKTPLACE AMAZON.CO.UK,24.53,Grounds Maintenance Materials,5999,MISCELLANEOUS & SPECIALTY STORES
CCC_10003098_11,27/10/2023,Public Health & Protection Services,TRAINLINE +443332022222,30.32,Public Transport,4112,PASSENGER RAILWAYS
CCC_10003546_1,06/02/2024,Spatial Planning,TRAVELODG TRAVELODGE G THAME,-17.58,Accommodation,3615,TRAVELODGE
CCC_10002671_1,26/07/2023,Leisure & Heritage Services,WM MORRISONS STORE CHELMSFORD,25.5,General Expense,5411,GROCERY STORES OR SUPERMARKETS
CCC_10003023_4,25/10/2023,Public Health & Protection Services,AMZNMKTPLACE AMAZON.CO.UK,21.27,Printing & Stationary,5999,MISCELLANEOUS & SPECIALTY STORES
CCC_10003194_2,28/11/2023,"Museums, Theatres & Cultural Services",WWW.SCREWFIX.COM YEOVIL,18.59,General Expense,5211,LUMBER AND BUILDING MATERIALS STORES
CCC_10003271_4,04/12/2023,South Essex Parking Partnership,HALFORDS 0566 CHELMSFORD,10.41,General Expense,5940,BICYCLE SHOPS -- SALES AND SERVICE
CCC_10002406_1,08/06/2023,Parking & Highways Operations,TOOLSTATION LTD CHELMSFORD,2.49,Car Parking,5211,LUMBER AND BUILDING MATERIALS STORES
CCC_10002983_8,11/10/2023,Development Management,CIEEM.NET AMPFIELD,166.67,Training Expenses,8398,CHARITABLE OR SOCIAL SERVICES ORGANIZATIONS
CCC_10003100_5,09/11/2023,Operational Services,CHRISTMAS SUPERMARKET CHELMSFORD,3.32,General Expense,5947," CARD, GIFT, NOVELTY OR SOUVENIR SHOPS "
CCC_10003286_28,19/10/2023,"Museums, Theatres & Cultural Services",TESCO STORES 5408 CHELMSFORD,6.35,General Expense,5411,GROCERY STORES OR SUPERMARKETS
CCC_10002510_10,27/06/2023,Parks & Green Spaces,AMAZON.CO.UK LL20K9LE5 AMAZON.CO.UK,12.48,General Expense,5969,DIRECT MARKETERS (NEC)
CCC_10002622_5,13/06/2023,"Museums, Theatres & Cultural Services",WWW.SCREWFIX.COM YEOVIL,13.02,General Expense,5211,LUMBER AND BUILDING MATERIALS STORES
CCC_10003353_3,18/01/2024,Digital Services,GREATERANGLIA.CO.UK LONDON,30.35,Public Transport,4112,PASSENGER RAILWAYS
CCC_10002960_12,11/09/2023,"Museums, Theatres & Cultural Services",ETERNAL BLOOM FLORIST CHELMSFORD,14,General Expense,5992,FLORISTS
CCC_10002978_2,18/10/2023,Leisure & Heritage Services,AMZNMKTPLACE AMAZON.CO.UK,33.89,Printing & Stationary,5999,MISCELLANEOUS & SPECIALTY STORES
CCC_10002868_1,13/09/2023,"Museums, Theatres & Cultural Services",BOOKER LTD - 38622734 WELLINGBOROUG,833.33,General Expense,5411,GROCERY STORES OR SUPERMARKETS
CCC_10002520_2,28/06/2023,"Museums, Theatres & Cultural Services",AMZNMKTPLACE AMAZON.CO.UK,20.81,General Expense,5999,MISCELLANEOUS & SPECIALTY STORES
CCC_10003620_12,08/02/2024,"Museums, Theatres & Cultural Services",B&Q MARKETPLACE EASTLEIGH,98.17,New Equipment,5211,LUMBER AND BUILDING MATERIALS STORES
CCC_10003096_7,03/10/2023,"Museums, Theatres & Cultural Services",AMZNMKTPLACE AMAZON.CO.UK,5.62,General Expense,5999,MISCELLANEOUS & SPECIALTY STORES
CCC_10002992_2,13/10/2023,Leisure & Heritage Services,WWW.SCREWFIX.COM YEOVIL,14.16,Grounds Maintenance Materials,5211,LUMBER AND BUILDING MATERIALS STORES
CCC_10002721_3,29/06/2023,Housing Services,WWW.BRITISHGAS.CO. BRITISHGAS.CO,58.18,General Expense,4900," ELECTRIC, GAS, SANITARY, TELEPHONE OR WATER UTILITIES "
CCC_10003499_5,29/01/2024,Legal & Democratic Services,AMZNBUSINESS 9381563S5 LUXEMBOURG L,10.82,Printing & Stationary,5999,MISCELLANEOUS & SPECIALTY STORES
CCC_10002510_7,29/06/2023,Parks & Green Spaces,MOTEX CHELMSFORD,69.44,Vehicle Repairs,5533," AUTOMOTIVE PARTS, ACCESSORIES STORES "
CCC_10003043_4,16/11/2023,Leisure & Heritage Services,AMZNMKTPLACE LONDON,12.49,General Expense,5999,MISCELLANEOUS & SPECIALTY STORES
CCC_10002755_1,09/08/2023,Leisure & Heritage Services,SHELL CHELMSFORD CHELMSFORD,100.07,Fuel,5541,GAS/SERVICE STATIONS WITH/WITHOUT ANCILLARY SERVICES
CCC_10003556_2,15/02/2024,Operational Services,AMZNMKTPLACE AMAZON.CO.UK,34.2,General Expense,5999,MISCELLANEOUS & SPECIALTY STORES
CCC_10003072_5,23/10/2023,"Museums, Theatres & Cultural Services",TESCO STORES 2330 CHELMSFORD 2,3,General Expense,5411,GROCERY STORES OR SUPERMARKETS
CCC_10002311_1,18/05/2023,"Museums, Theatres & Cultural Services",ANC ANCESTRY.CO.UK 8004049723,69.99,Employee Subscriptions,5968,CONTINUITY/SUBSCRIPTION MERCHANT
CCC_10002187_2,11/04/2023,"Museums, Theatres & Cultural Services",AMZNMKTPLACE AMAZON.CO AMAZON.CO.UK,31.66,Printing & Stationary,5999,MISCELLANEOUS & SPECIALTY STORES
CCC_10002503_1,19/04/2023,Parking & Highways Operations,TIGER SUPPLIES BRAINTREE,76.49,General Expense,5099,DURABLE GOODS (NEC)
CCC_10003379_2,25/01/2024,Public Health & Protection Services,GREATER ANGLIA 4278,22.75,Public Transport,4112,PASSENGER RAILWAYS
CCC_10002784_4,16/08/2023,Public Health & Protection Services,AMZNMKTPLACE AMAZON.CO.UK,4.07,Printing & Stationary,5999,MISCELLANEOUS & SPECIALTY STORES
CCC_10003286_34,14/10/2023,"Museums, Theatres & Cultural Services",TESCO STORES 5408 CHELMSFORD,5.05,General Expense,5411,GROCERY STORES OR SUPERMARKETS
CCC_10003477_3,23/01/2024,Development Management,GREATER ANGLIA T/O CHLMSFRD 6836,80.67,Public Transport,4112,PASSENGER RAILWAYS
CCC_10003073_11,06/11/2023,Parks & Green Spaces,AMZNMKTPLACE LONDON,39.98,Grounds Maintenance Materials,5999,MISCELLANEOUS & SPECIALTY STORES
CCC_10002670_9,06/07/2023,South Essex Parking Partnership,AMAZON.CO.UK 6U2UF3AC5 AMAZON.CO.UK,77.48,Clothing & Uniforms,5969,DIRECT MARKETERS (NEC)
CCC_10003100_9,02/11/2023,Operational Services,AMZNMKTPLACE LONDON,62.98,New Equipment,5999,MISCELLANEOUS & SPECIALTY STORES
CCC_10002484_2,02/06/2023,Legal & Democratic Services,AMZNMKTPLACE AMAZON.CO AMAZON.CO.UK,41.66,Printing & Stationary,5999,MISCELLANEOUS & SPECIALTY STORES
CCC_10003529_3,09/02/2024,Leisure & Heritage Services,GAFFERTAPE.COM HOUGHTON CAM,118.57,General Expense,5399,GENERAL MERCHANDISE OR CONVENIENCE FOOD STORES
CCC_10003286_49,24/10/2023,"Museums, Theatres & Cultural Services",TESCO STORES 5408 CHELMSFORD,6.3,General Expense,5411,GROCERY STORES OR SUPERMARKETS
CCC_10002365_1,02/05/2023,Parks & Green Spaces,TESCO-STORES 6724 CHELMSFORD,3,General Expense,5411,GROCERY STORES OR SUPERMARKETS
CCC_10002854_6,05/09/2023,Leisure & Heritage Services,AMZNMKTPLACE AMAZON.CO.UK,10.32,General Expense,5999,MISCELLANEOUS & SPECIALTY STORES
CCC_10003503_9,10/05/2023,Parks & Green Spaces,D. BYFORD & SONS COLCHESTER CO,51,Grounds Maintenance Materials,5193," FLORIST SUPPLIES, NURSERY STOCK AND FLOWERS "
CCC_10003093_2,13/11/2023,Marketing & Communications Team,WWW.SOLOPRESS.COM SOUTHEND-ON-S,82.56,Printing & Stationary,2741,MISCELLANEOUS PUBLISHING AND PRINTING
CCC_10003185_1,30/11/2023,"Museums, Theatres & Cultural Services",AMZNMKTPLACE AMAZON.CO.UK,26.97,New Equipment,5999,MISCELLANEOUS & SPECIALTY STORES
CCC_10003185_36,10/11/2023,"Museums, Theatres & Cultural Services",STUDIOSPARES EUROPE LT LUTON,63.74,New Equipment,5733," MUSIC STORES, MUSICAL INSTRUMENTS, PIANOS, SHEET MUSIC "
CCC_10003286_30,18/10/2023,"Museums, Theatres & Cultural Services",TESCO STORES 5408 CHELMSFORD,11.95,General Expense,5411,GROCERY STORES OR SUPERMARKETS
CCC_10002490_3,20/06/2023,Leisure & Heritage Services,AMZNMKTPLACE AMAZON.CO.UK,71.25,General Expense,5999,MISCELLANEOUS & SPECIALTY STORES
CCC_10003333_1,31/12/2023,Leisure & Heritage Services,WWW.SCREWFIX.COM YEOVIL,56.14,Grounds Maintenance Materials,5211,LUMBER AND BUILDING MATERIALS STORES
CCC_10003042_9,24/10/2023,Leisure & Heritage Services,AMZNMKTPLACE AMAZON.CO.UK,49.7,Printing & Stationary,5999,MISCELLANEOUS & SPECIALTY STORES
CCC_10002652_2,30/06/2023,Digital Services,COMMS EXPRESS LTD CHELMSFORD,45.3,New Equipment,5732,ELECTRONIC SALES
CCC_10003536_28,22/12/2023,Housing Services,PREMIER INN BASILDON EAST,304.17,General Expense,3811,PREMIER TRAVEL INN
CCC_10002924_7,18/10/2023,Digital Services,GREATER ANGLIA RAIL LONDON,35.4,Public Transport,4112,PASSENGER RAILWAYS
CCC_10003281_7,23/11/2023,"Museums, Theatres & Cultural Services",AMZNMKTPLACE LONDON,33.13,General Expense,5999,MISCELLANEOUS & SPECIALTY STORES
CCC_10002214_1,26/04/2023,Legal & Democratic Services,AMZNMKTPLACE AMAZON.CO.UK,99.98,Printing & Stationary,5999,MISCELLANEOUS & SPECIALTY STORES
CCC_10003127_2,23/11/2023,Development Management,AMZNMKTPLACE AMAZON.CO.UK,17.01,Printing & Stationary,5999,MISCELLANEOUS & SPECIALTY STORES
CCC_10003098_17,12/10/2023,Public Health & Protection Services,TRAINLINE +443332022222,38.06,Public Transport,4112,PASSENGER RAILWAYS
CCC_10003618_1,12/02/2024,Leisure & Heritage Services,EBAY O 21-11165-60096 LONDON,8.25,New Equipment,5311,DEPARTMENT STORES
CCC_10002179_2,17/04/2023,Operational Services,AMZNMKTPLACE AMAZON.CO.UK,17.98,General Expense,5999,MISCELLANEOUS & SPECIALTY STORES
CCC_10003206_6,07/12/2023,Digital Services,AMZNMKTPLACE AMAZON.CO.UK,20.37,New Equipment,5999,MISCELLANEOUS & SPECIALTY STORES
CCC_10003501_11,25/04/2023,Parks & Green Spaces,AMZNMKTPLACE AMAZON.CO.UK,26.03,Grounds Maintenance Materials,5999,MISCELLANEOUS & SPECIALTY STORES
CCC_10002807_38,24/08/2023,"Museums, Theatres & Cultural Services",TESCO STORES 5408 CHELMSFORD,1.3,General Expense,5411,GROCERY STORES OR SUPERMARKETS
CCC_10002807_35,22/08/2023,"Museums, Theatres & Cultural Services",AMZNMKTPLACE AMAZON.CO.UK,33.72,General Expense,5999,MISCELLANEOUS & SPECIALTY STORES
CCC_10002373_1,20/05/2023,"Museums, Theatres & Cultural Services",AMZNBUSINESS OT4DK1SN5 AMAZON.CO.UK,17.48,New Equipment,5999,MISCELLANEOUS & SPECIALTY STORES
CCC_10003525_7,19/01/2024,Leisure & Heritage Services,AMZNMKTPLACE AMAZON.CO.UK,38.04,General Expense,5999,MISCELLANEOUS & SPECIALTY STORES
CCC_10003286_44,28/10/2023,"Museums, Theatres & Cultural Services",TESCO STORES 5408 CHELMSFORD,3.1,General Expense,5411,GROCERY STORES OR SUPERMARKETS
CCC_10003023_13,16/10/2023,Public Health & Protection Services,CHARTERED INSTITUTE OF LONDON,70,Training Expenses,8398,CHARITABLE OR SOCIAL SERVICES ORGANIZATIONS
CCC_10002819_1,25/08/2023,"Museums, Theatres & Cultural Services",AMZNMKTPLACE AMAZON.CO AMAZON.CO.UK,4.67,General Expense,5999,MISCELLANEOUS & SPECIALTY STORES
CCC_10002867_7,17/08/2023,Operational Services,FACEBK JRQBQQ7ZA2 FB.ME/ADS,10.06,Advertising,7311,ADVERTISING SERVICES
CCC_10003322_1,31/12/2023,Spatial Planning,PPOINT_ PARK STORES 62 WITHAM,24.2,Publications,5499,MISC FOOD STORES - SPECIALTY MARKETS & CONVENIENCE
CCC_10003229_1,23/11/2023,Human Resources,FACEBK 42D5ZUTD82 FB.ME/ADS,300,General Expense,7311,ADVERTISING SERVICES
CCC_10002884_23,02/08/2023,South Essex Parking Partnership,AMAZON.CO.UK 4M3CL2YT5 AMAZON.CO.UK,33.75,Clothing & Uniforms,5969,DIRECT MARKETERS (NEC)
CCC_10003037_6,20/09/2023,"Museums, Theatres & Cultural Services",WICKES CHELMSFORD CHELMSFORD,22.08,General Expense,5211,LUMBER AND BUILDING MATERIALS STORES
CCC_10002960_23,19/09/2023,"Museums, Theatres & Cultural Services",TESCO STORES 5408 CHELMSFORD,9.55,General Expense,5411,GROCERY STORES OR SUPERMARKETS
CCC_10003169_20,26/04/2023,Leisure & Heritage Services,ROTACLOUD YORK,49,General Expense,5734,COMPUTER SOFTWARE STORES
CCC_10003341_68,30/12/2023,"Museums, Theatres & Cultural Services",TESCO STORES 5408 CHELMSFORD,1.55,General Expense,5411,GROCERY STORES OR SUPERMARKETS
CCC_10002421_1,02/06/2023,Parking & Highways Operations,AMZNMKTPLACE AMAZON.CO AMAZON.CO.UK,56.25,General Expense,5999,MISCELLANEOUS & SPECIALTY STORES
CCC_10003275_2,11/12/2023,"Museums, Theatres & Cultural Services",CHELMSFORD CITY CHELMSFORD,3.67,New Equipment,5947," CARD, GIFT, NOVELTY OR SOUVENIR SHOPS "
CCC_10002797_1,28/06/2023,Revenue and Benefit Services,FIND A WILL 0300 3030648,4.5,General Expense,8999,PROFESSIONAL SERVICES (NEC)
CCC_10002704_2,29/06/2023,"Museums, Theatres & Cultural Services",TESCO STORES 2330 CHELMSFORD 2,5.67,Museum Exhibits,5411,GROCERY STORES OR SUPERMARKETS
CCC_10002773_1,14/08/2023,Customer Services,AMZNMKTPLACE AMAZON.CO.UK,7.69,Printing & Stationary,5999,MISCELLANEOUS & SPECIALTY STORES
CCC_10003306_5,13/12/2023,Leisure & Heritage Services,AMZNMKTPLACE LONDON,37.11,General Expense,5999,MISCELLANEOUS & SPECIALTY STORES
CCC_10002275_7,22/04/2023,"Museums, Theatres & Cultural Services",DUKE STREET COOP 01245 345490,8,General Expense,5311,DEPARTMENT STORES
CCC_10002872_7,11/09/2023,Parks & Green Spaces,AMAZON.CO.UK 148U734I4 AMAZON.CO.UK,13.75,General Expense,5969,DIRECT MARKETERS (NEC)
CCC_10003585_15,07/02/2024,Public Health & Protection Services,AMAZON  203-9297692-94 LONDON,31.62,Printing & Stationary,5399,GENERAL MERCHANDISE OR CONVENIENCE FOOD STORES
CCC_10003244_9,07/11/2023,Human Resources,AMZNMKTPLACE AMAZON.CO.UK,20.7,Training Expenses,5999,MISCELLANEOUS & SPECIALTY STORES
CCC_10003154_2,12/11/2023,Leisure & Heritage Services,MIRAFIT GREAT YARMOUT,137.29,New Equipment,5941,SPORTING GOODS STORES
CCC_10003288_18,11/11/2023,"Museums, Theatres & Cultural Services",TESCO STORES 5408 CHELMSFORD,6.2,General Expense,5411,GROCERY STORES OR SUPERMARKETS
CCC_10003554_12,08/12/2023,Digital Services,AMZNMKTPLACE AMAZON.CO.UK,-0.22,New Equipment,5999,MISCELLANEOUS & SPECIALTY STORES
CCC_10003020_11,10/10/2023,"Museums, Theatres & Cultural Services",AMZNMKTPLACE AMAZON.CO.UK,7.27,New Equipment,5999,MISCELLANEOUS & SPECIALTY STORES
CCC_10003133_1,09/11/2023,Legal & Democratic Services,ASDA SUPERSTORE CHELMSFORD,26.45,General Expense,5411,GROCERY STORES OR SUPERMARKETS
CCC_10002804_16,06/07/2023,"Museums, Theatres & Cultural Services",TESCO STORES 5408 CHELMSFORD,13.9,General Expense,5411,GROCERY STORES OR SUPERMARKETS
CCC_10002234_8,19/04/2023,"Museums, Theatres & Cultural Services",AMZNMKTPLACE AMAZON.CO.UK,2.98,New Equipment,5999,MISCELLANEOUS & SPECIALTY STORES
CCC_10003286_19,09/10/2023,"Museums, Theatres & Cultural Services",ALDI CHELMSFORD,15.48,General Expense,5411,GROCERY STORES OR SUPERMARKETS
CCC_10002318_4,25/04/2023,Parks & Green Spaces,EBAY O 15-09981-43075 LONDON,98.04,Vehicle Repairs,5311,DEPARTMENT STORES
CCC_10003520_2,26/01/2024,Housing Services,TRAVELODG TRAVELODGE G THAME,854.09,General Expense,3615,TRAVELODGE
CCC_10003185_21,22/11/2023,"Museums, Theatres & Cultural Services",ROYAL MAIL GROUP LTD CHESTERFIELD,8.32,General Expense,9402,POSTAGE STAMPS
CCC_10002660_7,21/07/2023,Parks & Green Spaces,AMZNMKTPLACE AMAZON.CO AMAZON.CO.UK,5.89,Grounds Maintenance Materials,5999,MISCELLANEOUS & SPECIALTY STORES
CCC_10002307_1,17/05/2023,Spatial Planning,COLCHESTER BC PARKING COLCHESTER,5.42,Car Parking,7523,AUTOMOBILE PARKING OR PARKING LOTS
CCC_10002804_7,03/07/2023,"Museums, Theatres & Cultural Services",ETERNAL BLOOM FLORIST CHELMSFORD,14.58,General Expense,5992,FLORISTS
CCC_10003486_3,30/01/2024,Corporate Property Services,AMAZON  026-3499080-79 LONDON,25.17,Printing & Stationary,5399,GENERAL MERCHANDISE OR CONVENIENCE FOOD STORES
CCC_10003525_4,23/01/2024,Leisure & Heritage Services,AMAZON.CO.UK 9T8M904S5 AMAZON.CO.UK,22.5,General Expense,5969,DIRECT MARKETERS (NEC)
CCC_10002318_14,25/05/2023,Parks & Green Spaces,TESCO STORES 2330 CHELMSFORD 2,48.83,General Expense,5411,GROCERY STORES OR SUPERMARKETS
CCC_10002229_1,13/04/2023,Leisure & Heritage Services,AMZNMKTPLACE AMAZON.CO.UK,21.25,New Equipment,5999,MISCELLANEOUS & SPECIALTY STORES
CCC_10002420_3,26/05/2023,Leisure & Heritage Services,AMZNMKTPLACE AMAZON.CO.UK,21.66,Printing & Stationary,5999,MISCELLANEOUS & SPECIALTY STORES
CCC_10002523_2,13/07/2023,Parks & Green Spaces,AMZNMKTPLACE AMAZON.CO.UK,25.12,General Expense,5999,MISCELLANEOUS & SPECIALTY STORES
CCC_10002612_4,17/07/2023,Leisure & Heritage Services,AMZNMKTPLACE AMAZON.CO AMAZON.CO.UK,28.32,Printing & Stationary,5999,MISCELLANEOUS & SPECIALTY STORES
CCC_10003463_1,01/02/2024,"Museums, Theatres & Cultural Services",GSUITE_IGNITECHELMSFOR DUBLIN,7,General Expense,7399,BUSINESS SERVICES (NEC)
CCC_10003515_5,22/01/2024,Parks & Green Spaces,TESCO STORES 2330 CHELMSFORD 2,35,Grounds Maintenance Materials,5411,GROCERY STORES OR SUPERMARKETS
CCC_10002826_4,21/08/2023,"Museums, Theatres & Cultural Services",AMZNMKTPLACE AMAZON.CO AMAZON.CO.UK,5.37,Printing & Stationary,5999,MISCELLANEOUS & SPECIALTY STORES
CCC_10002684_1,02/08/2023,Public Health & Protection Services,CHARTERED INSTITUTE OF LONDON,55,Training Expenses,8398,CHARITABLE OR SOCIAL SERVICES ORGANIZATIONS
CCC_10002635_1,14/07/2023,Legal & Democratic Services,TESCO STORES 2330 CHELMSFORD 2,23,General Expense,5411,GROCERY STORES OR SUPERMARKETS
CCC_10002734_16,09/08/2023,Human Resources,CHARTERED ASSOCIATION NORTHAMPTON,330,Employee Subscriptions,8220," UNIVERSITIES, COLLEGES, SR COLLEGES OR PROFESSIONAL SCHOOLS "
CCC_10002247_2,01/05/2023,Street Care & Performance,AMZNMKTPLACE AMAZON.CO AMAZON.CO.UK,33.32,Clothing & Uniforms,5999,MISCELLANEOUS & SPECIALTY STORES
CCC_10003617_11,05/02/2024,Parks & Green Spaces,AMAZON  204-7006869-78 LONDON,49.97,Grounds Maintenance Materials,5399,GENERAL MERCHANDISE OR CONVENIENCE FOOD STORES
CCC_10002841_2,07/08/2023,Parks & Green Spaces,TESCO-STORES 6724 CHELMSFORD,3,General Expense,5411,GROCERY STORES OR SUPERMARKETS
CCC_10002343_1,08/05/2023,Leisure & Heritage Services,CURRYS ONLINE HEMEL HEMPSTE,232.5,New Equipment,5732,ELECTRONIC SALES
CCC_10003564_1,05/02/2024,Leisure & Heritage Services,WWW.SCREWFIX.COM YEOVIL,41.36,Grounds Maintenance Materials,5211,LUMBER AND BUILDING MATERIALS STORES
CCC_10002205_1,17/04/2023,Parks & Green Spaces,AMZNMKTPLACE AMAZON.CO AMAZON.CO.UK,8.62,General Expense,5999,MISCELLANEOUS & SPECIALTY STORES
CCC_10003341_36,11/12/2023,"Museums, Theatres & Cultural Services",TESCO STORES 5408 CHELMSFORD,10.05,General Expense,5411,GROCERY STORES OR SUPERMARKETS
CCC_10002816_1,19/08/2023,Leisure & Heritage Services,WWW.WHOLESALEPADLOCKS. INTERNET,31.99,New Equipment,5999,MISCELLANEOUS & SPECIALTY STORES
CCC_10002584_1,01/07/2023,Marketing & Communications Team,GOOGLE ADS8874237245 DUBLIN,11.03,Advertising,7311,ADVERTISING SERVICES
CCC_10003213_6,30/11/2023,Parks & Green Spaces,AMZNMKTPLACE AMAZON.CO.UK,61.67,Grounds Maintenance Materials,5999,MISCELLANEOUS & SPECIALTY STORES
CCC_10002263_5,19/04/2023,Spatial Planning,AMZNMKTPLACE AMAZON.CO.UK,23.32,New Equipment,5999,MISCELLANEOUS & SPECIALTY STORES
CCC_10002446_1,11/06/2023,Leisure & Heritage Services,AMZNMKTPLACE AMAZON.CO AMAZON.CO.UK,23.79,New Equipment,5999,MISCELLANEOUS & SPECIALTY STORES
CCC_10003205_5,23/11/2023,Operational Services,AMZNMKTPLACE LONDON,73.82,New Equipment,5999,MISCELLANEOUS & SPECIALTY STORES
CCC_10002409_1,08/06/2023,Development Management,AMZNMKTPLACE AMAZON.CO.UK,4.16,Printing & Stationary,5999,MISCELLANEOUS & SPECIALTY STORES
CCC_10003306_8,03/12/2023,Leisure & Heritage Services,AMZNMKTPLACE AMAZON.CO.UK,7.04,General Expense,5999,MISCELLANEOUS & SPECIALTY STORES
CCC_10003042_30,31/08/2023,Leisure & Heritage Services,TESCO STORES 2172 BRAINTREE,18.33,General Expense,5411,GROCERY STORES OR SUPERMARKETS
CCC_10003329_2,11/12/2023,Street Care & Performance,AMZNBUSINESS KX6AN77C5 AMAZON.CO.UK,34.99,New Equipment,5999,MISCELLANEOUS & SPECIALTY STORES
CCC_10002435_1,17/05/2023,Leisure & Heritage Services,ASDA SUPERSTORE BASILDON,54.34,General Expense,5411,GROCERY STORES OR SUPERMARKETS
CCC_10002487_1,19/06/2023,Marketing & Communications Team,FACEBK 8MNSER3LD2 FB.ME/ADS,60,Advertising,7311,ADVERTISING SERVICES
CCC_10003316_2,28/11/2023,Marketing & Communications Team,AMZNMKTPLACE AMAZON.CO.UK,10.52,Printing & Stationary,5999,MISCELLANEOUS & SPECIALTY STORES
CCC_10003099_2,14/11/2023,Leisure & Heritage Services,SCREW CENTRE LTD CHELMSFORD,24.07,Grounds Maintenance Materials,5251,HARDWARE STORES
CCC_10003213_7,29/11/2023,Parks & Green Spaces,AMZNMKTPLACE AMAZON.CO.UK,73.33,Grounds Maintenance Materials,5999,MISCELLANEOUS & SPECIALTY STORES
CCC_10002783_5,12/08/2023,Digital Services,COOKIE CONTROL PRO EDINBURGH,39,General Expense,7372," COMPUTER PROGRAMMING, SYSTEMS DESIGN OR DATA PROCESSING SERV "
CCC_10003406_17,06/01/2024,Parks & Green Spaces,AMZNMKTPLACE AMAZON.CO.UK,58.32,Grounds Maintenance Materials,5999,MISCELLANEOUS & SPECIALTY STORES
CCC_10002784_5,16/08/2023,Public Health & Protection Services,AMZNMKTPLACE AMAZON.CO.UK,2.91,Printing & Stationary,5999,MISCELLANEOUS & SPECIALTY STORES
CCC_10003117_2,06/10/2023,"Museums, Theatres & Cultural Services",SCREWFIX DIR LTD CHELMFOR1867,16.72,General Expense,5211,LUMBER AND BUILDING MATERIALS STORES
CCC_10002663_1,22/07/2023,Spatial Planning,MIPERMIT CHIPPENHAM,3.33,Car Parking,7523,AUTOMOBILE PARKING OR PARKING LOTS
CCC_10003231_5,06/11/2023,Digital Services,AUDON ELECTRONICS CHESTER,116.75,New Equipment,5732,ELECTRONIC SALES
CCC_10002194_7,05/04/2023,Leisure & Heritage Services,AMZNMKTPLACE AMAZON.CO.UK,5.78,General Expense,5999,MISCELLANEOUS & SPECIALTY STORES
CCC_10003516_4,16/10/2023,Parks & Green Spaces,TESCO STORES 2330 CHELMSFORD 2,48.33,Grounds Maintenance Materials,5411,GROCERY STORES OR SUPERMARKETS
CCC_10003415_2,03/01/2024,Parks & Green Spaces,AMZNMKTPLACE LONDON,20.62,Printing & Stationary,5999,MISCELLANEOUS & SPECIALTY STORES
CCC_10003585_11,08/02/2024,Public Health & Protection Services,AMAZON  203-3297176-33 LONDON,7.71,Printing & Stationary,5399,GENERAL MERCHANDISE OR CONVENIENCE FOOD STORES
CCC_10003418_1,25/01/2024,Parks & Green Spaces,AMZNMKTPLACE LONDON,186,Grounds Maintenance Materials,5999,MISCELLANEOUS & SPECIALTY STORES
CCC_10002298_1,12/05/2023,Leisure & Heritage Services,AMZNMKTPLACE AMAZON.CO.UK,67.96,General Expense,5999,MISCELLANEOUS & SPECIALTY STORES
CCC_10003264_25,01/11/2023,South Essex Parking Partnership,THE SUNRISE CAFE BILLERICAY,3.33,General Expense,5814,FAST FOOD RESTAURANTS
CCC_10002980_1,05/10/2023,Legal & Democratic Services,AMZNBUSINESS HT9M675B4 AMAZON.CO.UK,23.32,Printing & Stationary,5999,MISCELLANEOUS & SPECIALTY STORES
CCC_10003411_1,23/01/2024,Marketing & Communications Team,FACEBK 8N6LZVTN32 FB.ME/ADS,90,Advertising,7311,ADVERTISING SERVICES
CCC_10002517_18,16/06/2023,"Museums, Theatres & Cultural Services",TESCO STORES 5408 CHELMSFORD,3.3,General Expense,5411,GROCERY STORES OR SUPERMARKETS
CCC_10002769_11,20/06/2023,Parking & Highways Operations,AMZNMKTPLACE AMAZON.CO.UK,21.67,General Expense,5999,MISCELLANEOUS & SPECIALTY STORES
CCC_10002884_15,15/08/2023,South Essex Parking Partnership,LAVISH CAR WASH BRENTWOOD,16.67,General Expense,7542,CAR WASHES
CCC_10002385_1,01/06/2023,Parking & Highways Operations,WWW.ARGOS.CO.UK MILTON KEYNES,15,New Equipment,5311,DEPARTMENT STORES
CCC_10003265_9,01/12/2023,Parks & Green Spaces,AMZNMKTPLACE AMAZON.CO.UK,12.05,Printing & Stationary,5999,MISCELLANEOUS & SPECIALTY STORES
CCC_10003557_1,22/02/2024,Public Health & Protection Services,GREATER ANGLIA 4278,22.75,Public Transport,4112,PASSENGER RAILWAYS
CCC_10002486_1,16/06/2023,Marketing & Communications Team,ARTS MARKETING ASS CAMBRIDGE,74,Training Expenses,8398,CHARITABLE OR SOCIAL SERVICES ORGANIZATIONS
CCC_10002246_1,26/04/2023,Leisure & Heritage Services,CHAPMAN STORES SOUTHMINSTER,14.59,General Expense,5499,MISC FOOD STORES - SPECIALTY MARKETS & CONVENIENCE
CCC_10002960_35,25/09/2023,"Museums, Theatres & Cultural Services",TESCO STORES 5408 CHELMSFORD,1.75,General Expense,5411,GROCERY STORES OR SUPERMARKETS
CCC_10002474_7,22/05/2023,"Museums, Theatres & Cultural Services",AMZNMKTPLACE AMAZON.CO.UK,21.58,New Equipment,5999,MISCELLANEOUS & SPECIALTY STORES
CCC_10003049_2,28/10/2023,Leisure & Heritage Services,MARKS&SPENCER PLC BOURNEMOUTH,16.67,General Expense,5411,GROCERY STORES OR SUPERMARKETS
CCC_10003177_16,21/11/2023,Parks & Green Spaces,AMZNMKTPLACE AMAZON.CO.UK,11.52,Grounds Maintenance Materials,5999,MISCELLANEOUS & SPECIALTY STORES
CCC_10002265_6,05/04/2023,South Essex Parking Partnership,AMZ AMAZON.CO.UK AMAZON.CO.UK,-16.49,New Equipment,5969,DIRECT MARKETERS (NEC)
CCC_10002614_1,18/07/2023,"Museums, Theatres & Cultural Services",TESCO STORES 2330 CHELMSFORD 2,6.25,New Equipment,5411,GROCERY STORES OR SUPERMARKETS
CCC_10002517_19,15/06/2023,"Museums, Theatres & Cultural Services",DUKE STREET COOP 01245 345490,4.75,General Expense,5311,DEPARTMENT STORES
CCC_10003073_3,06/11/2023,Parks & Green Spaces,AMZNMKTPLACE AMAZON.CO.UK,31.99,Grounds Maintenance Materials,5999,MISCELLANEOUS & SPECIALTY STORES
CCC_10003020_15,01/10/2023,"Museums, Theatres & Cultural Services",AMZNMKTPLACE AMAZON.CO.UK,27.49,New Equipment,5999,MISCELLANEOUS & SPECIALTY STORES
CCC_10003003_11,20/10/2023,Operational Services,DVLA VEHICLE TAX 0300 1234321,452.5,Vehicle Tax,9311,TAX PAYMENTS
CCC_10002807_31,19/08/2023,"Museums, Theatres & Cultural Services",TESCO STORES 5408 CHELMSFORD,9.45,General Expense,5411,GROCERY STORES OR SUPERMARKETS
CCC_10002303_15,23/05/2023,"Museums, Theatres & Cultural Services",TESCO STORES 5408 CHELMSFORD,4.05,General Expense,5411,GROCERY STORES OR SUPERMARKETS
CCC_10003034_6,14/10/2023,Leisure & Heritage Services,HOBBYCRAFT CHELMSFORD,2.5,General Expense,5970,CRAFT OR ARTIST'S SUPPLY SHOPS
CCC_10002804_37,20/07/2023,"Museums, Theatres & Cultural Services",TESCO STORES 5408 CHELMSFORD,4.4,General Expense,5411,GROCERY STORES OR SUPERMARKETS
CCC_10003172_1,30/11/2023,Marketing & Communications Team,FACEBK NRJNGUFL92 FB.ME/ADS,89.25,Advertising,7311,ADVERTISING SERVICES
CCC_10003286_40,31/10/2023,"Museums, Theatres & Cultural Services",TESCO STORES 5408 CHELMSFORD,9.05,General Expense,5411,GROCERY STORES OR SUPERMARKETS
CCC_10003406_15,07/01/2024,Parks & Green Spaces,AMZNMKTPLACE AMAZON.CO.UK,17.47,Grounds Maintenance Materials,5999,MISCELLANEOUS & SPECIALTY STORES
CCC_10002244_2,25/04/2023,Parks & Green Spaces,TAYNA LTD ABERGELE,43.24,Grounds Maintenance Materials,5533," AUTOMOTIVE PARTS, ACCESSORIES STORES "
CCC_10003508_1,04/09/2023,Parks & Green Spaces,TESCO STORES 2330 CHELMSFORD 2,55.83,Grounds Maintenance Materials,5411,GROCERY STORES OR SUPERMARKETS
CCC_10003536_16,18/10/2023,Housing Services,WWW.BRITISHGAS.CO. BRITISHGAS.CO,227.54,General Expense,4900," ELECTRIC, GAS, SANITARY, TELEPHONE OR WATER UTILITIES "
CCC_10002480_1,22/06/2023,Parking & Highways Operations,WWW.ARGOS.CO.UK MILTON KEYNES,15,New Equipment,5311,DEPARTMENT STORES
CCC_10003316_4,29/11/2023,Marketing & Communications Team,AMZNMKTPLACE AMAZON.CO.UK,5.41,Printing & Stationary,5999,MISCELLANEOUS & SPECIALTY STORES
CCC_10002992_1,17/10/2023,Leisure & Heritage Services,WWW.SCREWFIX.COM YEOVIL,79.12,Grounds Maintenance Materials,5211,LUMBER AND BUILDING MATERIALS STORES
CCC_10002404_1,06/06/2023,Marketing & Communications Team,EPH RECEPTION BIRMINGHAM,80,Accommodation,7011," LODGING,HOTELS,MOTELS,RESORTS "
CCC_10002187_3,27/04/2023,"Museums, Theatres & Cultural Services",AMZNMKTPLACE AMAZON.CO AMAZON.CO.UK,4.99,Printing & Stationary,5999,MISCELLANEOUS & SPECIALTY STORES
CCC_10002590_6,11/07/2023,Parks & Green Spaces,DCL UK LTD CHELMSFORD,20.83,Grounds Maintenance Materials,7216,DRY CLEANERS
CCC_10002605_1,17/07/2023,Operational Services,PASS  PORTABLE APPLIAN STOCKTON ON T,125,New Equipment,8734,TESTING LABORATORIES (NON-MEDICAL TESTING)
CCC_10003048_7,26/10/2023,Parks & Green Spaces,AMZNMKTPLACE AMAZON.CO.UK,9.42,Grounds Maintenance Materials,5999,MISCELLANEOUS & SPECIALTY STORES
CCC_10002589_4,04/07/2023,Revenue and Benefit Services,AMZNMKTPLACE AMAZON.CO.UK,13.01,Printing & Stationary,5999,MISCELLANEOUS & SPECIALTY STORES
CCC_10002645_1,12/07/2023,Leisure & Heritage Services,AMAZON.CO.UK HZ1VI80U5 AMAZON.CO.UK,8,New Equipment,5969,DIRECT MARKETERS (NEC)
CCC_10002177_5,12/04/2023,Leisure & Heritage Services,AMZNMKTPLACE AMAZON.CO.UK,15.27,General Expense,5999,MISCELLANEOUS & SPECIALTY STORES
CCC_10003204_9,01/11/2023,Leisure & Heritage Services,AMZNMKTPLACE AMAZON.CO.UK,6.98,General Expense,5999,MISCELLANEOUS & SPECIALTY STORES
CCC_10003457_6,07/12/2023,Parks & Green Spaces,TESCO-STORES 6724 CHELMSFORD,0.9,General Expense,5411,GROCERY STORES OR SUPERMARKETS
CCC_10003316_6,29/11/2023,Marketing & Communications Team,AMZNMKTPLACE AMAZON.CO.UK,9.7,Printing & Stationary,5999,MISCELLANEOUS & SPECIALTY STORES
CCC_10003501_2,04/04/2023,Parks & Green Spaces,TESCO STORES 2330 CHELMSFORD 2,11.46,Grounds Maintenance Materials,5411,GROCERY STORES OR SUPERMARKETS
CCC_10002691_3,28/07/2023,"Museums, Theatres & Cultural Services",WWW.SCREWFIX.COM YEOVIL,24.3,New Equipment,5211,LUMBER AND BUILDING MATERIALS STORES
CCC_10002690_1,01/08/2023,Marketing & Communications Team,GOOGLE ADS9290904130 DUBLIN,282.26,Advertising,7311,ADVERTISING SERVICES
CCC_10002569_1,13/07/2023,"Museums, Theatres & Cultural Services",AMZNMKTPLACE AMAZON.CO.UK,13.07,General Expense,5999,MISCELLANEOUS & SPECIALTY STORES
CCC_10003003_1,26/10/2023,Operational Services,POST OFFICE COUNTER CHELMSFORD,327.5,Vehicle Tax,9402,POSTAGE STAMPS
CCC_10003622_3,15/01/2024,Leisure & Heritage Services,ZETTLE_ THE COPPER POT CHELMSFORD,5.2,General Expense,5812,RESTAURANTS OR EATING PLACES
CCC_10002872_5,08/09/2023,Parks & Green Spaces,D. BYFORD & SONS COLCHESTER CO,22,General Expense,5193," FLORIST SUPPLIES, NURSERY STOCK AND FLOWERS "
CCC_10002395_1,15/05/2023,Operational Services,EBAY O 23-10054-55032 LONDON,8.8,General Expense,5311,DEPARTMENT STORES
CCC_10002591_5,04/07/2023,Parks & Green Spaces,AMZNMKTPLACE AMAZON.CO.UK,9.15,Printing & Stationary,5999,MISCELLANEOUS & SPECIALTY STORES
CCC_10002766_1,07/08/2023,Leisure & Heritage Services,AMZ ACACIA PRODUCTS AMAZON.CO.UK,-16.65,New Equipment,5999,MISCELLANEOUS & SPECIALTY STORES
CCC_10002985_3,05/10/2023,Human Resources,SHL GROUP LTD THAMES DITTON,420.83,General Expense,7399,BUSINESS SERVICES (NEC)
CCC_10003121_1,06/11/2023,Chief Executive's Office,WWW.LOCAL.GOV.UK LONDON,517,Conference Expenses,7399,BUSINESS SERVICES (NEC)
CCC_10002510_2,02/06/2023,Parks & Green Spaces,EBAY O 11-10127-25406 LONDON,37.49,Vehicle Repairs,5311,DEPARTMENT STORES
CCC_10002299_3,12/05/2023,Parks & Green Spaces,AMZNMKTPLACE AMAZON.CO AMAZON.CO.UK,13.32,General Expense,5999,MISCELLANEOUS & SPECIALTY STORES
CCC_10002734_4,18/07/2023,Human Resources,CHARTERED ASSOCIATION NORTHAMPTON,255,Employee Subscriptions,8220," UNIVERSITIES, COLLEGES, SR COLLEGES OR PROFESSIONAL SCHOOLS "
CCC_10002463_2,05/06/2023,Marketing & Communications Team,ARTS MARKETING ASS CAMBRIDGE,74,Training Expenses,8398,CHARITABLE OR SOCIAL SERVICES ORGANIZATIONS
CCC_10002955_1,03/10/2023,Public Health & Protection Services,GREATER ANGLIA 4278,30.35,Public Transport,4112,PASSENGER RAILWAYS
CCC_10003154_5,13/11/2023,Leisure & Heritage Services,AMZNMKTPLACE AMAZON.CO.UK,66.62,New Equipment,5999,MISCELLANEOUS & SPECIALTY STORES
CCC_10003213_3,06/12/2023,Parks & Green Spaces,AMZNMKTPLACE AMAZON.CO.UK,20.82,Grounds Maintenance Materials,5999,MISCELLANEOUS & SPECIALTY STORES
CCC_10003265_2,08/12/2023,Parks & Green Spaces,ALDI CHELMSFORD,22.48,General Expense,5411,GROCERY STORES OR SUPERMARKETS
CCC_10002422_3,05/06/2023,Parks & Green Spaces,ASDA SUPERSTORE CHELMSFORD,58.04,General Expense,5411,GROCERY STORES OR SUPERMARKETS
CCC_10003286_36,14/10/2023,"Museums, Theatres & Cultural Services",TESCO STORES 5408 CHELMSFORD,2.15,General Expense,5411,GROCERY STORES OR SUPERMARKETS
CCC_10003116_2,09/10/2023,Leisure & Heritage Services,AMZNMKTPLACE AMAZON.CO.UK,11.16,Printing & Stationary,5999,MISCELLANEOUS & SPECIALTY STORES
CCC_10003185_12,26/11/2023,"Museums, Theatres & Cultural Services",AMZNMKTPLACE AMAZON.CO.UK,5.82,New Equipment,5999,MISCELLANEOUS & SPECIALTY STORES
CCC_10002857_5,24/09/2023,Leisure & Heritage Services,IET PUBLICATION STEVENAGE,110,General Expense,2741,MISCELLANEOUS PUBLISHING AND PRINTING
CCC_10002991_5,03/10/2023,Operational Services,DREAMSTIME.COM MIAMI,22,General Expense,5262,
CCC_10002953_4,01/10/2023,"Museums, Theatres & Cultural Services",AMZNMKTPLACE LONDON,114.95,General Expense,5999,MISCELLANEOUS & SPECIALTY STORES
CCC_10002781_2,13/08/2023,Leisure & Heritage Services,AMZNMKTPLACE AMAZON.CO.UK,9.99,General Expense,5999,MISCELLANEOUS & SPECIALTY STORES
CCC_10002463_4,21/06/2023,Marketing & Communications Team,FACEBK  J3HSDU7AK2 FB.ME/ADS,400,Advertising,7311,ADVERTISING SERVICES
CCC_10002319_3,15/05/2023,Operational Services,DVLA VEHICLE TAX 0300 1234321,202.5,Vehicle Tax,9311,TAX PAYMENTS
CCC_10002531_6,23/06/2023,"Museums, Theatres & Cultural Services",CONNECT DISTRIBUTION S BIRMINGHAM,-24.97,New Equipment,5722,APPLIANCE STORES (NEC) OR HOUSEHOLD APPLIANCE STORES
CCC_10003177_22,14/11/2023,Parks & Green Spaces,AMZNBUSINESS HB2YR46D4 AMAZON.CO.UK,9.28,Grounds Maintenance Materials,5999,MISCELLANEOUS & SPECIALTY STORES
CCC_10003341_20,03/12/2023,"Museums, Theatres & Cultural Services",TESCO STORES 5408 CHELMSFORD,4.65,General Expense,5411,GROCERY STORES OR SUPERMARKETS
CCC_10002421_5,19/04/2023,Parking & Highways Operations,AMZNMKTPLACE AMAZON.CO.UK,14.01,General Expense,5999,MISCELLANEOUS & SPECIALTY STORES
CCC_10003416_1,23/01/2024,"Museums, Theatres & Cultural Services",AMZNMKTPLACE AMAZON.CO.UK,10.82,General Expense,5999,MISCELLANEOUS & SPECIALTY STORES
CCC_10003513_2,16/11/2023,Parks & Green Spaces,B & Q 1188 CHELMSFORD,29.83,General Expense,5200,HOME SUPPLY WAREHOUSE STORES
CCC_10003004_1,20/10/2023,Operational Services,PASS  PORTABLE APPLIAN STOCKTON ON T,125,General Expense,8734,TESTING LABORATORIES (NON-MEDICAL TESTING)
CCC_10003384_4,17/01/2024,Operational Services,DVLA VEHICLE TAX 0300 1234321,452.5,Vehicle Tax,9311,TAX PAYMENTS
CCC_10002841_4,14/08/2023,Parks & Green Spaces,ASDA SUPERSTORE CHELMSFORD,38,General Expense,5411,GROCERY STORES OR SUPERMARKETS
CCC_10002284_6,06/04/2023,"Museums, Theatres & Cultural Services",AMZNMKTPLACE AMAZON.CO AMAZON.CO.UK,12.49,Printing & Stationary,5999,MISCELLANEOUS & SPECIALTY STORES
CCC_10003001_1,28/08/2023,Leisure & Heritage Services,AMZNMKTPLACE AMAZON.CO AMAZON.CO.UK,18.31,General Expense,5999,MISCELLANEOUS & SPECIALTY STORES
CCC_10002938_10,12/09/2023,Leisure & Heritage Services,FINDEL EDUCATION HYDE,32.32,New Equipment,5969,DIRECT MARKETERS (NEC)
CCC_10002530_1,29/06/2023,Leisure & Heritage Services,AMZNMKTPLACE AMAZON.CO.UK,83.32,General Expense,5999,MISCELLANEOUS & SPECIALTY STORES
CCC_10002204_4,03/04/2023,Marketing & Communications Team,PRINT MARKETPLACE 40 2802345,77.01,Printing & Stationary,7338," PRINT SHOPS, QUICK COPY SERVICES OR REPRODUCTION SERVICES "
CCC_10002394_1,30/05/2023,Leisure & Heritage Services,DANBURY COOP 01245 227733,7.4,General Expense,5311,DEPARTMENT STORES
CCC_10003048_12,20/10/2023,Parks & Green Spaces,WWW.RAINBOWSAFETEY.CO. WOLVERHAMPTON,70.25,Grounds Maintenance Materials,5999,MISCELLANEOUS & SPECIALTY STORES
CCC_10003209_1,01/12/2023,Development Management,EB  TREES PLANNING AND 801-413-7200,60,Training Expenses,7399,BUSINESS SERVICES (NEC)
CCC_10003476_4,29/01/2024,Operational Services,AMZNMKTPLACE AMAZON.CO.UK,6.92,New Equipment,5999,MISCELLANEOUS & SPECIALTY STORES
CCC_10002333_1,24/05/2023,Parking & Highways Operations,BREWERS CHELMSFORD CHELMSFORD,189.85,General Expense,5251,HARDWARE STORES
CCC_10003035_5,23/10/2023,Digital Services,AMZNMKTPLACE LONDON,232.92,New Equipment,5999,MISCELLANEOUS & SPECIALTY STORES
CCC_10003064_1,09/11/2023,"Museums, Theatres & Cultural Services",THE HIVE CAFE CHELMSFORD,5.12,General Expense,5812,RESTAURANTS OR EATING PLACES
CCC_10002412_2,18/05/2023,South Essex Parking Partnership,SP RONASHOES LONDON,49.99,Clothing & Uniforms,5139,COMMERCIAL FOOTWEAR
CCC_10002443_1,12/06/2023,Leisure & Heritage Services,AMZNMKTPLACE AMAZON.CO.UK,29.98,New Equipment,5999,MISCELLANEOUS & SPECIALTY STORES
CCC_10002755_9,23/07/2023,Leisure & Heritage Services,AMZNMKTPLACE AMAZON.CO.UK,8.99,Employee Subscriptions,5999,MISCELLANEOUS & SPECIALTY STORES
CCC_10003466_1,01/02/2024,Spatial Planning,EVENTBRITE.COM ORG FEE SAN FRANCISCO,7.99,General Expense,5734,COMPUTER SOFTWARE STORES
CCC_10002422_9,06/06/2023,Parks & Green Spaces,AMZNMKTPLACE AMAZON.CO.UK,13.32,General Expense,5999,MISCELLANEOUS & SPECIALTY STORES
CCC_10002239_3,13/04/2023,Parks & Green Spaces,AMZNMKTPLACE AMAZON.CO AMAZON.CO.UK,4.78,Grounds Maintenance Materials,5999,MISCELLANEOUS & SPECIALTY STORES
CCC_10003406_11,15/01/2024,Parks & Green Spaces,WICKES CHELMSFORD CHELMSFORD,46.67,Grounds Maintenance Materials,5211,LUMBER AND BUILDING MATERIALS STORES
CCC_10002586_1,10/07/2023,"Museums, Theatres & Cultural Services",AMZ AMAZON BUSINESS UK 800-279-6620,-0.52,General Expense,5942,BOOK STORES
CCC_10003169_7,29/08/2023,Leisure & Heritage Services,123-REG HAYES MIDDLE,33.98,General Expense,4816,COMPUTER NETWORK/INFO SVCS
CCC_10002177_8,15/04/2023,Leisure & Heritage Services,AMZNMKTPLACE AMAZON.CO AMAZON.CO.UK,10.65,General Expense,5999,MISCELLANEOUS & SPECIALTY STORES
CCC_10003554_9,09/02/2024,Digital Services,AMAZON  SR00017141 LONDON,6.76,Printing & Stationary,5399,GENERAL MERCHANDISE OR CONVENIENCE FOOD STORES
CCC_10003015_8,18/10/2023,South Essex Parking Partnership,DEICHMANN SE 0094 CHELMSFORD,49.99,Clothing & Uniforms,5661,SHOE STORES
CCC_10002681_2,20/07/2023,Digital Services,AMZNMKTPLACE AMAZON.CO.UK,8.06,New Equipment,5999,MISCELLANEOUS & SPECIALTY STORES
CCC_10002253_1,20/04/2023,Parking & Highways Operations,AMZNMKTPLACE AMAZON.CO.UK,12.5,General Expense,5999,MISCELLANEOUS & SPECIALTY STORES
CCC_10002549_3,10/07/2023,Digital Services,VOHKUS LTD SEGENSWORTH,523.5,New Equipment,7379," COMPUTER MAINTENANCE, REPAIR AND SERVICES "
CCC_10002254_3,20/04/2023,Operational Services,ZETTLE_ GREEDYVEGAN CHELMSFORD,24.5,Conference Expenses,5812,RESTAURANTS OR EATING PLACES
CCC_10002727_1,03/08/2023,Parking & Highways Operations,WWW.BREWERS.CO.UK EASTBOURNE,522.56,General Expense,5211,LUMBER AND BUILDING MATERIALS STORES
CCC_10002578_1,11/07/2023,Operational Services,ROYAL MAIL GROUP LTD CHESTERFIELD,6.65,General Expense,9402,POSTAGE STAMPS
CCC_10003330_1,03/01/2024,"Museums, Theatres & Cultural Services",WWW.INSTANTPRINT.C 01709 382202,23.09,Printing & Stationary,7338," PRINT SHOPS, QUICK COPY SERVICES OR REPRODUCTION SERVICES "
CCC_10003581_5,23/10/2023,South Essex Parking Partnership,LAND REGISTRY ECOM CCC LONDON,6,General Expense,9399,GOVERNMENT SERVICES (NEC) OR FIRE DEPARTMENTS
CCC_10002274_1,09/05/2023,Marketing & Communications Team,TRAINLINE.COM LONDON,71.12,Public Transport,4112,PASSENGER RAILWAYS
CCC_10002507_2,27/06/2023,Public Health & Protection Services,AMZNMKTPLACE AMAZON.CO.UK,9.57,Printing & Stationary,5999,MISCELLANEOUS & SPECIALTY STORES
CCC_10003593_1,21/02/2024,Leisure & Heritage Services,AMZNMKTPLACE AMAZON.CO.UK,15.82,General Expense,5999,MISCELLANEOUS & SPECIALTY STORES
CCC_10002723_1,30/06/2023,Leisure & Heritage Services,O2 PREPAY TOP-UP SLOUGH,10,General Expense,4814,TELECOMMUNCATIONS SERV INCL LOCA/LONG DIST CREDIT & FAX
CCC_10003265_11,25/11/2023,Parks & Green Spaces,HOBBYCRAFT CHELMSFORD,12,General Expense,5970,CRAFT OR ARTIST'S SUPPLY SHOPS
CCC_10002641_1,05/07/2023,Parking & Highways Operations,WWW.ARGOS.CO.UK MILTON KEYNES,47.08,General Expense,5311,DEPARTMENT STORES
CCC_10002992_5,27/10/2023,Leisure & Heritage Services,CNS POWER TOOLS SWANSEA,115,Grounds Maintenance Materials,5072," HARDWARE, PLUMBING, HEATING EQUIPMENT AND SUPPLIES "
CCC_10002723_2,30/06/2023,Leisure & Heritage Services,O2 PREPAY TOP-UP SLOUGH,10,General Expense,4814,TELECOMMUNCATIONS SERV INCL LOCA/LONG DIST CREDIT & FAX
CCC_10002804_23,10/07/2023,"Museums, Theatres & Cultural Services",INQTEC PRINTERS CHELMSFORD,12,General Expense,7338," PRINT SHOPS, QUICK COPY SERVICES OR REPRODUCTION SERVICES "
CCC_10002894_6,26/07/2023,"Museums, Theatres & Cultural Services",HOBBYCRAFT CHELMSFORD,9.17,New Equipment,5970,CRAFT OR ARTIST'S SUPPLY SHOPS
CCC_10003054_7,23/10/2023,Human Resources,BOOTS VOUCHERS INTERNET,67.5,General Expense,5912,PHARMCIES OR DRUG STORES
CCC_10002828_5,18/08/2023,Public Health & Protection Services,AMZNMKTPLACE AMAZON.CO.UK,9.33,Printing & Stationary,5999,MISCELLANEOUS & SPECIALTY STORES
CCC_10002359_1,04/05/2023,Leisure & Heritage Services,AMZNMKTPLACE AMAZON.CO AMAZON.CO.UK,55.82,New Equipment,5999,MISCELLANEOUS & SPECIALTY STORES
CCC_10003075_2,08/11/2023,Parks & Green Spaces,AMZNMKTPLACE LONDON,15.78,Printing & Stationary,5999,MISCELLANEOUS & SPECIALTY STORES
CCC_10002418_1,31/05/2023,"Museums, Theatres & Cultural Services",POUNDSTRETCHER CHELMSFORD,17.83,General Expense,5331,VARIETY STORES
CCC_10003615_1,18/12/2023,Leisure & Heritage Services,AMAZON.CO.UK HW0G96LX5 AMAZON.CO.UK,19.75,New Equipment,5969,DIRECT MARKETERS (NEC)
CCC_10003040_11,06/09/2023,Parks & Green Spaces,TESCO-STORES 6724 CHELMSFORD,0.75,General Expense,5411,GROCERY STORES OR SUPERMARKETS
CCC_10003265_8,06/12/2023,Parks & Green Spaces,FEE2PAYONLINE LONDON,2.5,Printing & Stationary,9402,POSTAGE STAMPS
CCC_10003405_7,01/02/2024,Operational Services,FACEBK JLCLKXXYA2 FB.ME/ADS,200,Advertising,7311,ADVERTISING SERVICES
CCC_10002753_7,23/06/2023,Development Management,ROWING VINYL 35314369001,104.53,Printing & Stationary,5999,MISCELLANEOUS & SPECIALTY STORES
CCC_10002484_3,18/06/2023,Legal & Democratic Services,AMZNBUSINESS R61FZ1TA5 LUXEMBOURG L,9.27,Printing & Stationary,5999,MISCELLANEOUS & SPECIALTY STORES
CCC_10003098_15,24/10/2023,Public Health & Protection Services,TRAINLINE +443332022222,38.06,Public Transport,4112,PASSENGER RAILWAYS
CCC_10002541_6,13/06/2023,Leisure & Heritage Services,AMZNMKTPLACE AMAZON.CO.UK,12.48,General Expense,5999,MISCELLANEOUS & SPECIALTY STORES
CCC_10002644_2,28/06/2023,Leisure & Heritage Services,AMZNMKTPLACE AMAZON.CO.UK,38.95,New Equipment,5999,MISCELLANEOUS & SPECIALTY STORES
CCC_10002738_3,06/08/2023,Development Management,AMZNMKTPLACE AMAZON.CO AMAZON.CO.UK,9.87,New Equipment,5999,MISCELLANEOUS & SPECIALTY STORES
CCC_10002691_2,31/07/2023,"Museums, Theatres & Cultural Services",PAYPAL  ORBITALSOUN 35314369001,199,Training Expenses,5732,ELECTRONIC SALES
CCC_10002388_2,08/06/2023,Digital Services,AMZNMKTPLACE AMAZON.CO.UK,26.99,Printing & Stationary,5999,MISCELLANEOUS & SPECIALTY STORES
CCC_10003329_3,30/11/2023,Street Care & Performance,THE WORKS CHELMSFORD,4.17,General Expense,5310,DISCOUNT STORES
CCC_10003177_15,22/11/2023,Parks & Green Spaces,WWW.SCREWFIX.COM YEOVIL,29.2,Grounds Maintenance Materials,5211,LUMBER AND BUILDING MATERIALS STORES
CCC_10003018_3,23/10/2023,Parks & Green Spaces,AMZNMKTPLACE AMAZON.CO.UK,28.15,Printing & Stationary,5999,MISCELLANEOUS & SPECIALTY STORES
CCC_10003167_7,26/10/2023,Marketing & Communications Team,GOOGLE ADS9290904130 DUBLIN,500,Advertising,7311,ADVERTISING SERVICES
CCC_10002819_6,21/08/2023,"Museums, Theatres & Cultural Services",B&Q LTD EASTLEIGH,34,New Equipment,5211,LUMBER AND BUILDING MATERIALS STORES
CCC_10003249_1,13/12/2023,"Museums, Theatres & Cultural Services",THE HIVE CAFE CHELMSFORD,8.4,General Expense,5812,RESTAURANTS OR EATING PLACES
CCC_10003051_1,31/10/2023,"Museums, Theatres & Cultural Services",EB  ENGAGING YOUNG PEO 801-413-7200,8.33,General Expense,7399,BUSINESS SERVICES (NEC)
CCC_10003075_8,18/10/2023,Parks & Green Spaces,FIND A WILL 0300 3030648,1.5,Printing & Stationary,8999,PROFESSIONAL SERVICES (NEC)
CCC_10002417_1,23/05/2023,Public Health & Protection Services,AMAZON.CO.UK GV1KD8AU5 AMAZON.CO.UK,5,New Equipment,5969,DIRECT MARKETERS (NEC)
CCC_10003446_10,17/01/2024,"Museums, Theatres & Cultural Services",WWW.CEF.CO.UK 01926865061,45.85,New Equipment,5211,LUMBER AND BUILDING MATERIALS STORES
CCC_10002734_10,28/09/2023,Human Resources,VISTAPRINT VENLO,34.99,Printing & Stationary,7399,BUSINESS SERVICES (NEC)
CCC_10003185_14,26/11/2023,"Museums, Theatres & Cultural Services",AMZNMKTPLACE AMAZON.CO.UK,8.58,New Equipment,5999,MISCELLANEOUS & SPECIALTY STORES
CCC_10003043_1,17/10/2023,Leisure & Heritage Services,AMZNMKTPLACE AMAZON.CO.UK,22.92,General Expense,5999,MISCELLANEOUS & SPECIALTY STORES
CCC_10003286_27,19/10/2023,"Museums, Theatres & Cultural Services",TESCO STORES 5408 CHELMSFORD,8.25,General Expense,5411,GROCERY STORES OR SUPERMARKETS
CCC_10003070_4,03/11/2023,"Museums, Theatres & Cultural Services",AMZNMKTPLACE AMAZON.CO.UK,29.94,Clothing & Uniforms,5999,MISCELLANEOUS & SPECIALTY STORES
CCC_10002262_1,26/04/2023,Public Health & Protection Services,AMZNMKTPLACE AMAZON.CO.UK,37.02,New Equipment,5999,MISCELLANEOUS & SPECIALTY STORES
CCC_10002219_3,13/04/2023,Parks & Green Spaces,POUNDSTRETCHER CHELMSFORD,1.58,General Expense,5331,VARIETY STORES
CCC_10003437_4,01/12/2023,Marketing & Communications Team,GOOGLE ADS9290904130 DUBLIN,12.93,Advertising,7311,ADVERTISING SERVICES
CCC_10003304_1,21/12/2023,Operational Services,DVLA VEHICLE TAX 0300 1234321,322.5,Vehicle Tax,9311,TAX PAYMENTS
CCC_10003214_1,05/12/2023,"Museums, Theatres & Cultural Services",FEE2PAYONLINE LONDON,5,Printing & Stationary,9402,POSTAGE STAMPS
CCC_10002570_1,13/07/2023,"Museums, Theatres & Cultural Services",AMZNMKTPLACE AMAZON.CO.UK,12.09,General Expense,5999,MISCELLANEOUS & SPECIALTY STORES
CCC_10003103_1,10/11/2023,Spatial Planning,AMZNMKTPLACE LONDON,16.96,General Expense,5999,MISCELLANEOUS & SPECIALTY STORES
CCC_10003288_42,17/11/2023,"Museums, Theatres & Cultural Services",TESCO STORES 5408 CHELMSFORD,2.5,General Expense,5411,GROCERY STORES OR SUPERMARKETS
CCC_10003200_3,31/10/2023,Development Management,ECOLOGYTRAININGUK TIVERTON,116.67,Training Expenses,8299,SCHOOLS AND EDUCATIONAL SERVICES (NEC)
CCC_10003255_3,10/08/2023,"Museums, Theatres & Cultural Services",B & Q 1188 CHELMSFORD,43.42,General Expense,5200,HOME SUPPLY WAREHOUSE STORES
CCC_10002255_16,07/04/2023,South Essex Parking Partnership,WWW.HOTTER.COM LANCASHIRE,109.67,Clothing & Uniforms,5691,MEN'S AND WOMEN'S CLOTHING STORES
CCC_10003283_2,03/10/2023,"Museums, Theatres & Cultural Services",BOOKER LTD - 38548144 WELLINGBOROUG,129.95,General Expense,5411,GROCERY STORES OR SUPERMARKETS
CCC_10003341_17,05/12/2023,"Museums, Theatres & Cultural Services",TESCO STORES 5408 CHELMSFORD,4.65,General Expense,5411,GROCERY STORES OR SUPERMARKETS
CCC_10002590_1,13/07/2023,Parks & Green Spaces,AMZNMKTPLACE AMAZON.CO.UK,23.17,Grounds Maintenance Materials,5999,MISCELLANEOUS & SPECIALTY STORES
CCC_10003021_2,11/10/2023,Marketing & Communications Team,FACEBK 6S6RVSPKD2 FB.ME/ADS,25.25,Advertising,7311,ADVERTISING SERVICES
CCC_10002967_1,18/08/2023,Leisure & Heritage Services,TESCO STORES 2330 CHELMSFORD 2,42.62,General Expense,5411,GROCERY STORES OR SUPERMARKETS
CCC_10003128_3,22/11/2023,Public Health & Protection Services,AMZNMKTPLACE AMAZON.CO.UK,6.66,New Equipment,5999,MISCELLANEOUS & SPECIALTY STORES
CCC_10003286_8,23/10/2023,"Museums, Theatres & Cultural Services",WWW.JOEANDSEPHS.CO.UK WATFORD,241.92,General Expense,5499,MISC FOOD STORES - SPECIALTY MARKETS & CONVENIENCE
CCC_10003335_2,04/01/2024,Leisure & Heritage Services,MIRAFIT GREAT YARMOUT,230.17,New Equipment,5941,SPORTING GOODS STORES
CCC_10003264_1,05/12/2023,South Essex Parking Partnership,POLICE SUPPLIES KIRKBY,78.73,Clothing & Uniforms,5699,APPAREL AND ACCESSORY SHOPS -- MISCELLANEOUS
CCC_10002821_3,20/08/2023,Legal & Democratic Services,AMZNBUSINESS 1F68L96Z4 AMAZON.CO.UK,10.9,Printing & Stationary,5999,MISCELLANEOUS & SPECIALTY STORES
CCC_10003243_3,01/10/2023,"Procurement, Risk and Insurance",WWW.CIPS.ORG 0845 8801188,185.83,Training Expenses,8699,MEMBERSHIP ORGANIZATIONS NOT ELSEWHERE CLASSIFIED
CCC_10003506_7,29/08/2023,Parks & Green Spaces,TESCO STORES 2330 CHELMSFORD 2,54.57,Grounds Maintenance Materials,5411,GROCERY STORES OR SUPERMARKETS
CCC_10003353_2,15/01/2024,Digital Services,SLI DO BRATISLAVA,600,General Expense,5734,COMPUTER SOFTWARE STORES
CCC_10003177_27,08/11/2023,Parks & Green Spaces,AMZNMKTPLACE AMAZON.CO.UK,13.04,Grounds Maintenance Materials,5999,MISCELLANEOUS & SPECIALTY STORES
CCC_10002313_16,18/04/2023,"Museums, Theatres & Cultural Services",AMZNMKTPLACE AMAZON.CO.UK,8.49,General Expense,5999,MISCELLANEOUS & SPECIALTY STORES
CCC_10003623_1,15/01/2024,Human Resources,ASSOC OF ACCOUNTING TE LONDON EC1R,184,Employee Subscriptions,8931," ACCOUNTING, BOOKKEEPING OR AUDITING SERVICES "
CCC_10002821_4,21/08/2023,Legal & Democratic Services,STAMPS4U.CO.UK DUNSTON,38.65,Printing & Stationary,5734,COMPUTER SOFTWARE STORES
CCC_10002531_19,05/06/2023,"Museums, Theatres & Cultural Services",MUSIC STORE PROFESSION K�LN,44.33,New Equipment,5733," MUSIC STORES, MUSICAL INSTRUMENTS, PIANOS, SHEET MUSIC "
CCC_10003206_7,07/12/2023,Digital Services,AMZNMKTPLACE AMAZON.CO.UK,20.37,New Equipment,5999,MISCELLANEOUS & SPECIALTY STORES
CCC_10002450_5,05/06/2023,Marketing & Communications Team,WWW.SOLOPRESS.COM SOUTHEND-ON-S,205.7,Printing & Stationary,2741,MISCELLANEOUS PUBLISHING AND PRINTING
CCC_10002244_3,18/04/2023,Parks & Green Spaces,WWW.AGRI-GEM.CO.UK 0152 2754893,854.95,Grounds Maintenance Materials,5085,INDUSTRIAL SUPPLIES (NEC)
CCC_10003066_8,27/11/2023,Public Health & Protection Services,TRAINLINE LONDON,30.57,Public Transport,4112,PASSENGER RAILWAYS
CCC_10002884_22,07/08/2023,South Essex Parking Partnership,ARCO LTD BASILDON,19.88,Clothing & Uniforms,5085,INDUSTRIAL SUPPLIES (NEC)
CCC_10002204_8,27/04/2023,Marketing & Communications Team,CANVA  I03769-0781294 CAMDEN,247.62,Advertising,7221,PHOTOGRAPHIC STUDIOS
CCC_10003495_2,26/01/2024,Leisure & Heritage Services,COFFEE REPUBLIC CHELMS CHELMSFORD,5.17,General Expense,5812,RESTAURANTS OR EATING PLACES
CCC_10002175_4,13/04/2023,Development Management,AMZNMKTPLACE AMAZON.CO.UK,7.41,Printing & Stationary,5999,MISCELLANEOUS & SPECIALTY STORES
CCC_10003286_39,12/10/2023,"Museums, Theatres & Cultural Services",TESCO STORES 5408 CHELMSFORD,5.6,General Expense,5411,GROCERY STORES OR SUPERMARKETS
CCC_10003437_3,16/12/2023,Marketing & Communications Team,FACEBK  NPVALUXY52 FB.ME/ADS,400,Advertising,7311,ADVERTISING SERVICES
CCC_10003020_3,15/10/2023,"Museums, Theatres & Cultural Services",AMZNMKTPLACE AMAZON.CO.UK,8.32,New Equipment,5999,MISCELLANEOUS & SPECIALTY STORES
CCC_10003485_3,08/01/2024,"Museums, Theatres & Cultural Services",WICKES CHELMSFORD CHELMSFORD,14.17,General Expense,5211,LUMBER AND BUILDING MATERIALS STORES
CCC_10003307_2,11/12/2023,Leisure & Heritage Services,SUMUP   WILDFLOWERS IN CHELMSFORD,200,General Expense,8999,PROFESSIONAL SERVICES (NEC)
CCC_10002510_22,18/06/2023,Parks & Green Spaces,AMAZON.CO.UK MS6XM9XN5 AMAZON.CO.UK,13.75,Vehicle Repairs,5969,DIRECT MARKETERS (NEC)
CCC_10002314_3,13/05/2023,Leisure & Heritage Services,AMZNMKTPLACE AMAZON.CO AMAZON.CO.UK,3.65,Printing & Stationary,5999,MISCELLANEOUS & SPECIALTY STORES
CCC_10002194_9,04/04/2023,Leisure & Heritage Services,AMZNMKTPLACE AMAZON.CO.UK,12.47,General Expense,5999,MISCELLANEOUS & SPECIALTY STORES
CCC_10002411_32,11/05/2023,South Essex Parking Partnership,EBAY O 10-10046-42385 LONDON,8.32,Printing & Stationary,5311,DEPARTMENT STORES
CCC_10003333_7,04/12/2023,Leisure & Heritage Services,WWW.SCREWFIX.COM YEOVIL,52.42,Grounds Maintenance Materials,5211,LUMBER AND BUILDING MATERIALS STORES
CCC_10003185_38,10/11/2023,"Museums, Theatres & Cultural Services",OHSEWCRAFTY 35314369001,9.29,New Equipment,5641,CHILDREN'S AND INFANTS' WEAR STORES
CCC_10002403_1,26/05/2023,Development Management,AMZNMKTPLACE AMAZON.CO.UK,13.92,Printing & Stationary,5999,MISCELLANEOUS & SPECIALTY STORES
CCC_10002783_1,07/08/2023,Digital Services,AMZNMKTPLACE AMAZON.CO.UK,64.11,Printing & Stationary,5999,MISCELLANEOUS & SPECIALTY STORES
CCC_10003169_19,07/05/2023,Leisure & Heritage Services,SOUNDTRACK YOUR BRAND STOCKHOLM,39,General Expense,5815," DIGITAL GOODS MEDIA: BOOKS, MOVIES, MUSIC "
CCC_10002425_4,05/06/2023,Parks & Green Spaces,TESCO STORES 2330 CHELMSFORD 2,47,Grounds Maintenance Materials,5411,GROCERY STORES OR SUPERMARKETS
CCC_10002194_1,19/04/2023,Leisure & Heritage Services,AMZNMKTPLACE AMAZON.CO.UK,62.57,General Expense,5999,MISCELLANEOUS & SPECIALTY STORES
CCC_10003332_6,11/12/2023,"Museums, Theatres & Cultural Services",WWW.SCREWFIX.COM YEOVIL,11.66,General Expense,5211,LUMBER AND BUILDING MATERIALS STORES
CCC_10002365_5,15/05/2023,Parks & Green Spaces,ASDA SUPERSTORE CHELMSFORD,46.12,General Expense,5411,GROCERY STORES OR SUPERMARKETS
CCC_10003622_1,25/01/2024,Leisure & Heritage Services,AMAZON PRIME 8Z0KY5UY5 AMZN.CO.UK/PM,8.99,Employee Subscriptions,5968,CONTINUITY/SUBSCRIPTION MERCHANT
CCC_10002396_1,22/05/2023,Development Management,FIRST INTUITION CHELMSFORD,-63,Training Expenses,8299,SCHOOLS AND EDUCATIONAL SERVICES (NEC)
CCC_10003067_1,06/11/2023,"Procurement, Risk and Insurance",TRAINLINE LONDON,120.74,Public Transport,4112,PASSENGER RAILWAYS
CCC_10002890_3,15/09/2023,Parking & Highways Operations,AMZNMKTPLACE AMAZON.CO.UK,21.65,General Expense,5999,MISCELLANEOUS & SPECIALTY STORES
CCC_10003070_7,02/11/2023,"Museums, Theatres & Cultural Services",WWW.WORDANS.CO.UK NEWBURY,70.3,Clothing & Uniforms,2741,MISCELLANEOUS PUBLISHING AND PRINTING
CCC_10002872_22,22/09/2023,Parks & Green Spaces,D. BYFORD & SONS COLCHESTER CO,33.5,General Expense,5193," FLORIST SUPPLIES, NURSERY STOCK AND FLOWERS "
CCC_10002238_5,24/04/2023,Leisure & Heritage Services,TESCO STORES 2172 BRAINTREE,19,General Expense,5411,GROCERY STORES OR SUPERMARKETS
CCC_10002411_4,05/06/2023,South Essex Parking Partnership,RJ PRINTERS LTD MALDON,397,Printing & Stationary,2741,MISCELLANEOUS PUBLISHING AND PRINTING
CCC_10002414_2,02/05/2023,Parks & Green Spaces,TESCO-STORES 6724 CHELMSFORD,5,Grounds Maintenance Materials,5411,GROCERY STORES OR SUPERMARKETS
CCC_10002804_45,25/07/2023,"Museums, Theatres & Cultural Services",TESCO STORES 5408 CHELMSFORD,8.1,General Expense,5411,GROCERY STORES OR SUPERMARKETS
CCC_10002483_1,20/06/2023,Leisure & Heritage Services,PIPESTOCK.COM ROMSEY,131.5,Grounds Maintenance Materials,5074,PLUMBING AND HEATING EQUIPMENT AND SUPPLIES
CCC_10003302_2,10/11/2023,Marketing & Communications Team,FACEBK  JQULKVT9K2 FB.ME/ADS,700,Advertising,7311,ADVERTISING SERVICES
CCC_10002335_1,04/05/2023,Parking & Highways Operations,SCREWFIX DIR LTD CHELMFOR1066,152.96,General Expense,5211,LUMBER AND BUILDING MATERIALS STORES
CCC_10003621_4,11/02/2024,"Museums, Theatres & Cultural Services",AMZNMKTPLACE AMAZON.CO.UK,9.65,Museum Exhibits,5999,MISCELLANEOUS & SPECIALTY STORES
CCC_10003015_6,20/10/2023,South Essex Parking Partnership,AMZNMKTPLACE AMAZON.CO.UK,100.79,New Equipment,5999,MISCELLANEOUS & SPECIALTY STORES
CCC_10002773_3,11/08/2023,Customer Services,AMZNMKTPLACE AMAZON.CO AMAZON.CO.UK,37.63,Printing & Stationary,5999,MISCELLANEOUS & SPECIALTY STORES
CCC_10003169_9,24/08/2023,Leisure & Heritage Services,AMZNMKTPLACE AMAZON.CO AMAZON.CO.UK,78.31,General Expense,5999,MISCELLANEOUS & SPECIALTY STORES
CCC_10003459_1,30/01/2024,Spatial Planning,PAYPAL  QUANTIFIEDT 35314369001,480,Training Expenses,8999,PROFESSIONAL SERVICES (NEC)
CCC_10003547_10,14/02/2024,Operational Services,DVLA VEHICLE TAX 0300 1234321,167.5,Vehicle Tax,9311,TAX PAYMENTS
CCC_10003536_23,20/12/2023,Housing Services,TRAVELODG TRAVELODGE G THAME,519.07,General Expense,3615,TRAVELODGE
CCC_10003266_4,11/12/2023,"Museums, Theatres & Cultural Services",WWW.TVANDFILMSUPPLIES. INTERNET,112.83,New Equipment,5999,MISCELLANEOUS & SPECIALTY STORES
CCC_10003341_80,23/12/2023,"Museums, Theatres & Cultural Services",TESCO STORES 5408 CHELMSFORD,4.4,General Expense,5411,GROCERY STORES OR SUPERMARKETS
CCC_10003478_1,01/02/2024,Public Health & Protection Services,GREATER ANGLIA 4278,22.75,Public Transport,4112,PASSENGER RAILWAYS
CCC_10002362_1,25/05/2023,Corporate Property Services,PROCONFERENCES.COM 01932 752685,109,Conference Expenses,8220," UNIVERSITIES, COLLEGES, SR COLLEGES OR PROFESSIONAL SCHOOLS "
CCC_10003204_3,17/11/2023,Leisure & Heritage Services,AMZNMKTPLACE LONDON,19.27,General Expense,5999,MISCELLANEOUS & SPECIALTY STORES
CCC_10002637_10,07/06/2023,Housing Services,E.ON NEXT COVENTRY,74.46,General Expense,4900," ELECTRIC, GAS, SANITARY, TELEPHONE OR WATER UTILITIES "
CCC_10003286_26,21/10/2023,"Museums, Theatres & Cultural Services",TESCO STORES 5408 CHELMSFORD,4.4,General Expense,5411,GROCERY STORES OR SUPERMARKETS
CCC_10002178_2,19/04/2023,"Museums, Theatres & Cultural Services",WWW.TTS-GROUPS.CO.UK INTERNET,13.43,New Equipment,5943," STATIONERY STORES, OFFICE & SCHOOL SUPPLY STORES "
CCC_10003232_2,04/12/2023,Parks & Green Spaces,SAINSBURY'S S/MKT SPRINGFIELD,65.39,General Expense,5411,GROCERY STORES OR SUPERMARKETS
CCC_10003485_8,27/01/2024,"Museums, Theatres & Cultural Services",WWW.SCREWFIX.COM YEOVIL,11.68,General Expense,5211,LUMBER AND BUILDING MATERIALS STORES
CCC_10003536_20,11/01/2024,Housing Services,TRAVELODG TRAVELODGE G THAME,853.21,General Expense,3615,TRAVELODGE
CCC_10002411_18,17/05/2023,South Essex Parking Partnership,MATALAN SOUTHEND-ON-S,20.42,Clothing & Uniforms,5691,MEN'S AND WOMEN'S CLOTHING STORES
CCC_10002807_30,19/08/2023,"Museums, Theatres & Cultural Services",TESCO STORES 5408 CHELMSFORD,6,General Expense,5411,GROCERY STORES OR SUPERMARKETS
CCC_10002461_2,30/04/2023,Marketing & Communications Team,FACEBK  LAPRRPBAK2 FB.ME/ADS,99.99,Advertising,7311,ADVERTISING SERVICES
CCC_10003240_3,10/01/2024,Operational Services,ERNEST DOE/SONS MALDON,681,New Equipment,5599,AUTOMOTIVE DEALERS
CCC_10003435_8,26/01/2024,Leisure & Heritage Services,ROTACLOUD YORK,49,General Expense,5734,COMPUTER SOFTWARE STORES
CCC_10003271_8,24/11/2023,South Essex Parking Partnership,POST OFFICE COUNTER SOUTHEND-ON-S,8.98,General Expense,9402,POSTAGE STAMPS
CCC_10002320_3,21/05/2023,"Museums, Theatres & Cultural Services",AMZNMKTPLACE AMAZON.CO.UK,9.81,New Equipment,5999,MISCELLANEOUS & SPECIALTY STORES
CCC_10003525_6,22/01/2024,Leisure & Heritage Services,TESCO STORES 2172 BRAINTREE,20.7,General Expense,5411,GROCERY STORES OR SUPERMARKETS
CCC_10002257_1,30/04/2023,Leisure & Heritage Services,WWW.CDPOOL.COM LONDON,234.35,Employee Subscriptions,5733," MUSIC STORES, MUSICAL INSTRUMENTS, PIANOS, SHEET MUSIC "
CCC_10003452_1,14/01/2024,Parks & Green Spaces,AMZNMKTPLACE LONDON,24.99,Grounds Maintenance Materials,5999,MISCELLANEOUS & SPECIALTY STORES
CCC_10002523_5,03/07/2023,Parks & Green Spaces,WWW.GLASDON.COM INTERNET,231.22,Grounds Maintenance Materials,7399,BUSINESS SERVICES (NEC)
CCC_10003346_6,13/11/2023,Leisure & Heritage Services,PRINT MARKETPLACE 40 2802345,43.45,Printing & Stationary,7338," PRINT SHOPS, QUICK COPY SERVICES OR REPRODUCTION SERVICES "
CCC_10003341_73,27/12/2023,"Museums, Theatres & Cultural Services",DUKE STREET COOP 01245 345490,2.1,General Expense,5411,GROCERY STORES OR SUPERMARKETS
CCC_10002582_1,12/07/2023,Marketing & Communications Team,WWW.DISPLAYWIZARD.CO.U INTERNET,44.99,Advertising,7399,BUSINESS SERVICES (NEC)
CCC_10002660_6,21/07/2023,Parks & Green Spaces,AMZNMKTPLACE AMAZON.CO AMAZON.CO.UK,96.63,Grounds Maintenance Materials,5999,MISCELLANEOUS & SPECIALTY STORES
CCC_10002328_5,19/05/2023,Parks & Green Spaces,MOTEX CHELMSFORD,277.18,Grounds Maintenance Materials,5533," AUTOMOTIVE PARTS, ACCESSORIES STORES "
CCC_10003185_17,26/11/2023,"Museums, Theatres & Cultural Services",AMZNMKTPLACE LONDON,12.07,New Equipment,5999,MISCELLANEOUS & SPECIALTY STORES
CCC_10002181_2,01/04/2023,Marketing & Communications Team,GOOGLE ADS3539603203 DUBLIN,206.76,Advertising,7311,ADVERTISING SERVICES
CCC_10002852_3,30/08/2023,Leisure & Heritage Services,IKEA LTD 262 LAKESIDE WEST THURROCK,133.96,New Equipment,5712," FURNITURE, HOME FURNISHINGS & EQUIP STORES EXCL APPLIANCES "
CCC_10002612_1,17/07/2023,Leisure & Heritage Services,NET WORLD SPORTS INTERNET,916.62,New Equipment,5999,MISCELLANEOUS & SPECIALTY STORES
